{"text_format":"3","workbook":"xlsx","n_sheets":17,"sheets":["部门财务收支预算总表01-1","部门收入预算表01-2","部门支出预算表01-3","部门财政拨款收支预算总表02-1","一般公共预算支出预算表02-2","一般公共预算“三公”经费支出预算表03","部门基本支出预算表04","部门项目支出预算表05-1","部门项目支出绩效目标表05-2","部门政府性基金预算表06","部门政府采购预算表07","部门政府购买服务预算表08","省对下转移支付预算表09-1","省对下转移支付绩效目标表09-2","新增资产配置表10","中央转移支付补助项目支出预算表11","部门项目支出中期规划预算表12"],"read":"whole","date_system":"1900"}

{"sheet":"部门财务收支预算总表01-1","index":0,"n_rows":21,"n_cols":4,"rows_kept":21,"merged":[[1,0,1,3],[2,0,2,1],[3,0,3,1],[3,2,3,3],[4,0,5,0],[4,1,5,1],[4,2,5,2],[4,3,5,3]]}
[{"$nulls":3},"预算01-1表"]
["2026年单位财务收支预算总表"]
[{"$f":"\"单位名称：\"&\"云南省体育局\"","v":"单位名称：云南省体育局"},null,null,"单位:元"]
["收        入",null,"支        出"]
["项      目","预算数","项目（按功能分类）","预算数"]
[]
["一、一般公共预算拨款收入",{"v":19100664.45,"d":"19,100,664.45"},{"$f":"\"一\"&\"、\"&\"文化旅游体育与传媒支出\"","v":"一、文化旅游体育与传媒支出"},{"v":14955301.85,"d":"14,955,301.85"}]
["二、政府性基金预算拨款收入",{"v":49330000,"d":"49,330,000.00"},{"$f":"\"二\"&\"、\"&\"社会保障和就业支出\"","v":"二、社会保障和就业支出"},{"v":1329802,"d":"1,329,802.00"}]
["三、国有资本经营预算拨款收入",null,{"$f":"\"三\"&\"、\"&\"卫生健康支出\"","v":"三、卫生健康支出"},{"v":1984984.21,"d":"1,984,984.21"}]
["四、财政专户管理资金收入",null,{"$f":"\"四\"&\"、\"&\"住房保障支出\"","v":"四、住房保障支出"},{"v":1940576.39,"d":"1,940,576.39"}]
["五、单位资金",null,{"$f":"\"五\"&\"、\"&\"其他支出\"","v":"五、其他支出"},{"v":61573702.98,"d":"61,573,702.98"}]
["1、事业收入"]
["2、事业单位经营收入"]
["3、上级补助收入"]
["4、附属单位上缴收入"]
["5、其他收入"]
["本年收入合计",{"v":68430664.45,"d":"68,430,664.45"},"本年支出合计",{"v":81784367.43,"d":"81,784,367.43"}]
["上年结转结余",{"v":13353702.98,"d":"13,353,702.98"},"年终结转结余"]
["1、财政拨款结转结余",{"v":12243702.98,"d":"12,243,702.98"},"1、财政拨款结转结余"]
["2、非财政拨款结余",{"v":1110000,"d":"1,110,000.00"},"2、非财政拨款结余"]
["收  入  总  计",{"v":81784367.43,"d":"81,784,367.43"},"支 出 总 计",{"v":81784367.43,"d":"81,784,367.43"}]

{"sheet":"部门收入预算表01-2","index":1,"n_rows":9,"n_cols":19,"rows_kept":9,"merged":[[0,17,0,18],[1,0,1,18],[2,0,2,3],[2,17,2,18],[3,0,5,0],[3,1,5,1],[3,2,5,2],[3,3,3,13],[3,14,3,18],[4,3,5,3],[4,4,5,4],[4,5,5,5],[4,6,5,6],[4,7,5,7],[4,8,4,13],[4,14,5,14],[4,15,5,15],[4,16,5,16],[4,17,5,17],[4,18,5,18]]}
[{"$nulls":17},"预算01-2表"]
["2026年单位收入预算表"]
[{"$f":"\"单位名称：\"&\"云南省体育局\"","v":"单位名称：云南省体育局"},{"$nulls":16},"单位:元","单位:元"]
["单位（单位）代码","单位（单位）名称","合计","本年收入",{"$nulls":10},"上年结转结余"]
[{"$nulls":3},"小计","一般公共预算","政府性基金预算","国有资本经营预算","财政专户管理资金","单位资金收入",null,"事业单位经营收入","上级补助收入","附属单位上缴收入","其他收入","小计","一般公共预算","政府性基金预算","国有资本经营预算","非财政拨款结余"]
[{"$nulls":8},"小计","事业收入","事业单位经营收入","上级补助收入","附属单位上缴收入","其他收入"]
[1,2,3,4,5,6,7,8,9,10,11,12,13,14,15,16,17,18,19]
["109001","云南省体育局",{"v":81784367.43,"d":"81,784,367.43"},{"v":68430664.45,"d":"68,430,664.45"},{"v":19100664.45,"d":"19,100,664.45"},{"v":49330000,"d":"49,330,000.00"},{"$nulls":8},{"v":13353702.98,"d":"13,353,702.98"},null,{"v":12243702.98,"d":"12,243,702.98"},null,{"v":1110000,"d":"1,110,000.00"}]
["合计",null,{"v":81784367.43,"d":"81,784,367.43"},{"v":68430664.45,"d":"68,430,664.45"},{"v":19100664.45,"d":"19,100,664.45"},{"v":49330000,"d":"49,330,000.00"},{"$nulls":8},{"v":13353702.98,"d":"13,353,702.98"},null,{"v":12243702.98,"d":"12,243,702.98"},null,{"v":1110000,"d":"1,110,000.00"}]

{"sheet":"部门支出预算表01-3","index":2,"n_rows":30,"n_cols":15,"rows_kept":30,"merged":[[1,0,1,14],[2,0,2,11],[3,0,4,0],[3,1,4,1],[3,2,4,2],[3,3,3,5],[3,6,4,6],[3,7,4,7],[3,8,4,8],[3,9,3,14],[29,0,29,1]]}
[{"$nulls":14},"预算01-3表"]
["2026年单位支出预算表"]
[{"$f":"\"单位名称：\"&\"云南省体育局\"","v":"单位名称：云南省体育局"},{"$nulls":13},"单位:元"]
["科目编码","科目名称","合计","一般公共预算",null,null,"政府性基金预算","国有资本经营预算","财政专户管理的支出","单位资金","事业支出","事业单位\n经营支出","上级补助支出","附属单位补助支出","其他支出"]
[{"$nulls":3},"小计","基本支出","项目支出",{"$nulls":3},"小计","事业支出","事业单位\n经营支出","上级补助支出","附属单位补助支出","其他支出"]
[1,2,3,4,5,6,7,8,9,10,11,12,13,14,15]
["207","文化旅游体育与传媒支出",{"v":14955301.85,"d":"14,955,301.85"},{"v":14805301.85,"d":"14,805,301.85"},{"v":12354301.85,"d":"12,354,301.85"},{"v":2451000,"d":"2,451,000.00"},{"$nulls":3},{"v":150000,"d":"150,000.00"},{"$nulls":4},{"v":150000,"d":"150,000.00"}]
["20703","体育",{"v":14955301.85,"d":"14,955,301.85"},{"v":14805301.85,"d":"14,805,301.85"},{"v":12354301.85,"d":"12,354,301.85"},{"v":2451000,"d":"2,451,000.00"},{"$nulls":3},{"v":150000,"d":"150,000.00"},{"$nulls":4},{"v":150000,"d":"150,000.00"}]
["2070301","行政运行",{"v":11273701.85,"d":"11,273,701.85"},{"v":11123701.85,"d":"11,123,701.85"},{"v":11123701.85,"d":"11,123,701.85"},{"$nulls":4},{"v":150000,"d":"150,000.00"},{"$nulls":4},{"v":150000,"d":"150,000.00"}]
["2070302","一般行政管理事务",{"v":60000,"d":"60,000.00"},{"v":60000,"d":"60,000.00"},null,{"v":60000,"d":"60,000.00"}]
["2070306","体育训练",{"v":3330600,"d":"3,330,600.00"},{"v":3330600,"d":"3,330,600.00"},{"v":1230600,"d":"1,230,600.00"},{"v":2100000,"d":"2,100,000.00"}]
["2070309","体育交流与合作",{"v":291000,"d":"291,000.00"},{"v":291000,"d":"291,000.00"},null,{"v":291000,"d":"291,000.00"}]
["208","社会保障和就业支出",{"v":1329802,"d":"1,329,802.00"},{"v":1329802,"d":"1,329,802.00"},{"v":1329802,"d":"1,329,802.00"}]
["20805","行政事业单位养老支出",{"v":1317407.14,"d":"1,317,407.14"},{"v":1317407.14,"d":"1,317,407.14"},{"v":1317407.14,"d":"1,317,407.14"}]
["2080501","行政单位离退休",{"v":51300,"d":"51,300.00"},{"v":51300,"d":"51,300.00"},{"v":51300,"d":"51,300.00"}]
["2080505","机关事业单位基本养老保险缴费支出",{"v":1266107.14,"d":"1,266,107.14"},{"v":1266107.14,"d":"1,266,107.14"},{"v":1266107.14,"d":"1,266,107.14"}]
["20899","其他社会保障和就业支出",{"v":12394.86,"d":"12,394.86"},{"v":12394.86,"d":"12,394.86"},{"v":12394.86,"d":"12,394.86"}]
["2089999","其他社会保障和就业支出",{"v":12394.86,"d":"12,394.86"},{"v":12394.86,"d":"12,394.86"},{"v":12394.86,"d":"12,394.86"}]
["210","卫生健康支出",{"v":1984984.21,"d":"1,984,984.21"},{"v":1984984.21,"d":"1,984,984.21"},{"v":1984984.21,"d":"1,984,984.21"}]
["21011","行政事业单位医疗",{"v":1984984.21,"d":"1,984,984.21"},{"v":1984984.21,"d":"1,984,984.21"},{"v":1984984.21,"d":"1,984,984.21"}]
["2101101","行政单位医疗",{"v":1264236.96,"d":"1,264,236.96"},{"v":1264236.96,"d":"1,264,236.96"},{"v":1264236.96,"d":"1,264,236.96"}]
["2101103","公务员医疗补助",{"v":669969.25,"d":"669,969.25"},{"v":669969.25,"d":"669,969.25"},{"v":669969.25,"d":"669,969.25"}]
["2101199","其他行政事业单位医疗支出",{"v":50778,"d":"50,778.00"},{"v":50778,"d":"50,778.00"},{"v":50778,"d":"50,778.00"}]
["221","住房保障支出",{"v":1940576.39,"d":"1,940,576.39"},{"v":980576.39,"d":"980,576.39"},{"v":980576.39,"d":"980,576.39"},{"$nulls":4},{"v":960000,"d":"960,000.00"},{"$nulls":4},{"v":960000,"d":"960,000.00"}]
["22102","住房改革支出",{"v":1940576.39,"d":"1,940,576.39"},{"v":980576.39,"d":"980,576.39"},{"v":980576.39,"d":"980,576.39"},{"$nulls":4},{"v":960000,"d":"960,000.00"},{"$nulls":4},{"v":960000,"d":"960,000.00"}]
["2210201","住房公积金",{"v":1940576.39,"d":"1,940,576.39"},{"v":980576.39,"d":"980,576.39"},{"v":980576.39,"d":"980,576.39"},{"$nulls":4},{"v":960000,"d":"960,000.00"},{"$nulls":4},{"v":960000,"d":"960,000.00"}]
["229","其他支出",{"v":61573702.98,"d":"61,573,702.98"},{"$nulls":3},{"v":61573702.98,"d":"61,573,702.98"}]
["22960","彩票公益金安排的支出",{"v":61573702.98,"d":"61,573,702.98"},{"$nulls":3},{"v":61573702.98,"d":"61,573,702.98"}]
["2296003","用于体育事业的彩票公益金支出",{"v":61573702.98,"d":"61,573,702.98"},{"$nulls":3},{"v":61573702.98,"d":"61,573,702.98"}]
["合  计","合  计",{"v":81784367.43,"d":"81,784,367.43"},{"v":19100664.45,"d":"19,100,664.45"},{"v":16649664.45,"d":"16,649,664.45"},{"v":2451000,"d":"2,451,000.00"},{"v":61573702.98,"d":"61,573,702.98"},null,null,{"v":1110000,"d":"1,110,000.00"},{"$nulls":4},{"v":1110000,"d":"1,110,000.00"}]

{"sheet":"部门财政拨款收支预算总表02-1","index":3,"n_rows":16,"n_cols":4,"rows_kept":16,"merged":[[1,0,1,3],[2,0,2,1],[3,0,3,1],[3,2,3,3],[4,0,5,0],[4,1,5,1],[4,2,5,2],[4,3,5,3]]}
[{"$nulls":3},"预算02-1表"]
["2026年财政拨款收支预算总表"]
[{"$f":"\"单位名称：\"&\"云南省体育局\"","v":"单位名称：云南省体育局"},null,null,"单位:元"]
["收        入",null,"支        出"]
["项      目","预算数","支出功能分类科目","预算数"]
[]
["一、本年收入",{"v":68430664.45,"d":"68,430,664.45"},"一、本年支出",{"v":80674367.43,"d":"80,674,367.43"}]
["（一）一般公共预算拨款",{"v":19100664.45,"d":"19,100,664.45"},{"$f":"\"（一）\"&\"文化旅游体育与传媒支出\"","v":"（一）文化旅游体育与传媒支出"},{"v":14805301.85,"d":"14,805,301.85"}]
["（二）政府性基金预算拨款",{"v":49330000,"d":"49,330,000.00"},{"$f":"\"（二）\"&\"社会保障和就业支出\"","v":"（二）社会保障和就业支出"},{"v":1329802,"d":"1,329,802.00"}]
["（三）国有资本经营预算拨款",null,{"$f":"\"（三）\"&\"卫生健康支出\"","v":"（三）卫生健康支出"},{"v":1984984.21,"d":"1,984,984.21"}]
["二、上年结转",{"v":12243702.98,"d":"12,243,702.98"},{"$f":"\"（四）\"&\"住房保障支出\"","v":"（四）住房保障支出"},{"v":980576.39,"d":"980,576.39"}]
["（一）一般公共预算拨款",null,{"$f":"\"（五）\"&\"其他支出\"","v":"（五）其他支出"},{"v":61573702.98,"d":"61,573,702.98"}]
["（二）政府性基金预算拨款",{"v":12243702.98,"d":"12,243,702.98"}]
["（三）国有资本经营预算拨款"]
[null,null,"二、年终结转结余"]
["收 入 总 计",{"v":80674367.43,"d":"80,674,367.43"},"支 出 总 计",{"v":80674367.43,"d":"80,674,367.43"}]

{"sheet":"一般公共预算支出预算表02-2","index":4,"n_rows":27,"n_cols":7,"rows_kept":27,"merged":[[1,0,1,6],[2,0,2,4],[3,0,3,1],[3,2,4,2],[3,3,3,5],[3,6,4,6],[26,0,26,1]]}
[{"$nulls":6},"预算02-2表"]
["2026年一般公共预算支出预算表（按功能科目分类）"]
[{"$f":"\"单位名称：\"&\"云南省体育局\"","v":"单位名称：云南省体育局"},{"$nulls":5},"单位:元"]
["单位预算支出功能分类科目",null,"合计","基本支出",null,null,"项目支出"]
["科目编码","科目名称",null,"小计","人员经费","公用经费"]
["1","2","3",null,"4","5","6"]
["207","文化旅游体育与传媒支出",{"v":14805301.85,"d":"14,805,301.85"},{"v":12354301.85,"d":"12,354,301.85"},{"v":9877890.6,"d":"9,877,890.60"},{"v":2476411.25,"d":"2,476,411.25"},{"v":2451000,"d":"2,451,000.00"}]
["20703","体育",{"v":14805301.85,"d":"14,805,301.85"},{"v":12354301.85,"d":"12,354,301.85"},{"v":9877890.6,"d":"9,877,890.60"},{"v":2476411.25,"d":"2,476,411.25"},{"v":2451000,"d":"2,451,000.00"}]
["2070301","行政运行",{"v":11123701.85,"d":"11,123,701.85"},{"v":11123701.85,"d":"11,123,701.85"},{"v":8647290.6,"d":"8,647,290.60"},{"v":2476411.25,"d":"2,476,411.25"}]
["2070302","一般行政管理事务",{"v":60000,"d":"60,000.00"},{"$nulls":3},{"v":60000,"d":"60,000.00"}]
["2070306","体育训练",{"v":3330600,"d":"3,330,600.00"},{"v":1230600,"d":"1,230,600.00"},{"v":1230600,"d":"1,230,600.00"},null,{"v":2100000,"d":"2,100,000.00"}]
["2070309","体育交流与合作",{"v":291000,"d":"291,000.00"},{"$nulls":3},{"v":291000,"d":"291,000.00"}]
["208","社会保障和就业支出",{"v":1329802,"d":"1,329,802.00"},{"v":1329802,"d":"1,329,802.00"},{"v":1278502,"d":"1,278,502.00"},{"v":51300,"d":"51,300.00"}]
["20805","行政事业单位养老支出",{"v":1317407.14,"d":"1,317,407.14"},{"v":1317407.14,"d":"1,317,407.14"},{"v":1266107.14,"d":"1,266,107.14"},{"v":51300,"d":"51,300.00"}]
["2080501","行政单位离退休",{"v":51300,"d":"51,300.00"},{"v":51300,"d":"51,300.00"},null,{"v":51300,"d":"51,300.00"}]
["2080505","机关事业单位基本养老保险缴费支出",{"v":1266107.14,"d":"1,266,107.14"},{"v":1266107.14,"d":"1,266,107.14"},{"v":1266107.14,"d":"1,266,107.14"}]
["20899","其他社会保障和就业支出",{"v":12394.86,"d":"12,394.86"},{"v":12394.86,"d":"12,394.86"},{"v":12394.86,"d":"12,394.86"}]
["2089999","其他社会保障和就业支出",{"v":12394.86,"d":"12,394.86"},{"v":12394.86,"d":"12,394.86"},{"v":12394.86,"d":"12,394.86"}]
["210","卫生健康支出",{"v":1984984.21,"d":"1,984,984.21"},{"v":1984984.21,"d":"1,984,984.21"},{"v":1984984.21,"d":"1,984,984.21"}]
["21011","行政事业单位医疗",{"v":1984984.21,"d":"1,984,984.21"},{"v":1984984.21,"d":"1,984,984.21"},{"v":1984984.21,"d":"1,984,984.21"}]
["2101101","行政单位医疗",{"v":1264236.96,"d":"1,264,236.96"},{"v":1264236.96,"d":"1,264,236.96"},{"v":1264236.96,"d":"1,264,236.96"}]
["2101103","公务员医疗补助",{"v":669969.25,"d":"669,969.25"},{"v":669969.25,"d":"669,969.25"},{"v":669969.25,"d":"669,969.25"}]
["2101199","其他行政事业单位医疗支出",{"v":50778,"d":"50,778.00"},{"v":50778,"d":"50,778.00"},{"v":50778,"d":"50,778.00"}]
["221","住房保障支出",{"v":980576.39,"d":"980,576.39"},{"v":980576.39,"d":"980,576.39"},{"v":980576.39,"d":"980,576.39"}]
["22102","住房改革支出",{"v":980576.39,"d":"980,576.39"},{"v":980576.39,"d":"980,576.39"},{"v":980576.39,"d":"980,576.39"}]
["2210201","住房公积金",{"v":980576.39,"d":"980,576.39"},{"v":980576.39,"d":"980,576.39"},{"v":980576.39,"d":"980,576.39"}]
["合  计","合  计",{"v":19100664.45,"d":"19,100,664.45"},{"v":16649664.45,"d":"16,649,664.45"},{"v":14121953.2,"d":"14,121,953.20"},{"v":2527711.25,"d":"2,527,711.25"},{"v":2451000,"d":"2,451,000.00"}]

{"sheet":"一般公共预算“三公”经费支出预算表03","index":5,"n_rows":7,"n_cols":6,"rows_kept":7,"merged":[[1,0,1,5],[2,0,2,3],[3,0,4,0],[3,1,4,1],[3,2,3,4],[3,5,4,5]]}
[{"$nulls":5},"预算03表"]
["2026年一般公共预算“三公”经费支出预算表"]
[{"$f":"\"单位名称：\"&\"云南省体育局\"","v":"单位名称：云南省体育局"},{"$nulls":4},"单位：元"]
["“三公”经费合计","因公出国（境）费","公务用车购置及运行费",null,null,"公务接待费"]
[null,null,"小计","公务用车购置费","公务用车运行费"]
[1,2,3,4,5,6]
[{"v":469300,"d":"469,300.00"},{"v":291000,"d":"291,000.00"},{"v":105400,"d":"105,400.00"},null,{"v":105400,"d":"105,400.00"},{"v":72900,"d":"72,900.00"}]

{"sheet":"部门基本支出预算表04","index":6,"n_rows":42,"n_cols":23,"rows_kept":42,"merged":[[1,0,1,22],[2,0,2,6],[3,0,6,0],[3,1,6,1],[3,2,6,2],[3,3,6,3],[3,4,6,4],[3,5,6,5],[3,6,6,6],[3,7,3,22],[4,7,6,7],[4,8,4,12],[4,13,4,15],[4,16,6,16],[4,17,4,22],[5,8,6,8],[5,9,6,9],[5,10,6,10],[5,11,6,11],[5,12,6,12],[5,13,6,13],[5,14,6,14],[5,15,6,15],[5,17,6,17],[5,18,6,18],[5,19,6,19],[5,20,6,20],[5,21,6,21],[5,22,6,22],[41,0,41,6]]}
[{"$nulls":22},"预算04表"]
["2026年单位基本支出预算表"]
[{"$f":"\"单位名称：\"&\"云南省体育局\"","v":"单位名称：云南省体育局"},{"$nulls":21},"单位：元"]
["单位名称","项目代码","项目名称","功能科目编码","功能科目名称","经济科目编码","经济科目名称","资金来源"]
[{"$nulls":7},"合计","一般公共预算",{"$nulls":4},"财政拨款结转结余",null,null,"财政专户管理资金","单位资金"]
[{"$nulls":8},"全年数","已提前安排","抵扣上年垫付资金","本次下达","另文下达","一般公共预算","政府性基金预算","国有资本经营预算",null,"小计","事业收入","事业单位\n经营收入","上级补助收入","附属单位上缴收入","其他收入"]
[]
[1,2,3,4,5,6,7,8,9,10,11,12,13,14,15,16,17,18,19,20,21,22,23]
["云南省体育局",{"$nulls":6},{"v":17759664.45,"d":"17,759,664.45"},{"v":16649664.45,"d":"16,649,664.45"},{"v":3816499.62,"d":"3,816,499.62"},null,{"v":12833164.83,"d":"12,833,164.83"},{"$nulls":5},{"v":1110000,"d":"1,110,000.00"},{"$nulls":4},{"v":1110000,"d":"1,110,000.00"}]
["云南省体育局","530000210000000046115","行政人员支出工资","2070301","行政运行","30101","基本工资",{"v":3154082.4,"d":"3,154,082.40"},{"v":3154082.4,"d":"3,154,082.40"},{"v":788520.6,"d":"788,520.60"},null,{"v":2365561.8,"d":"2,365,561.80"}]
["云南省体育局","530000210000000046115","行政人员支出工资","2070301","行政运行","30102","津贴补贴",{"v":3496626,"d":"3,496,626.00"},{"v":3496626,"d":"3,496,626.00"},{"v":874156.5,"d":"874,156.50"},null,{"v":2622469.5,"d":"2,622,469.50"}]
["云南省体育局","530000210000000046115","行政人员支出工资","2070301","行政运行","30103","奖金",{"v":280840.2,"d":"280,840.20"},{"v":280840.2,"d":"280,840.20"},{"v":70210.05,"d":"70,210.05"},null,{"v":210630.15,"d":"210,630.15"}]
["云南省体育局","530000210000000046117","社会保障缴费","2080505","机关事业单位基本养老保险缴费支出","30108","机关事业单位基本养老保险缴费",{"v":1266107.14,"d":"1,266,107.14"},{"v":1266107.14,"d":"1,266,107.14"},{"v":316526.79,"d":"316,526.79"},null,{"v":949580.35,"d":"949,580.35"}]
["云南省体育局","530000210000000046117","社会保障缴费","2089999","其他社会保障和就业支出","30112","其他社会保障缴费",{"v":12394.86,"d":"12,394.86"},{"v":12394.86,"d":"12,394.86"},{"v":3098.72,"d":"3,098.72"},null,{"v":9296.14,"d":"9,296.14"}]
["云南省体育局","530000210000000046117","社会保障缴费","2101101","行政单位医疗","30110","职工基本医疗保险缴费",{"v":791316.96,"d":"791,316.96"},{"v":791316.96,"d":"791,316.96"},{"v":197829.24,"d":"197,829.24"},null,{"v":593487.72,"d":"593,487.72"}]
["云南省体育局","530000210000000046117","社会保障缴费","2101101","行政单位医疗","30307","医疗费补助",{"v":472920,"d":"472,920.00"},{"v":472920,"d":"472,920.00"},{"v":118230,"d":"118,230.00"},null,{"v":354690,"d":"354,690.00"}]
["云南省体育局","530000210000000046117","社会保障缴费","2101103","公务员医疗补助","30111","公务员医疗补助缴费",{"v":669969.25,"d":"669,969.25"},{"v":669969.25,"d":"669,969.25"},{"v":167492.31,"d":"167,492.31"},null,{"v":502476.94,"d":"502,476.94"}]
["云南省体育局","530000210000000046117","社会保障缴费","2101199","其他行政事业单位医疗支出","30112","其他社会保障缴费",{"v":50778,"d":"50,778.00"},{"v":50778,"d":"50,778.00"},{"v":50778,"d":"50,778.00"}]
["云南省体育局","530000210000000046119","住房公积金","2210201","住房公积金","30113","住房公积金",{"v":1940576.39,"d":"1,940,576.39"},{"v":980576.39,"d":"980,576.39"},{"v":245144.1,"d":"245,144.10"},null,{"v":735432.29,"d":"735,432.29"},{"$nulls":5},{"v":960000,"d":"960,000.00"},{"$nulls":4},{"v":960000,"d":"960,000.00"}]
["云南省体育局","530000210000000046122","公车购置及运维费","2070301","行政运行","30231","公务用车运行维护费",{"v":105400,"d":"105,400.00"},{"v":105400,"d":"105,400.00"},null,null,{"v":105400,"d":"105,400.00"}]
["云南省体育局","530000210000000046124","公务接待费","2070301","行政运行","30217","公务接待费",{"v":72900,"d":"72,900.00"},{"v":72900,"d":"72,900.00"},{"v":18225,"d":"18,225.00"},null,{"v":54675,"d":"54,675.00"}]
["云南省体育局","530000210000000046125","行政人员公务交通补贴","2070301","行政运行","30239","其他交通费用",{"v":636930,"d":"636,930.00"},{"v":636930,"d":"636,930.00"},{"v":159232.5,"d":"159,232.50"},null,{"v":477697.5,"d":"477,697.50"}]
["云南省体育局","530000210000000046126","工会经费","2070301","行政运行","30228","工会经费",{"v":164367.44,"d":"164,367.44"},{"v":164367.44,"d":"164,367.44"},{"v":41091.86,"d":"41,091.86"},null,{"v":123275.58,"d":"123,275.58"}]
["云南省体育局","530000210000000046127","一般公用经费","2070301","行政运行","30201","办公费",{"v":200000,"d":"200,000.00"},{"v":200000,"d":"200,000.00"},null,null,{"v":200000,"d":"200,000.00"}]
["云南省体育局","530000210000000046127","一般公用经费","2070301","行政运行","30202","印刷费",{"v":40000,"d":"40,000.00"},{"v":40000,"d":"40,000.00"},{"v":10000,"d":"10,000.00"},null,{"v":30000,"d":"30,000.00"}]
["云南省体育局","530000210000000046127","一般公用经费","2070301","行政运行","30205","水费",{"v":32300,"d":"32,300.00"},{"v":32300,"d":"32,300.00"},{"v":8075,"d":"8,075.00"},null,{"v":24225,"d":"24,225.00"}]
["云南省体育局","530000210000000046127","一般公用经费","2070301","行政运行","30206","电费",{"v":42000,"d":"42,000.00"},{"v":42000,"d":"42,000.00"},{"v":10500,"d":"10,500.00"},null,{"v":31500,"d":"31,500.00"}]
["云南省体育局","530000210000000046127","一般公用经费","2070301","行政运行","30207","邮电费",{"v":40000,"d":"40,000.00"},{"v":40000,"d":"40,000.00"},{"v":10000,"d":"10,000.00"},null,{"v":30000,"d":"30,000.00"}]
["云南省体育局","530000210000000046127","一般公用经费","2070301","行政运行","30209","物业管理费",{"v":200000,"d":"200,000.00"},{"v":200000,"d":"200,000.00"},{"v":50000,"d":"50,000.00"},null,{"v":150000,"d":"150,000.00"}]
["云南省体育局","530000210000000046127","一般公用经费","2070301","行政运行","30211","差旅费",{"v":447259.96,"d":"447,259.96"},{"v":447259.96,"d":"447,259.96"},{"v":111814.99,"d":"111,814.99"},null,{"v":335444.97,"d":"335,444.97"}]
["云南省体育局","530000210000000046127","一般公用经费","2070301","行政运行","30213","维修（护）费",{"v":27000,"d":"27,000.00"},{"v":27000,"d":"27,000.00"},{"v":6750,"d":"6,750.00"},null,{"v":20250,"d":"20,250.00"}]
["云南省体育局","530000210000000046127","一般公用经费","2070301","行政运行","30215","会议费",{"v":72250,"d":"72,250.00"},{"v":72250,"d":"72,250.00"},{"v":18062.5,"d":"18,062.50"},null,{"v":54187.5,"d":"54,187.50"}]
["云南省体育局","530000210000000046127","一般公用经费","2070301","行政运行","30216","培训费",{"v":14038.85,"d":"14,038.85"},{"v":14038.85,"d":"14,038.85"},{"v":3509.71,"d":"3,509.71"},null,{"v":10529.14,"d":"10,529.14"}]
["云南省体育局","530000210000000046127","一般公用经费","2070301","行政运行","30226","劳务费",{"v":4505,"d":"4,505.00"},{"v":4505,"d":"4,505.00"},{"v":1126.25,"d":"1,126.25"},null,{"v":3378.75,"d":"3,378.75"}]
["云南省体育局","530000210000000046127","一般公用经费","2070301","行政运行","30227","委托业务费",{"v":50000,"d":"50,000.00"},{"v":50000,"d":"50,000.00"},{"v":12500,"d":"12,500.00"},null,{"v":37500,"d":"37,500.00"}]
["云南省体育局","530000210000000046127","一般公用经费","2070301","行政运行","30239","其他交通费用",{"v":60660,"d":"60,660.00"},{"v":60660,"d":"60,660.00"},{"v":15165,"d":"15,165.00"},null,{"v":45495,"d":"45,495.00"}]
["云南省体育局","530000210000000046127","一般公用经费","2070301","行政运行","30299","其他商品和服务支出",{"v":312860,"d":"312,860.00"},{"v":266800,"d":"266,800.00"},{"v":66700,"d":"66,700.00"},null,{"v":200100,"d":"200,100.00"},{"$nulls":5},{"v":46060,"d":"46,060.00"},{"$nulls":4},{"v":46060,"d":"46,060.00"}]
["云南省体育局","530000210000000046127","一般公用经费","2070301","行政运行","31002","办公设备购置",{"v":103940,"d":"103,940.00"},{"$nulls":9},{"v":103940,"d":"103,940.00"},{"$nulls":4},{"v":103940,"d":"103,940.00"}]
["云南省体育局","530000210000000046127","一般公用经费","2080501","行政单位离退休","30299","其他商品和服务支出",{"v":51300,"d":"51,300.00"},{"v":51300,"d":"51,300.00"},{"v":12825,"d":"12,825.00"},null,{"v":38475,"d":"38,475.00"}]
["云南省体育局","530000241100002221013","行政人员绩效奖","2070301","行政运行","30103","奖金",{"v":1715742,"d":"1,715,742.00"},{"v":1715742,"d":"1,715,742.00"},{"v":428935.5,"d":"428,935.50"},null,{"v":1286806.5,"d":"1,286,806.50"}]
["云南省体育局","530000261100005174053","重大体育比赛奖励项目经费","2070306","体育训练","30103","奖金",{"v":1230600,"d":"1,230,600.00"},{"v":1230600,"d":"1,230,600.00"},null,null,{"v":1230600,"d":"1,230,600.00"}]
["合  计",{"$nulls":6},{"v":17759664.45,"d":"17,759,664.45"},{"v":16649664.45,"d":"16,649,664.45"},{"v":3816499.62,"d":"3,816,499.62"},null,{"v":12833164.83,"d":"12,833,164.83"},{"$nulls":5},{"v":1110000,"d":"1,110,000.00"},{"$nulls":4},{"v":1110000,"d":"1,110,000.00"}]

{"sheet":"部门项目支出预算表05-1","index":7,"n_rows":22,"n_cols":23,"rows_kept":22,"merged":[[1,0,1,22],[2,0,2,8],[3,0,5,0],[3,1,5,1],[3,2,5,2],[3,3,5,3],[3,4,5,4],[3,5,5,5],[3,6,5,6],[3,7,5,7],[3,8,5,8],[3,9,3,12],[3,13,3,15],[3,16,5,16],[3,17,3,22],[4,9,4,10],[4,11,5,11],[4,12,5,12],[4,13,5,13],[4,14,5,14],[4,15,5,15],[4,17,5,17],[4,18,5,18],[4,19,5,19],[4,20,5,20],[4,21,5,21],[4,22,5,22],[21,0,21,7]]}
[{"$nulls":22},"预算05-1表"]
["2026年单位项目支出预算表"]
[{"$f":"\"单位名称：\"&\"云南省体育局\"","v":"单位名称：云南省体育局"},"单位名称：云南省体育局",{"$nulls":20},"单位：元"]
["项目分类","项目代码","项目名称","项目单位","功能科目编码","功能科目名称","经济科目编码","经济科目名称","合计","本年拨款",{"$nulls":3},"财政拨款结转结余",null,null,"财政专户管理资金","单位资金"]
[{"$nulls":9},"一般公共预算",null,"政府性基金预算","国有资本经营预算","一般公共预算","政府性基金预算","国有资本经营预算",null,"小计","事业收入","事业单位\n经营收入","上级补助收入","附属单位上缴收入","其他收入"]
[{"$nulls":9},"小计","其中：本次下达"]
[1,2,3,4,5,6,7,8,9,10,11,12,13,14,15,16,17,18,19,20,21,22,23]
[null,null,"单位预算机动经费",{"$nulls":5},{"v":2100000,"d":"2,100,000.00"},{"v":2100000,"d":"2,100,000.00"}]
["其他运转类","530000241100002016960","单位预算机动经费","云南省体育局","2070306","体育训练","30211","差旅费",{"v":1700000,"d":"1,700,000.00"},{"v":1700000,"d":"1,700,000.00"}]
["其他运转类","530000241100002016960","单位预算机动经费","云南省体育局","2070306","体育训练","30213","维修（护）费",{"v":400000,"d":"400,000.00"},{"v":400000,"d":"400,000.00"}]
[null,null,"省体育局（省本级）体彩公益金专项经费",{"$nulls":5},{"v":59173702.98,"d":"59,173,702.98"},null,null,{"v":49330000,"d":"49,330,000.00"},null,null,{"v":9843702.98,"d":"9,843,702.98"}]
["事业发展类","530000221100000196709","省体育局（省本级）体彩公益金专项经费","云南省体育局","2296003","用于体育事业的彩票公益金支出","30211","差旅费",{"v":135000,"d":"135,000.00"},null,null,{"v":135000,"d":"135,000.00"}]
["事业发展类","530000221100000196709","省体育局（省本级）体彩公益金专项经费","云南省体育局","2296003","用于体育事业的彩票公益金支出","30216","培训费",{"v":300000,"d":"300,000.00"},null,null,{"v":300000,"d":"300,000.00"}]
["事业发展类","530000221100000196709","省体育局（省本级）体彩公益金专项经费","云南省体育局","2296003","用于体育事业的彩票公益金支出","30218","专用材料费",{"v":365000,"d":"365,000.00"},null,null,{"v":365000,"d":"365,000.00"}]
["事业发展类","530000221100000196709","省体育局（省本级）体彩公益金专项经费","云南省体育局","2296003","用于体育事业的彩票公益金支出","30227","委托业务费",{"v":58373702.98,"d":"58,373,702.98"},null,null,{"v":48530000,"d":"48,530,000.00"},null,null,{"v":9843702.98,"d":"9,843,702.98"}]
[null,null,"省委组织部公务员工作专项经费",{"$nulls":5},{"v":60000,"d":"60,000.00"},{"v":60000,"d":"60,000.00"},{"v":60000,"d":"60,000.00"}]
["专项业务类","530000261100005172653","省委组织部公务员工作专项经费","云南省体育局","2070302","一般行政管理事务","30305","生活补助",{"v":60000,"d":"60,000.00"},{"v":60000,"d":"60,000.00"},{"v":60000,"d":"60,000.00"}]
[null,null,"提前下达2025年中央集中彩票公益金支持体育事业省本级专项资金",{"$nulls":5},{"v":2400000,"d":"2,400,000.00"},{"$nulls":5},{"v":2400000,"d":"2,400,000.00"}]
["事业发展类","530000251100003864205","提前下达2025年中央集中彩票公益金支持体育事业省本级专项资金","云南省体育局","2296003","用于体育事业的彩票公益金支出","30227","委托业务费",{"v":2400000,"d":"2,400,000.00"},{"$nulls":5},{"v":2400000,"d":"2,400,000.00"}]
[null,null,"因公出国（境）专项经费",{"$nulls":5},{"v":291000,"d":"291,000.00"},{"v":291000,"d":"291,000.00"},{"v":291000,"d":"291,000.00"}]
["因公出国（境）经费","530000210000000043103","因公出国（境）专项经费","云南省体育局","2070309","体育交流与合作","30212","因公出国（境）费用",{"v":291000,"d":"291,000.00"},{"v":291000,"d":"291,000.00"},{"v":291000,"d":"291,000.00"}]
["合  计",{"$nulls":7},{"v":64024702.98,"d":"64,024,702.98"},{"v":2451000,"d":"2,451,000.00"},{"v":351000,"d":"351,000.00"},{"v":49330000,"d":"49,330,000.00"},null,null,{"v":12243702.98,"d":"12,243,702.98"}]

{"sheet":"部门项目支出绩效目标表05-2","index":8,"n_rows":76,"n_cols":10,"rows_kept":76,"merged":[[1,0,1,9],[2,0,2,7],[6,0,53,0],[6,1,53,1],[54,0,60,0],[54,1,60,1],[61,0,65,0],[61,1,65,1],[66,0,75,0],[66,1,75,1]]}
[{"$nulls":9},"预算05-2表"]
["2026年单位项目支出绩效目标表"]
[{"$f":"\"单位名称：\"&\"云南省体育局\"","v":"单位名称：云南省体育局"}]
["单位名称、项目名称","项目年度绩效目标","一级指标","二级指标","三级指标","指标性质","指标值","度量单位","指标属性","指标内容"]
[1,2,3,4,5,6,7,8,9,10]
["云南省体育局"]
["省体育局（省本级）体彩公益金专项经费","省本级体彩公益金项目组织实施备战全运会经费2项，大型体育赛事活动专项经费5项、青少年体育竞赛专项经费1项、体育产业发展项目12项，体育领域意识形态专项经费3项，体育事业统计专项经费1项、体育专业人才培养专项经费1项，预算管理专项经费2项。\n实现目标：\n1、聚焦本年全民健身重点工作，结合巡视问题整改统筹安排。一是健身场地设施填空白补短板，配建适老适小健身器材。二是聚焦打造省级全民健身赛事品牌，创新举办云南省建设南亚东南亚辐射中心体育交流大赛和民族团结杯气排球联赛，积极申请作为第二届全国全民健身大赛（西南区）牵头省份，承办西南区开闭幕式及相关项目比赛。三是加大全民健身科研与宣传力度。深化体医融合建设成果，开展“运动促进健康”体育为民、惠民服务项目；对接下步体育强国指标体系，推动常态化国民体质监测及国家体育锻炼标准达标测验工作。\n2、不断提高青少年体育训练质量和效益，推动竞技体育后备人才培养工作科学高效开展，为建设体育强国、健康中国注入新的生机与活力。资金安排以支持省体育局各训练单位、各承办省级青少年项目锦标赛比赛、支持承接我省组队参加全国青少年运动会参赛和参加“奔跑吧少年”全国青少年阳光体育大会组团参赛、建设体育后备人才基地为重点，为青少年学生提供健康的运动、娱乐和环境。\n3、进一步推动云南省体育产业高质量发展，激发体育消费潜力。一是积极培育体育领域优质项目，着力培育体育旅游精品项目、体育文化优秀项目，丰富体育产业业态。二是积极支持户外运动产业发展，大力推广户外运动线路，满足群众多样化体育需求。三是大力发展体育相关产业。大力发展体育竞赛表演产业，充分发挥其带动作用，进一步促进体育消费。四是积极培育体育用品制造业，完善体育产业链条。五是大力宣传推广云南体育，借助南博会、体博会等展会平台，提升云南体育的知名度和影响力。\n4、在上一年度的基础上，利用媒体自身集成优势，整合媒体资源对云南体育工作进行宣传报道。重点开展全民健身宣传、《云南体育》宣传专栏、舆情应对与引导、云南体育品牌推广、云南省系列马拉松整体品牌策划等利用央媒、省内知名媒体平台进行全方面、多角度宣传，进一步提升云南体育形象宣传，增强社会关注度、参与度。","产出指标","数量指标","七彩云南健身宣传文稿撰写数量",">=","50","篇","定量指标","反映新媒体稿、央级及省级媒体稿等投放的数量情况。"]
["省体育局（省本级）体彩公益金专项经费","省本级体彩公益金项目组织实施备战全运会经费2项，大型体育赛事活动专项经费5项、青少年体育竞赛专项经费1项、体育产业发展项目12项，体育领域意识形态专项经费3项，体育事业统计专项经费1项、体育专业人才培养专项经费1项，预算管理专项经费2项。\n实现目标：\n1、聚焦本年全民健身重点工作，结合巡视问题整改统筹安排。一是健身场地设施填空白补短板，配建适老适小健身器材。二是聚焦打造省级全民健身赛事品牌，创新举办云南省建设南亚东南亚辐射中心体育交流大赛和民族团结杯气排球联赛，积极申请作为第二届全国全民健身大赛（西南区）牵头省份，承办西南区开闭幕式及相关项目比赛。三是加大全民健身科研与宣传力度。深化体医融合建设成果，开展“运动促进健康”体育为民、惠民服务项目；对接下步体育强国指标体系，推动常态化国民体质监测及国家体育锻炼标准达标测验工作。\n2、不断提高青少年体育训练质量和效益，推动竞技体育后备人才培养工作科学高效开展，为建设体育强国、健康中国注入新的生机与活力。资金安排以支持省体育局各训练单位、各承办省级青少年项目锦标赛比赛、支持承接我省组队参加全国青少年运动会参赛和参加“奔跑吧少年”全国青少年阳光体育大会组团参赛、建设体育后备人才基地为重点，为青少年学生提供健康的运动、娱乐和环境。\n3、进一步推动云南省体育产业高质量发展，激发体育消费潜力。一是积极培育体育领域优质项目，着力培育体育旅游精品项目、体育文化优秀项目，丰富体育产业业态。二是积极支持户外运动产业发展，大力推广户外运动线路，满足群众多样化体育需求。三是大力发展体育相关产业。大力发展体育竞赛表演产业，充分发挥其带动作用，进一步促进体育消费。四是积极培育体育用品制造业，完善体育产业链条。五是大力宣传推广云南体育，借助南博会、体博会等展会平台，提升云南体育的知名度和影响力。\n4、在上一年度的基础上，利用媒体自身集成优势，整合媒体资源对云南体育工作进行宣传报道。重点开展全民健身宣传、《云南体育》宣传专栏、舆情应对与引导、云南体育品牌推广、云南省系列马拉松整体品牌策划等利用央媒、省内知名媒体平台进行全方面、多角度宣传，进一步提升云南体育形象宣传,增强社会关注度、参与度。","产出指标","数量指标","健身宣传新媒体及网络平台推送",">=","550","条","定量指标","反映七彩云南全民健身宣传平台发布推送的数量情况。"]
["省体育局（省本级）体彩公益金专项经费","省本级体彩公益金项目组织实施备战全运会经费2项，大型体育赛事活动专项经费5项、青少年体育竞赛专项经费1项、体育产业发展项目12项，体育领域意识形态专项经费3项，体育事业统计专项经费1项、体育专业人才培养专项经费1项，预算管理专项经费2项。\n实现目标：\n1、聚焦本年全民健身重点工作，结合巡视问题整改统筹安排。一是健身场地设施填空白补短板，配建适老适小健身器材。二是聚焦打造省级全民健身赛事品牌，创新举办云南省建设南亚东南亚辐射中心体育交流大赛和民族团结杯气排球联赛，积极申请作为第二届全国全民健身大赛（西南区）牵头省份，承办西南区开闭幕式及相关项目比赛。三是加大全民健身科研与宣传力度。深化体医融合建设成果，开展“运动促进健康”体育为民、惠民服务项目；对接下步体育强国指标体系，推动常态化国民体质监测及国家体育锻炼标准达标测验工作。\n2、不断提高青少年体育训练质量和效益，推动竞技体育后备人才培养工作科学高效开展，为建设体育强国、健康中国注入新的生机与活力。资金安排以支持省体育局各训练单位、各承办省级青少年项目锦标赛比赛、支持承接我省组队参加全国青少年运动会参赛和参加“奔跑吧少年”全国青少年阳光体育大会组团参赛、建设体育后备人才基地为重点，为青少年学生提供健康的运动、娱乐和环境。\n3、进一步推动云南省体育产业高质量发展，激发体育消费潜力。一是积极培育体育领域优质项目，着力培育体育旅游精品项目、体育文化优秀项目，丰富体育产业业态。二是积极支持户外运动产业发展，大力推广户外运动线路，满足群众多样化体育需求。三是大力发展体育相关产业。大力发展体育竞赛表演产业，充分发挥其带动作用，进一步促进体育消费。四是积极培育体育用品制造业，完善体育产业链条。五是大力宣传推广云南体育，借助南博会、体博会等展会平台，提升云南体育的知名度和影响力。\n4、在上一年度的基础上，利用媒体自身集成优势，整合媒体资源对云南体育工作进行宣传报道。重点开展全民健身宣传、《云南体育》宣传专栏、舆情应对与引导、云南体育品牌推广、云南省系列马拉松整体品牌策划等利用央媒、省内知名媒体平台进行全方面、多角度宣传，进一步提升云南体育形象宣传,增强社会关注度、参与度。","产出指标","数量指标","体育微信号（视频号）稿件推送",">=","1000","条","定量指标","《云南体育》微信公众号（含视频号）运营维护稿件推送的数量情况。"]
["省体育局（省本级）体彩公益金专项经费","省本级体彩公益金项目组织实施备战全运会经费2项，大型体育赛事活动专项经费5项、青少年体育竞赛专项经费1项、体育产业发展项目12项，体育领域意识形态专项经费3项，体育事业统计专项经费1项、体育专业人才培养专项经费1项，预算管理专项经费2项。\n实现目标：\n1、聚焦本年全民健身重点工作，结合巡视问题整改统筹安排。一是健身场地设施填空白补短板，配建适老适小健身器材。二是聚焦打造省级全民健身赛事品牌，创新举办云南省建设南亚东南亚辐射中心体育交流大赛和民族团结杯气排球联赛，积极申请作为第二届全国全民健身大赛（西南区）牵头省份，承办西南区开闭幕式及相关项目比赛。三是加大全民健身科研与宣传力度。深化体医融合建设成果，开展“运动促进健康”体育为民、惠民服务项目；对接下步体育强国指标体系，推动常态化国民体质监测及国家体育锻炼标准达标测验工作。\n2、不断提高青少年体育训练质量和效益，推动竞技体育后备人才培养工作科学高效开展，为建设体育强国、健康中国注入新的生机与活力。资金安排以支持省体育局各训练单位、各承办省级青少年项目锦标赛比赛、支持承接我省组队参加全国青少年运动会参赛和参加“奔跑吧少年”全国青少年阳光体育大会组团参赛、建设体育后备人才基地为重点，为青少年学生提供健康的运动、娱乐和环境。\n3、进一步推动云南省体育产业高质量发展，激发体育消费潜力。一是积极培育体育领域优质项目，着力培育体育旅游精品项目、体育文化优秀项目，丰富体育产业业态。二是积极支持户外运动产业发展，大力推广户外运动线路，满足群众多样化体育需求。三是大力发展体育相关产业。大力发展体育竞赛表演产业，充分发挥其带动作用，进一步促进体育消费。四是积极培育体育用品制造业，完善体育产业链条。五是大力宣传推广云南体育，借助南博会、体博会等展会平台，提升云南体育的知名度和影响力。\n4、在上一年度的基础上，利用媒体自身集成优势，整合媒体资源对云南体育工作进行宣传报道。重点开展全民健身宣传、《云南体育》宣传专栏、舆情应对与引导、云南体育品牌推广、云南省系列马拉松整体品牌策划等利用央媒、省内知名媒体平台进行全方面、多角度宣传，进一步提升云南体育形象宣传,增强社会关注度、参与度。","产出指标","数量指标","云南体育宣传及舆情分析报告",">=","15","小时","定量指标","反映开展云南体育宣传及舆情分析报告数量的情况。"]
["省体育局（省本级）体彩公益金专项经费","省本级体彩公益金项目组织实施备战全运会经费2项，大型体育赛事活动专项经费5项、青少年体育竞赛专项经费1项、体育产业发展项目12项，体育领域意识形态专项经费3项，体育事业统计专项经费1项、体育专业人才培养专项经费1项，预算管理专项经费2项。\n实现目标：\n1、聚焦本年全民健身重点工作，结合巡视问题整改统筹安排。一是健身场地设施填空白补短板，配建适老适小健身器材。二是聚焦打造省级全民健身赛事品牌，创新举办云南省建设南亚东南亚辐射中心体育交流大赛和民族团结杯气排球联赛，积极申请作为第二届全国全民健身大赛（西南区）牵头省份，承办西南区开闭幕式及相关项目比赛。三是加大全民健身科研与宣传力度。深化体医融合建设成果，开展“运动促进健康”体育为民、惠民服务项目；对接下步体育强国指标体系，推动常态化国民体质监测及国家体育锻炼标准达标测验工作。\n2、不断提高青少年体育训练质量和效益，推动竞技体育后备人才培养工作科学高效开展，为建设体育强国、健康中国注入新的生机与活力。资金安排以支持省体育局各训练单位、各承办省级青少年项目锦标赛比赛、支持承接我省组队参加全国青少年运动会参赛和参加“奔跑吧少年”全国青少年阳光体育大会组团参赛、建设体育后备人才基地为重点，为青少年学生提供健康的运动、娱乐和环境。\n3、进一步推动云南省体育产业高质量发展，激发体育消费潜力。一是积极培育体育领域优质项目，着力培育体育旅游精品项目、体育文化优秀项目，丰富体育产业业态。二是积极支持户外运动产业发展，大力推广户外运动线路，满足群众多样化体育需求。三是大力发展体育相关产业。大力发展体育竞赛表演产业，充分发挥其带动作用，进一步促进体育消费。四是积极培育体育用品制造业，完善体育产业链条。五是大力宣传推广云南体育，借助南博会、体博会等展会平台，提升云南体育的知名度和影响力。\n4、在上一年度的基础上，利用媒体自身集成优势，整合媒体资源对云南体育工作进行宣传报道。重点开展全民健身宣传、《云南体育》宣传专栏、舆情应对与引导、云南体育品牌推广、云南省系列马拉松整体品牌策划等利用央媒、省内知名媒体平台进行全方面、多角度宣传，进一步提升云南体育形象宣传,增强社会关注度、参与度。","产出指标","数量指标","云南体育品牌推广视频",">=","3","期","定量指标","反映云南体育品牌推广视频数量的情况。"]
["省体育局（省本级）体彩公益金专项经费","省本级体彩公益金项目组织实施备战全运会经费2项，大型体育赛事活动专项经费5项、青少年体育竞赛专项经费1项、体育产业发展项目12项，体育领域意识形态专项经费3项，体育事业统计专项经费1项、体育专业人才培养专项经费1项，预算管理专项经费2项。\n实现目标：\n1、聚焦本年全民健身重点工作，结合巡视问题整改统筹安排。一是健身场地设施填空白补短板，配建适老适小健身器材。二是聚焦打造省级全民健身赛事品牌，创新举办云南省建设南亚东南亚辐射中心体育交流大赛和民族团结杯气排球联赛，积极申请作为第二届全国全民健身大赛（西南区）牵头省份，承办西南区开闭幕式及相关项目比赛。三是加大全民健身科研与宣传力度。深化体医融合建设成果，开展“运动促进健康”体育为民、惠民服务项目；对接下步体育强国指标体系，推动常态化国民体质监测及国家体育锻炼标准达标测验工作。\n2、不断提高青少年体育训练质量和效益，推动竞技体育后备人才培养工作科学高效开展，为建设体育强国、健康中国注入新的生机与活力。资金安排以支持省体育局各训练单位、各承办省级青少年项目锦标赛比赛、支持承接我省组队参加全国青少年运动会参赛和参加“奔跑吧少年”全国青少年阳光体育大会组团参赛、建设体育后备人才基地为重点，为青少年学生提供健康的运动、娱乐和环境。\n3、进一步推动云南省体育产业高质量发展，激发体育消费潜力。一是积极培育体育领域优质项目，着力培育体育旅游精品项目、体育文化优秀项目，丰富体育产业业态。二是积极支持户外运动产业发展，大力推广户外运动线路，满足群众多样化体育需求。三是大力发展体育相关产业。大力发展体育竞赛表演产业，充分发挥其带动作用，进一步促进体育消费。四是积极培育体育用品制造业，完善体育产业链条。五是大力宣传推广云南体育，借助南博会、体博会等展会平台，提升云南体育的知名度和影响力。\n4、在上一年度的基础上，利用媒体自身集成优势，整合媒体资源对云南体育工作进行宣传报道。重点开展全民健身宣传、《云南体育》宣传专栏、舆情应对与引导、云南体育品牌推广、云南省系列马拉松整体品牌策划等利用央媒、省内知名媒体平台进行全方面、多角度宣传，进一步提升云南体育形象宣传,增强社会关注度、参与度。","产出指标","数量指标","制作重点电视栏目、短视频节目",">=","210","期","定量指标","反映宣传短视频节目制作的情况。"]
["省体育局（省本级）体彩公益金专项经费","省本级体彩公益金项目组织实施备战全运会经费2项，大型体育赛事活动专项经费5项、青少年体育竞赛专项经费1项、体育产业发展项目12项，体育领域意识形态专项经费3项，体育事业统计专项经费1项、体育专业人才培养专项经费1项，预算管理专项经费2项。\n实现目标：\n1、聚焦本年全民健身重点工作，结合巡视问题整改统筹安排。一是健身场地设施填空白补短板，配建适老适小健身器材。二是聚焦打造省级全民健身赛事品牌，创新举办云南省建设南亚东南亚辐射中心体育交流大赛和民族团结杯气排球联赛，积极申请作为第二届全国全民健身大赛（西南区）牵头省份，承办西南区开闭幕式及相关项目比赛。三是加大全民健身科研与宣传力度。深化体医融合建设成果，开展“运动促进健康”体育为民、惠民服务项目；对接下步体育强国指标体系，推动常态化国民体质监测及国家体育锻炼标准达标测验工作。\n2、不断提高青少年体育训练质量和效益，推动竞技体育后备人才培养工作科学高效开展，为建设体育强国、健康中国注入新的生机与活力。资金安排以支持省体育局各训练单位、各承办省级青少年项目锦标赛比赛、支持承接我省组队参加全国青少年运动会参赛和参加“奔跑吧少年”全国青少年阳光体育大会组团参赛、建设体育后备人才基地为重点，为青少年学生提供健康的运动、娱乐和环境。\n3、进一步推动云南省体育产业高质量发展，激发体育消费潜力。一是积极培育体育领域优质项目，着力培育体育旅游精品项目、体育文化优秀项目，丰富体育产业业态。二是积极支持户外运动产业发展，大力推广户外运动线路，满足群众多样化体育需求。三是大力发展体育相关产业。大力发展体育竞赛表演产业，充分发挥其带动作用，进一步促进体育消费。四是积极培育体育用品制造业，完善体育产业链条。五是大力宣传推广云南体育，借助南博会、体博会等展会平台，提升云南体育的知名度和影响力。\n4、在上一年度的基础上，利用媒体自身集成优势，整合媒体资源对云南体育工作进行宣传报道。重点开展全民健身宣传、《云南体育》宣传专栏、舆情应对与引导、云南体育品牌推广、云南省系列马拉松整体品牌策划等利用央媒、省内知名媒体平台进行全方面、多角度宣传，进一步提升云南体育形象宣传,增强社会关注度、参与度。","产出指标","数量指标","足球专题报道",">=","10","期","定量指标","反映足球专题报道次数的情况。"]
["省体育局（省本级）体彩公益金专项经费","省本级体彩公益金项目组织实施备战全运会经费2项，大型体育赛事活动专项经费5项、青少年体育竞赛专项经费1项、体育产业发展项目12项，体育领域意识形态专项经费3项，体育事业统计专项经费1项、体育专业人才培养专项经费1项，预算管理专项经费2项。\n实现目标：\n1、聚焦本年全民健身重点工作，结合巡视问题整改统筹安排。一是健身场地设施填空白补短板，配建适老适小健身器材。二是聚焦打造省级全民健身赛事品牌，创新举办云南省建设南亚东南亚辐射中心体育交流大赛和民族团结杯气排球联赛，积极申请作为第二届全国全民健身大赛（西南区）牵头省份，承办西南区开闭幕式及相关项目比赛。三是加大全民健身科研与宣传力度。深化体医融合建设成果，开展“运动促进健康”体育为民、惠民服务项目；对接下步体育强国指标体系，推动常态化国民体质监测及国家体育锻炼标准达标测验工作。\n2、不断提高青少年体育训练质量和效益，推动竞技体育后备人才培养工作科学高效开展，为建设体育强国、健康中国注入新的生机与活力。资金安排以支持省体育局各训练单位、各承办省级青少年项目锦标赛比赛、支持承接我省组队参加全国青少年运动会参赛和参加“奔跑吧少年”全国青少年阳光体育大会组团参赛、建设体育后备人才基地为重点，为青少年学生提供健康的运动、娱乐和环境。\n3、进一步推动云南省体育产业高质量发展，激发体育消费潜力。一是积极培育体育领域优质项目，着力培育体育旅游精品项目、体育文化优秀项目，丰富体育产业业态。二是积极支持户外运动产业发展，大力推广户外运动线路，满足群众多样化体育需求。三是大力发展体育相关产业。大力发展体育竞赛表演产业，充分发挥其带动作用，进一步促进体育消费。四是积极培育体育用品制造业，完善体育产业链条。五是大力宣传推广云南体育，借助南博会、体博会等展会平台，提升云南体育的知名度和影响力。\n4、在上一年度的基础上，利用媒体自身集成优势，整合媒体资源对云南体育工作进行宣传报道。重点开展全民健身宣传、《云南体育》宣传专栏、舆情应对与引导、云南体育品牌推广、云南省系列马拉松整体品牌策划等利用央媒、省内知名媒体平台进行全方面、多角度宣传，进一步提升云南体育形象宣传,增强社会关注度、参与度。","产出指标","数量指标","扶持体育产业发展项目",">=","5","项","定量指标","反映扶持体育产业发展项目情况。"]
["省体育局（省本级）体彩公益金专项经费","省本级体彩公益金项目组织实施备战全运会经费2项，大型体育赛事活动专项经费5项、青少年体育竞赛专项经费1项、体育产业发展项目12项，体育领域意识形态专项经费3项，体育事业统计专项经费1项、体育专业人才培养专项经费1项，预算管理专项经费2项。\n实现目标：\n1、聚焦本年全民健身重点工作，结合巡视问题整改统筹安排。一是健身场地设施填空白补短板，配建适老适小健身器材。二是聚焦打造省级全民健身赛事品牌，创新举办云南省建设南亚东南亚辐射中心体育交流大赛和民族团结杯气排球联赛，积极申请作为第二届全国全民健身大赛（西南区）牵头省份，承办西南区开闭幕式及相关项目比赛。三是加大全民健身科研与宣传力度。深化体医融合建设成果，开展“运动促进健康”体育为民、惠民服务项目；对接下步体育强国指标体系，推动常态化国民体质监测及国家体育锻炼标准达标测验工作。\n2、不断提高青少年体育训练质量和效益，推动竞技体育后备人才培养工作科学高效开展，为建设体育强国、健康中国注入新的生机与活力。资金安排以支持省体育局各训练单位、各承办省级青少年项目锦标赛比赛、支持承接我省组队参加全国青少年运动会参赛和参加“奔跑吧少年”全国青少年阳光体育大会组团参赛、建设体育后备人才基地为重点，为青少年学生提供健康的运动、娱乐和环境。\n3、进一步推动云南省体育产业高质量发展，激发体育消费潜力。一是积极培育体育领域优质项目，着力培育体育旅游精品项目、体育文化优秀项目，丰富体育产业业态。二是积极支持户外运动产业发展，大力推广户外运动线路，满足群众多样化体育需求。三是大力发展体育相关产业。大力发展体育竞赛表演产业，充分发挥其带动作用，进一步促进体育消费。四是积极培育体育用品制造业，完善体育产业链条。五是大力宣传推广云南体育，借助南博会、体博会等展会平台，提升云南体育的知名度和影响力。\n4、在上一年度的基础上，利用媒体自身集成优势，整合媒体资源对云南体育工作进行宣传报道。重点开展全民健身宣传、《云南体育》宣传专栏、舆情应对与引导、云南体育品牌推广、云南省系列马拉松整体品牌策划等利用央媒、省内知名媒体平台进行全方面、多角度宣传，进一步提升云南体育形象宣传,增强社会关注度、参与度。","产出指标","数量指标","获取体育产业统计调查问卷数量",">=","1000","份","定量指标","反映我省体育产业统计调查工作调查问卷情况。"]
["省体育局（省本级）体彩公益金专项经费","省本级体彩公益金项目组织实施备战全运会经费2项，大型体育赛事活动专项经费5项、青少年体育竞赛专项经费1项、体育产业发展项目12项，体育领域意识形态专项经费3项，体育事业统计专项经费1项、体育专业人才培养专项经费1项，预算管理专项经费2项。\n实现目标：\n1、聚焦本年全民健身重点工作，结合巡视问题整改统筹安排。一是健身场地设施填空白补短板，配建适老适小健身器材。二是聚焦打造省级全民健身赛事品牌，创新举办云南省建设南亚东南亚辐射中心体育交流大赛和民族团结杯气排球联赛，积极申请作为第二届全国全民健身大赛（西南区）牵头省份，承办西南区开闭幕式及相关项目比赛。三是加大全民健身科研与宣传力度。深化体医融合建设成果，开展“运动促进健康”体育为民、惠民服务项目；对接下步体育强国指标体系，推动常态化国民体质监测及国家体育锻炼标准达标测验工作。\n2、不断提高青少年体育训练质量和效益，推动竞技体育后备人才培养工作科学高效开展，为建设体育强国、健康中国注入新的生机与活力。资金安排以支持省体育局各训练单位、各承办省级青少年项目锦标赛比赛、支持承接我省组队参加全国青少年运动会参赛和参加“奔跑吧少年”全国青少年阳光体育大会组团参赛、建设体育后备人才基地为重点，为青少年学生提供健康的运动、娱乐和环境。\n3、进一步推动云南省体育产业高质量发展，激发体育消费潜力。一是积极培育体育领域优质项目，着力培育体育旅游精品项目、体育文化优秀项目，丰富体育产业业态。二是积极支持户外运动产业发展，大力推广户外运动线路，满足群众多样化体育需求。三是大力发展体育相关产业。大力发展体育竞赛表演产业，充分发挥其带动作用，进一步促进体育消费。四是积极培育体育用品制造业，完善体育产业链条。五是大力宣传推广云南体育，借助南博会、体博会等展会平台，提升云南体育的知名度和影响力。\n4、在上一年度的基础上，利用媒体自身集成优势，整合媒体资源对云南体育工作进行宣传报道。重点开展全民健身宣传、《云南体育》宣传专栏、舆情应对与引导、云南体育品牌推广、云南省系列马拉松整体品牌策划等利用央媒、省内知名媒体平台进行全方面、多角度宣传，进一步提升云南体育形象宣传,增强社会关注度、参与度。","产出指标","数量指标","开展户外运动线路推广次数",">=","12","次","定量指标","反映我省户外运动线路推广情况。"]
["省体育局（省本级）体彩公益金专项经费","省本级体彩公益金项目组织实施备战全运会经费2项，大型体育赛事活动专项经费5项、青少年体育竞赛专项经费1项、体育产业发展项目12项，体育领域意识形态专项经费3项，体育事业统计专项经费1项、体育专业人才培养专项经费1项，预算管理专项经费2项。\n实现目标：\n1、聚焦本年全民健身重点工作，结合巡视问题整改统筹安排。一是健身场地设施填空白补短板，配建适老适小健身器材。二是聚焦打造省级全民健身赛事品牌，创新举办云南省建设南亚东南亚辐射中心体育交流大赛和民族团结杯气排球联赛，积极申请作为第二届全国全民健身大赛（西南区）牵头省份，承办西南区开闭幕式及相关项目比赛。三是加大全民健身科研与宣传力度。深化体医融合建设成果，开展“运动促进健康”体育为民、惠民服务项目；对接下步体育强国指标体系，推动常态化国民体质监测及国家体育锻炼标准达标测验工作。\n2、不断提高青少年体育训练质量和效益，推动竞技体育后备人才培养工作科学高效开展，为建设体育强国、健康中国注入新的生机与活力。资金安排以支持省体育局各训练单位、各承办省级青少年项目锦标赛比赛、支持承接我省组队参加全国青少年运动会参赛和参加“奔跑吧少年”全国青少年阳光体育大会组团参赛、建设体育后备人才基地为重点，为青少年学生提供健康的运动、娱乐和环境。\n3、进一步推动云南省体育产业高质量发展，激发体育消费潜力。一是积极培育体育领域优质项目，着力培育体育旅游精品项目、体育文化优秀项目，丰富体育产业业态。二是积极支持户外运动产业发展，大力推广户外运动线路，满足群众多样化体育需求。三是大力发展体育相关产业。大力发展体育竞赛表演产业，充分发挥其带动作用，进一步促进体育消费。四是积极培育体育用品制造业，完善体育产业链条。五是大力宣传推广云南体育，借助南博会、体博会等展会平台，提升云南体育的知名度和影响力。\n4、在上一年度的基础上，利用媒体自身集成优势，整合媒体资源对云南体育工作进行宣传报道。重点开展全民健身宣传、《云南体育》宣传专栏、舆情应对与引导、云南体育品牌推广、云南省系列马拉松整体品牌策划等利用央媒、省内知名媒体平台进行全方面、多角度宣传，进一步提升云南体育形象宣传,增强社会关注度、参与度。","产出指标","数量指标","大额资金支出项目预算评价数量",">=","80","个（项）","定量指标","反映体彩公益金资助项目预算评审开展“大额资金”评审情况。"]
["省体育局（省本级）体彩公益金专项经费","省本级体彩公益金项目组织实施备战全运会经费2项，大型体育赛事活动专项经费5项、青少年体育竞赛专项经费1项、体育产业发展项目12项，体育领域意识形态专项经费3项，体育事业统计专项经费1项、体育专业人才培养专项经费1项，预算管理专项经费2项。\n实现目标：\n1、聚焦本年全民健身重点工作，结合巡视问题整改统筹安排。一是健身场地设施填空白补短板，配建适老适小健身器材。二是聚焦打造省级全民健身赛事品牌，创新举办云南省建设南亚东南亚辐射中心体育交流大赛和民族团结杯气排球联赛，积极申请作为第二届全国全民健身大赛（西南区）牵头省份，承办西南区开闭幕式及相关项目比赛。三是加大全民健身科研与宣传力度。深化体医融合建设成果，开展“运动促进健康”体育为民、惠民服务项目；对接下步体育强国指标体系，推动常态化国民体质监测及国家体育锻炼标准达标测验工作。\n2、不断提高青少年体育训练质量和效益，推动竞技体育后备人才培养工作科学高效开展，为建设体育强国、健康中国注入新的生机与活力。资金安排以支持省体育局各训练单位、各承办省级青少年项目锦标赛比赛、支持承接我省组队参加全国青少年运动会参赛和参加“奔跑吧少年”全国青少年阳光体育大会组团参赛、建设体育后备人才基地为重点，为青少年学生提供健康的运动、娱乐和环境。\n3、进一步推动云南省体育产业高质量发展，激发体育消费潜力。一是积极培育体育领域优质项目，着力培育体育旅游精品项目、体育文化优秀项目，丰富体育产业业态。二是积极支持户外运动产业发展，大力推广户外运动线路，满足群众多样化体育需求。三是大力发展体育相关产业。大力发展体育竞赛表演产业，充分发挥其带动作用，进一步促进体育消费。四是积极培育体育用品制造业，完善体育产业链条。五是大力宣传推广云南体育，借助南博会、体博会等展会平台，提升云南体育的知名度和影响力。\n4、在上一年度的基础上，利用媒体自身集成优势，整合媒体资源对云南体育工作进行宣传报道。重点开展全民健身宣传、《云南体育》宣传专栏、舆情应对与引导、云南体育品牌推广、云南省系列马拉松整体品牌策划等利用央媒、省内知名媒体平台进行全方面、多角度宣传，进一步提升云南体育形象宣传,增强社会关注度、参与度。","产出指标","数量指标","公益金资助项目绩效评价地州数量","=","16","个","定量指标","反映开展体育彩票公益金资助项目绩效评价范围。"]
["省体育局（省本级）体彩公益金专项经费","省本级体彩公益金项目组织实施备战全运会经费2项，大型体育赛事活动专项经费5项、青少年体育竞赛专项经费1项、体育产业发展项目12项，体育领域意识形态专项经费3项，体育事业统计专项经费1项、体育专业人才培养专项经费1项，预算管理专项经费2项。\n实现目标：\n1、聚焦本年全民健身重点工作，结合巡视问题整改统筹安排。一是健身场地设施填空白补短板，配建适老适小健身器材。二是聚焦打造省级全民健身赛事品牌，创新举办云南省建设南亚东南亚辐射中心体育交流大赛和民族团结杯气排球联赛，积极申请作为第二届全国全民健身大赛（西南区）牵头省份，承办西南区开闭幕式及相关项目比赛。三是加大全民健身科研与宣传力度。深化体医融合建设成果，开展“运动促进健康”体育为民、惠民服务项目；对接下步体育强国指标体系，推动常态化国民体质监测及国家体育锻炼标准达标测验工作。\n2、不断提高青少年体育训练质量和效益，推动竞技体育后备人才培养工作科学高效开展，为建设体育强国、健康中国注入新的生机与活力。资金安排以支持省体育局各训练单位、各承办省级青少年项目锦标赛比赛、支持承接我省组队参加全国青少年运动会参赛和参加“奔跑吧少年”全国青少年阳光体育大会组团参赛、建设体育后备人才基地为重点，为青少年学生提供健康的运动、娱乐和环境。\n3、进一步推动云南省体育产业高质量发展，激发体育消费潜力。一是积极培育体育领域优质项目，着力培育体育旅游精品项目、体育文化优秀项目，丰富体育产业业态。二是积极支持户外运动产业发展，大力推广户外运动线路，满足群众多样化体育需求。三是大力发展体育相关产业。大力发展体育竞赛表演产业，充分发挥其带动作用，进一步促进体育消费。四是积极培育体育用品制造业，完善体育产业链条。五是大力宣传推广云南体育，借助南博会、体博会等展会平台，提升云南体育的知名度和影响力。\n4、在上一年度的基础上，利用媒体自身集成优势，整合媒体资源对云南体育工作进行宣传报道。重点开展全民健身宣传、《云南体育》宣传专栏、舆情应对与引导、云南体育品牌推广、云南省系列马拉松整体品牌策划等利用央媒、省内知名媒体平台进行全方面、多角度宣传，进一步提升云南体育形象宣传,增强社会关注度、参与度。","产出指标","数量指标","公益金资助项目绩效评价项目数量",">=","1465","个","定量指标","反映体彩公益金资助项目绩效评价的数量。"]
["省体育局（省本级）体彩公益金专项经费","省本级体彩公益金项目组织实施备战全运会经费2项，大型体育赛事活动专项经费5项、青少年体育竞赛专项经费1项、体育产业发展项目12项，体育领域意识形态专项经费3项，体育事业统计专项经费1项、体育专业人才培养专项经费1项，预算管理专项经费2项。\n实现目标：\n1、聚焦本年全民健身重点工作，结合巡视问题整改统筹安排。一是健身场地设施填空白补短板，配建适老适小健身器材。二是聚焦打造省级全民健身赛事品牌，创新举办云南省建设南亚东南亚辐射中心体育交流大赛和民族团结杯气排球联赛，积极申请作为第二届全国全民健身大赛（西南区）牵头省份，承办西南区开闭幕式及相关项目比赛。三是加大全民健身科研与宣传力度。深化体医融合建设成果，开展“运动促进健康”体育为民、惠民服务项目；对接下步体育强国指标体系，推动常态化国民体质监测及国家体育锻炼标准达标测验工作。\n2、不断提高青少年体育训练质量和效益，推动竞技体育后备人才培养工作科学高效开展，为建设体育强国、健康中国注入新的生机与活力。资金安排以支持省体育局各训练单位、各承办省级青少年项目锦标赛比赛、支持承接我省组队参加全国青少年运动会参赛和参加“奔跑吧少年”全国青少年阳光体育大会组团参赛、建设体育后备人才基地为重点，为青少年学生提供健康的运动、娱乐和环境。\n3、进一步推动云南省体育产业高质量发展，激发体育消费潜力。一是积极培育体育领域优质项目，着力培育体育旅游精品项目、体育文化优秀项目，丰富体育产业业态。二是积极支持户外运动产业发展，大力推广户外运动线路，满足群众多样化体育需求。三是大力发展体育相关产业。大力发展体育竞赛表演产业，充分发挥其带动作用，进一步促进体育消费。四是积极培育体育用品制造业，完善体育产业链条。五是大力宣传推广云南体育，借助南博会、体博会等展会平台，提升云南体育的知名度和影响力。\n4、在上一年度的基础上，利用媒体自身集成优势，整合媒体资源对云南体育工作进行宣传报道。重点开展全民健身宣传、《云南体育》宣传专栏、舆情应对与引导、云南体育品牌推广、云南省系列马拉松整体品牌策划等利用央媒、省内知名媒体平台进行全方面、多角度宣传，进一步提升云南体育形象宣传,增强社会关注度、参与度。","产出指标","数量指标","开展体彩公益金资助项目培训次数",">=","5","次","定量指标","反映开展体彩公益金资助项目培训的情况。"]
["省体育局（省本级）体彩公益金专项经费","省本级体彩公益金项目组织实施备战全运会经费2项，大型体育赛事活动专项经费5项、青少年体育竞赛专项经费1项、体育产业发展项目12项，体育领域意识形态专项经费3项，体育事业统计专项经费1项、体育专业人才培养专项经费1项，预算管理专项经费2项。\n实现目标：\n1、聚焦本年全民健身重点工作，结合巡视问题整改统筹安排。一是健身场地设施填空白补短板，配建适老适小健身器材。二是聚焦打造省级全民健身赛事品牌，创新举办云南省建设南亚东南亚辐射中心体育交流大赛和民族团结杯气排球联赛，积极申请作为第二届全国全民健身大赛（西南区）牵头省份，承办西南区开闭幕式及相关项目比赛。三是加大全民健身科研与宣传力度。深化体医融合建设成果，开展“运动促进健康”体育为民、惠民服务项目；对接下步体育强国指标体系，推动常态化国民体质监测及国家体育锻炼标准达标测验工作。\n2、不断提高青少年体育训练质量和效益，推动竞技体育后备人才培养工作科学高效开展，为建设体育强国、健康中国注入新的生机与活力。资金安排以支持省体育局各训练单位、各承办省级青少年项目锦标赛比赛、支持承接我省组队参加全国青少年运动会参赛和参加“奔跑吧少年”全国青少年阳光体育大会组团参赛、建设体育后备人才基地为重点，为青少年学生提供健康的运动、娱乐和环境。\n3、进一步推动云南省体育产业高质量发展，激发体育消费潜力。一是积极培育体育领域优质项目，着力培育体育旅游精品项目、体育文化优秀项目，丰富体育产业业态。二是积极支持户外运动产业发展，大力推广户外运动线路，满足群众多样化体育需求。三是大力发展体育相关产业。大力发展体育竞赛表演产业，充分发挥其带动作用，进一步促进体育消费。四是积极培育体育用品制造业，完善体育产业链条。五是大力宣传推广云南体育，借助南博会、体博会等展会平台，提升云南体育的知名度和影响力。\n4、在上一年度的基础上，利用媒体自身集成优势，整合媒体资源对云南体育工作进行宣传报道。重点开展全民健身宣传、《云南体育》宣传专栏、舆情应对与引导、云南体育品牌推广、云南省系列马拉松整体品牌策划等利用央媒、省内知名媒体平台进行全方面、多角度宣传，进一步提升云南体育形象宣传,增强社会关注度、参与度。","产出指标","数量指标","体彩公益金资助项目培训人数",">=","500","人","定量指标","反映开展体彩公益金资助项目培训的情况。"]
["省体育局（省本级）体彩公益金专项经费","省本级体彩公益金项目组织实施备战全运会经费2项，大型体育赛事活动专项经费5项、青少年体育竞赛专项经费1项、体育产业发展项目12项，体育领域意识形态专项经费3项，体育事业统计专项经费1项、体育专业人才培养专项经费1项，预算管理专项经费2项。\n实现目标：\n1、聚焦本年全民健身重点工作，结合巡视问题整改统筹安排。一是健身场地设施填空白补短板，配建适老适小健身器材。二是聚焦打造省级全民健身赛事品牌，创新举办云南省建设南亚东南亚辐射中心体育交流大赛和民族团结杯气排球联赛，积极申请作为第二届全国全民健身大赛（西南区）牵头省份，承办西南区开闭幕式及相关项目比赛。三是加大全民健身科研与宣传力度。深化体医融合建设成果，开展“运动促进健康”体育为民、惠民服务项目；对接下步体育强国指标体系，推动常态化国民体质监测及国家体育锻炼标准达标测验工作。\n2、不断提高青少年体育训练质量和效益，推动竞技体育后备人才培养工作科学高效开展，为建设体育强国、健康中国注入新的生机与活力。资金安排以支持省体育局各训练单位、各承办省级青少年项目锦标赛比赛、支持承接我省组队参加全国青少年运动会参赛和参加“奔跑吧少年”全国青少年阳光体育大会组团参赛、建设体育后备人才基地为重点，为青少年学生提供健康的运动、娱乐和环境。\n3、进一步推动云南省体育产业高质量发展，激发体育消费潜力。一是积极培育体育领域优质项目，着力培育体育旅游精品项目、体育文化优秀项目，丰富体育产业业态。二是积极支持户外运动产业发展，大力推广户外运动线路，满足群众多样化体育需求。三是大力发展体育相关产业。大力发展体育竞赛表演产业，充分发挥其带动作用，进一步促进体育消费。四是积极培育体育用品制造业，完善体育产业链条。五是大力宣传推广云南体育，借助南博会、体博会等展会平台，提升云南体育的知名度和影响力。\n4、在上一年度的基础上，利用媒体自身集成优势，整合媒体资源对云南体育工作进行宣传报道。重点开展全民健身宣传、《云南体育》宣传专栏、舆情应对与引导、云南体育品牌推广、云南省系列马拉松整体品牌策划等利用央媒、省内知名媒体平台进行全方面、多角度宣传，进一步提升云南体育形象宣传,增强社会关注度、参与度。","产出指标","数量指标","保障足球备战外训外赛人次",">=","50","次","定量指标","反映资助足球运动员备战情况。"]
["省体育局（省本级）体彩公益金专项经费","省本级体彩公益金项目组织实施备战全运会经费2项，大型体育赛事活动专项经费5项、青少年体育竞赛专项经费1项、体育产业发展项目12项，体育领域意识形态专项经费3项，体育事业统计专项经费1项、体育专业人才培养专项经费1项，预算管理专项经费2项。\n实现目标：\n1、聚焦本年全民健身重点工作，结合巡视问题整改统筹安排。一是健身场地设施填空白补短板，配建适老适小健身器材。二是聚焦打造省级全民健身赛事品牌，创新举办云南省建设南亚东南亚辐射中心体育交流大赛和民族团结杯气排球联赛，积极申请作为第二届全国全民健身大赛（西南区）牵头省份，承办西南区开闭幕式及相关项目比赛。三是加大全民健身科研与宣传力度。深化体医融合建设成果，开展“运动促进健康”体育为民、惠民服务项目；对接下步体育强国指标体系，推动常态化国民体质监测及国家体育锻炼标准达标测验工作。\n2、不断提高青少年体育训练质量和效益，推动竞技体育后备人才培养工作科学高效开展，为建设体育强国、健康中国注入新的生机与活力。资金安排以支持省体育局各训练单位、各承办省级青少年项目锦标赛比赛、支持承接我省组队参加全国青少年运动会参赛和参加“奔跑吧少年”全国青少年阳光体育大会组团参赛、建设体育后备人才基地为重点，为青少年学生提供健康的运动、娱乐和环境。\n3、进一步推动云南省体育产业高质量发展，激发体育消费潜力。一是积极培育体育领域优质项目，着力培育体育旅游精品项目、体育文化优秀项目，丰富体育产业业态。二是积极支持户外运动产业发展，大力推广户外运动线路，满足群众多样化体育需求。三是大力发展体育相关产业。大力发展体育竞赛表演产业，充分发挥其带动作用，进一步促进体育消费。四是积极培育体育用品制造业，完善体育产业链条。五是大力宣传推广云南体育，借助南博会、体博会等展会平台，提升云南体育的知名度和影响力。\n4、在上一年度的基础上，利用媒体自身集成优势，整合媒体资源对云南体育工作进行宣传报道。重点开展全民健身宣传、《云南体育》宣传专栏、舆情应对与引导、云南体育品牌推广、云南省系列马拉松整体品牌策划等利用央媒、省内知名媒体平台进行全方面、多角度宣传，进一步提升云南体育形象宣传,增强社会关注度、参与度。","产出指标","数量指标","支持足球备战外训外赛次数",">=","3","次","定量指标","反映足球项目备战第十六届全运会专项经费使用情况。"]
["省体育局（省本级）体彩公益金专项经费","省本级体彩公益金项目组织实施备战全运会经费2项，大型体育赛事活动专项经费5项、青少年体育竞赛专项经费1项、体育产业发展项目12项，体育领域意识形态专项经费3项，体育事业统计专项经费1项、体育专业人才培养专项经费1项，预算管理专项经费2项。\n实现目标：\n1、聚焦本年全民健身重点工作，结合巡视问题整改统筹安排。一是健身场地设施填空白补短板，配建适老适小健身器材。二是聚焦打造省级全民健身赛事品牌，创新举办云南省建设南亚东南亚辐射中心体育交流大赛和民族团结杯气排球联赛，积极申请作为第二届全国全民健身大赛（西南区）牵头省份，承办西南区开闭幕式及相关项目比赛。三是加大全民健身科研与宣传力度。深化体医融合建设成果，开展“运动促进健康”体育为民、惠民服务项目；对接下步体育强国指标体系，推动常态化国民体质监测及国家体育锻炼标准达标测验工作。\n2、不断提高青少年体育训练质量和效益，推动竞技体育后备人才培养工作科学高效开展，为建设体育强国、健康中国注入新的生机与活力。资金安排以支持省体育局各训练单位、各承办省级青少年项目锦标赛比赛、支持承接我省组队参加全国青少年运动会参赛和参加“奔跑吧少年”全国青少年阳光体育大会组团参赛、建设体育后备人才基地为重点，为青少年学生提供健康的运动、娱乐和环境。\n3、进一步推动云南省体育产业高质量发展，激发体育消费潜力。一是积极培育体育领域优质项目，着力培育体育旅游精品项目、体育文化优秀项目，丰富体育产业业态。二是积极支持户外运动产业发展，大力推广户外运动线路，满足群众多样化体育需求。三是大力发展体育相关产业。大力发展体育竞赛表演产业，充分发挥其带动作用，进一步促进体育消费。四是积极培育体育用品制造业，完善体育产业链条。五是大力宣传推广云南体育，借助南博会、体博会等展会平台，提升云南体育的知名度和影响力。\n4、在上一年度的基础上，利用媒体自身集成优势，整合媒体资源对云南体育工作进行宣传报道。重点开展全民健身宣传、《云南体育》宣传专栏、舆情应对与引导、云南体育品牌推广、云南省系列马拉松整体品牌策划等利用央媒、省内知名媒体平台进行全方面、多角度宣传，进一步提升云南体育形象宣传,增强社会关注度、参与度。","产出指标","数量指标","足球备战外训外赛天数",">=","30","天","定量指标","反映资助足球运动员备战情况。"]
["省体育局（省本级）体彩公益金专项经费","省本级体彩公益金项目组织实施备战全运会经费2项，大型体育赛事活动专项经费5项、青少年体育竞赛专项经费1项、体育产业发展项目12项，体育领域意识形态专项经费3项，体育事业统计专项经费1项、体育专业人才培养专项经费1项，预算管理专项经费2项。\n实现目标：\n1、聚焦本年全民健身重点工作，结合巡视问题整改统筹安排。一是健身场地设施填空白补短板，配建适老适小健身器材。二是聚焦打造省级全民健身赛事品牌，创新举办云南省建设南亚东南亚辐射中心体育交流大赛和民族团结杯气排球联赛，积极申请作为第二届全国全民健身大赛（西南区）牵头省份，承办西南区开闭幕式及相关项目比赛。三是加大全民健身科研与宣传力度。深化体医融合建设成果，开展“运动促进健康”体育为民、惠民服务项目；对接下步体育强国指标体系，推动常态化国民体质监测及国家体育锻炼标准达标测验工作。\n2、不断提高青少年体育训练质量和效益，推动竞技体育后备人才培养工作科学高效开展，为建设体育强国、健康中国注入新的生机与活力。资金安排以支持省体育局各训练单位、各承办省级青少年项目锦标赛比赛、支持承接我省组队参加全国青少年运动会参赛和参加“奔跑吧少年”全国青少年阳光体育大会组团参赛、建设体育后备人才基地为重点，为青少年学生提供健康的运动、娱乐和环境。\n3、进一步推动云南省体育产业高质量发展，激发体育消费潜力。一是积极培育体育领域优质项目，着力培育体育旅游精品项目、体育文化优秀项目，丰富体育产业业态。二是积极支持户外运动产业发展，大力推广户外运动线路，满足群众多样化体育需求。三是大力发展体育相关产业。大力发展体育竞赛表演产业，充分发挥其带动作用，进一步促进体育消费。四是积极培育体育用品制造业，完善体育产业链条。五是大力宣传推广云南体育，借助南博会、体博会等展会平台，提升云南体育的知名度和影响力。\n4、在上一年度的基础上，利用媒体自身集成优势，整合媒体资源对云南体育工作进行宣传报道。重点开展全民健身宣传、《云南体育》宣传专栏、舆情应对与引导、云南体育品牌推广、云南省系列马拉松整体品牌策划等利用央媒、省内知名媒体平台进行全方面、多角度宣传，进一步提升云南体育形象宣传,增强社会关注度、参与度。","产出指标","数量指标","足球备战外聘教练人数",">=","8","人","定量指标","反映资助足球运动员备战情况。"]
["省体育局（省本级）体彩公益金专项经费","省本级体彩公益金项目组织实施备战全运会经费2项，大型体育赛事活动专项经费5项、青少年体育竞赛专项经费1项、体育产业发展项目12项，体育领域意识形态专项经费3项，体育事业统计专项经费1项、体育专业人才培养专项经费1项，预算管理专项经费2项。\n实现目标：\n1、聚焦本年全民健身重点工作，结合巡视问题整改统筹安排。一是健身场地设施填空白补短板，配建适老适小健身器材。二是聚焦打造省级全民健身赛事品牌，创新举办云南省建设南亚东南亚辐射中心体育交流大赛和民族团结杯气排球联赛，积极申请作为第二届全国全民健身大赛（西南区）牵头省份，承办西南区开闭幕式及相关项目比赛。三是加大全民健身科研与宣传力度。深化体医融合建设成果，开展“运动促进健康”体育为民、惠民服务项目；对接下步体育强国指标体系，推动常态化国民体质监测及国家体育锻炼标准达标测验工作。\n2、不断提高青少年体育训练质量和效益，推动竞技体育后备人才培养工作科学高效开展，为建设体育强国、健康中国注入新的生机与活力。资金安排以支持省体育局各训练单位、各承办省级青少年项目锦标赛比赛、支持承接我省组队参加全国青少年运动会参赛和参加“奔跑吧少年”全国青少年阳光体育大会组团参赛、建设体育后备人才基地为重点，为青少年学生提供健康的运动、娱乐和环境。\n3、进一步推动云南省体育产业高质量发展，激发体育消费潜力。一是积极培育体育领域优质项目，着力培育体育旅游精品项目、体育文化优秀项目，丰富体育产业业态。二是积极支持户外运动产业发展，大力推广户外运动线路，满足群众多样化体育需求。三是大力发展体育相关产业。大力发展体育竞赛表演产业，充分发挥其带动作用，进一步促进体育消费。四是积极培育体育用品制造业，完善体育产业链条。五是大力宣传推广云南体育，借助南博会、体博会等展会平台，提升云南体育的知名度和影响力。\n4、在上一年度的基础上，利用媒体自身集成优势，整合媒体资源对云南体育工作进行宣传报道。重点开展全民健身宣传、《云南体育》宣传专栏、舆情应对与引导、云南体育品牌推广、云南省系列马拉松整体品牌策划等利用央媒、省内知名媒体平台进行全方面、多角度宣传，进一步提升云南体育形象宣传,增强社会关注度、参与度。","产出指标","数量指标","举办城市篮球联赛事活动场次",">=","72","次","定量指标","反映“体总杯”城市篮球联赛项目开展情况。"]
["省体育局（省本级）体彩公益金专项经费","省本级体彩公益金项目组织实施备战全运会经费2项，大型体育赛事活动专项经费5项、青少年体育竞赛专项经费1项、体育产业发展项目12项，体育领域意识形态专项经费3项，体育事业统计专项经费1项、体育专业人才培养专项经费1项，预算管理专项经费2项。\n实现目标：\n1、聚焦本年全民健身重点工作，结合巡视问题整改统筹安排。一是健身场地设施填空白补短板，配建适老适小健身器材。二是聚焦打造省级全民健身赛事品牌，创新举办云南省建设南亚东南亚辐射中心体育交流大赛和民族团结杯气排球联赛，积极申请作为第二届全国全民健身大赛（西南区）牵头省份，承办西南区开闭幕式及相关项目比赛。三是加大全民健身科研与宣传力度。深化体医融合建设成果，开展“运动促进健康”体育为民、惠民服务项目；对接下步体育强国指标体系，推动常态化国民体质监测及国家体育锻炼标准达标测验工作。\n2、不断提高青少年体育训练质量和效益，推动竞技体育后备人才培养工作科学高效开展，为建设体育强国、健康中国注入新的生机与活力。资金安排以支持省体育局各训练单位、各承办省级青少年项目锦标赛比赛、支持承接我省组队参加全国青少年运动会参赛和参加“奔跑吧少年”全国青少年阳光体育大会组团参赛、建设体育后备人才基地为重点，为青少年学生提供健康的运动、娱乐和环境。\n3、进一步推动云南省体育产业高质量发展，激发体育消费潜力。一是积极培育体育领域优质项目，着力培育体育旅游精品项目、体育文化优秀项目，丰富体育产业业态。二是积极支持户外运动产业发展，大力推广户外运动线路，满足群众多样化体育需求。三是大力发展体育相关产业。大力发展体育竞赛表演产业，充分发挥其带动作用，进一步促进体育消费。四是积极培育体育用品制造业，完善体育产业链条。五是大力宣传推广云南体育，借助南博会、体博会等展会平台，提升云南体育的知名度和影响力。\n4、在上一年度的基础上，利用媒体自身集成优势，整合媒体资源对云南体育工作进行宣传报道。重点开展全民健身宣传、《云南体育》宣传专栏、舆情应对与引导、云南体育品牌推广、云南省系列马拉松整体品牌策划等利用央媒、省内知名媒体平台进行全方面、多角度宣传，进一步提升云南体育形象宣传,增强社会关注度、参与度。","产出指标","数量指标","参加城市篮球联赛活动人数",">=","510","人","定量指标","反映“体总杯”城市篮球联赛项目开展情况。"]
["省体育局（省本级）体彩公益金专项经费","省本级体彩公益金项目组织实施备战全运会经费2项，大型体育赛事活动专项经费5项、青少年体育竞赛专项经费1项、体育产业发展项目12项，体育领域意识形态专项经费3项，体育事业统计专项经费1项、体育专业人才培养专项经费1项，预算管理专项经费2项。\n实现目标：\n1、聚焦本年全民健身重点工作，结合巡视问题整改统筹安排。一是健身场地设施填空白补短板，配建适老适小健身器材。二是聚焦打造省级全民健身赛事品牌，创新举办云南省建设南亚东南亚辐射中心体育交流大赛和民族团结杯气排球联赛，积极申请作为第二届全国全民健身大赛（西南区）牵头省份，承办西南区开闭幕式及相关项目比赛。三是加大全民健身科研与宣传力度。深化体医融合建设成果，开展“运动促进健康”体育为民、惠民服务项目；对接下步体育强国指标体系，推动常态化国民体质监测及国家体育锻炼标准达标测验工作。\n2、不断提高青少年体育训练质量和效益，推动竞技体育后备人才培养工作科学高效开展，为建设体育强国、健康中国注入新的生机与活力。资金安排以支持省体育局各训练单位、各承办省级青少年项目锦标赛比赛、支持承接我省组队参加全国青少年运动会参赛和参加“奔跑吧少年”全国青少年阳光体育大会组团参赛、建设体育后备人才基地为重点，为青少年学生提供健康的运动、娱乐和环境。\n3、进一步推动云南省体育产业高质量发展，激发体育消费潜力。一是积极培育体育领域优质项目，着力培育体育旅游精品项目、体育文化优秀项目，丰富体育产业业态。二是积极支持户外运动产业发展，大力推广户外运动线路，满足群众多样化体育需求。三是大力发展体育相关产业。大力发展体育竞赛表演产业，充分发挥其带动作用，进一步促进体育消费。四是积极培育体育用品制造业，完善体育产业链条。五是大力宣传推广云南体育，借助南博会、体博会等展会平台，提升云南体育的知名度和影响力。\n4、在上一年度的基础上，利用媒体自身集成优势，整合媒体资源对云南体育工作进行宣传报道。重点开展全民健身宣传、《云南体育》宣传专栏、舆情应对与引导、云南体育品牌推广、云南省系列马拉松整体品牌策划等利用央媒、省内知名媒体平台进行全方面、多角度宣传，进一步提升云南体育形象宣传,增强社会关注度、参与度。","产出指标","数量指标","参加公路自行车职业联赛活动人数",">=","5000","人","定量指标","反映参加“环云南”国际公路自行车赛暨UCI格兰芬多世界系列赛人数情况。"]
["省体育局（省本级）体彩公益金专项经费","省本级体彩公益金项目组织实施备战全运会经费2项，大型体育赛事活动专项经费5项、青少年体育竞赛专项经费1项、体育产业发展项目12项，体育领域意识形态专项经费3项，体育事业统计专项经费1项、体育专业人才培养专项经费1项，预算管理专项经费2项。\n实现目标：\n1、聚焦本年全民健身重点工作，结合巡视问题整改统筹安排。一是健身场地设施填空白补短板，配建适老适小健身器材。二是聚焦打造省级全民健身赛事品牌，创新举办云南省建设南亚东南亚辐射中心体育交流大赛和民族团结杯气排球联赛，积极申请作为第二届全国全民健身大赛（西南区）牵头省份，承办西南区开闭幕式及相关项目比赛。三是加大全民健身科研与宣传力度。深化体医融合建设成果，开展“运动促进健康”体育为民、惠民服务项目；对接下步体育强国指标体系，推动常态化国民体质监测及国家体育锻炼标准达标测验工作。\n2、不断提高青少年体育训练质量和效益，推动竞技体育后备人才培养工作科学高效开展，为建设体育强国、健康中国注入新的生机与活力。资金安排以支持省体育局各训练单位、各承办省级青少年项目锦标赛比赛、支持承接我省组队参加全国青少年运动会参赛和参加“奔跑吧少年”全国青少年阳光体育大会组团参赛、建设体育后备人才基地为重点，为青少年学生提供健康的运动、娱乐和环境。\n3、进一步推动云南省体育产业高质量发展，激发体育消费潜力。一是积极培育体育领域优质项目，着力培育体育旅游精品项目、体育文化优秀项目，丰富体育产业业态。二是积极支持户外运动产业发展，大力推广户外运动线路，满足群众多样化体育需求。三是大力发展体育相关产业。大力发展体育竞赛表演产业，充分发挥其带动作用，进一步促进体育消费。四是积极培育体育用品制造业，完善体育产业链条。五是大力宣传推广云南体育，借助南博会、体博会等展会平台，提升云南体育的知名度和影响力。\n4、在上一年度的基础上，利用媒体自身集成优势，整合媒体资源对云南体育工作进行宣传报道。重点开展全民健身宣传、《云南体育》宣传专栏、舆情应对与引导、云南体育品牌推广、云南省系列马拉松整体品牌策划等利用央媒、省内知名媒体平台进行全方面、多角度宣传，进一步提升云南体育形象宣传,增强社会关注度、参与度。","产出指标","数量指标","举办公路自行车职业联赛活动场次",">=","5","次","定量指标","反映开展“环云南”国际公路自行车赛暨UCI格兰芬多世界系列赛场次情况。"]
["省体育局（省本级）体彩公益金专项经费","省本级体彩公益金项目组织实施备战全运会经费2项，大型体育赛事活动专项经费5项、青少年体育竞赛专项经费1项、体育产业发展项目12项，体育领域意识形态专项经费3项，体育事业统计专项经费1项、体育专业人才培养专项经费1项，预算管理专项经费2项。\n实现目标：\n1、聚焦本年全民健身重点工作，结合巡视问题整改统筹安排。一是健身场地设施填空白补短板，配建适老适小健身器材。二是聚焦打造省级全民健身赛事品牌，创新举办云南省建设南亚东南亚辐射中心体育交流大赛和民族团结杯气排球联赛，积极申请作为第二届全国全民健身大赛（西南区）牵头省份，承办西南区开闭幕式及相关项目比赛。三是加大全民健身科研与宣传力度。深化体医融合建设成果，开展“运动促进健康”体育为民、惠民服务项目；对接下步体育强国指标体系，推动常态化国民体质监测及国家体育锻炼标准达标测验工作。\n2、不断提高青少年体育训练质量和效益，推动竞技体育后备人才培养工作科学高效开展，为建设体育强国、健康中国注入新的生机与活力。资金安排以支持省体育局各训练单位、各承办省级青少年项目锦标赛比赛、支持承接我省组队参加全国青少年运动会参赛和参加“奔跑吧少年”全国青少年阳光体育大会组团参赛、建设体育后备人才基地为重点，为青少年学生提供健康的运动、娱乐和环境。\n3、进一步推动云南省体育产业高质量发展，激发体育消费潜力。一是积极培育体育领域优质项目，着力培育体育旅游精品项目、体育文化优秀项目，丰富体育产业业态。二是积极支持户外运动产业发展，大力推广户外运动线路，满足群众多样化体育需求。三是大力发展体育相关产业。大力发展体育竞赛表演产业，充分发挥其带动作用，进一步促进体育消费。四是积极培育体育用品制造业，完善体育产业链条。五是大力宣传推广云南体育，借助南博会、体博会等展会平台，提升云南体育的知名度和影响力。\n4、在上一年度的基础上，利用媒体自身集成优势，整合媒体资源对云南体育工作进行宣传报道。重点开展全民健身宣传、《云南体育》宣传专栏、舆情应对与引导、云南体育品牌推广、云南省系列马拉松整体品牌策划等利用央媒、省内知名媒体平台进行全方面、多角度宣传，进一步提升云南体育形象宣传,增强社会关注度、参与度。","产出指标","数量指标","九大高原湖泊山水赛线下活动场次",">=","3","次","定量指标","反映云南省九大高原湖泊山水联赛活动开展情况。"]
["省体育局（省本级）体彩公益金专项经费","省本级体彩公益金项目组织实施备战全运会经费2项，大型体育赛事活动专项经费5项、青少年体育竞赛专项经费1项、体育产业发展项目12项，体育领域意识形态专项经费3项，体育事业统计专项经费1项、体育专业人才培养专项经费1项，预算管理专项经费2项。\n实现目标：\n1、聚焦本年全民健身重点工作，结合巡视问题整改统筹安排。一是健身场地设施填空白补短板，配建适老适小健身器材。二是聚焦打造省级全民健身赛事品牌，创新举办云南省建设南亚东南亚辐射中心体育交流大赛和民族团结杯气排球联赛，积极申请作为第二届全国全民健身大赛（西南区）牵头省份，承办西南区开闭幕式及相关项目比赛。三是加大全民健身科研与宣传力度。深化体医融合建设成果，开展“运动促进健康”体育为民、惠民服务项目；对接下步体育强国指标体系，推动常态化国民体质监测及国家体育锻炼标准达标测验工作。\n2、不断提高青少年体育训练质量和效益，推动竞技体育后备人才培养工作科学高效开展，为建设体育强国、健康中国注入新的生机与活力。资金安排以支持省体育局各训练单位、各承办省级青少年项目锦标赛比赛、支持承接我省组队参加全国青少年运动会参赛和参加“奔跑吧少年”全国青少年阳光体育大会组团参赛、建设体育后备人才基地为重点，为青少年学生提供健康的运动、娱乐和环境。\n3、进一步推动云南省体育产业高质量发展，激发体育消费潜力。一是积极培育体育领域优质项目，着力培育体育旅游精品项目、体育文化优秀项目，丰富体育产业业态。二是积极支持户外运动产业发展，大力推广户外运动线路，满足群众多样化体育需求。三是大力发展体育相关产业。大力发展体育竞赛表演产业，充分发挥其带动作用，进一步促进体育消费。四是积极培育体育用品制造业，完善体育产业链条。五是大力宣传推广云南体育，借助南博会、体博会等展会平台，提升云南体育的知名度和影响力。\n4、在上一年度的基础上，利用媒体自身集成优势，整合媒体资源对云南体育工作进行宣传报道。重点开展全民健身宣传、《云南体育》宣传专栏、舆情应对与引导、云南体育品牌推广、云南省系列马拉松整体品牌策划等利用央媒、省内知名媒体平台进行全方面、多角度宣传，进一步提升云南体育形象宣传,增强社会关注度、参与度。","产出指标","数量指标","参与九大高原湖泊赛线下活动人数",">=","8200","人","定量指标","反映云南省九大高原湖泊山水联赛活动开展情况。"]
["省体育局（省本级）体彩公益金专项经费","省本级体彩公益金项目组织实施备战全运会经费2项，大型体育赛事活动专项经费5项、青少年体育竞赛专项经费1项、体育产业发展项目12项，体育领域意识形态专项经费3项，体育事业统计专项经费1项、体育专业人才培养专项经费1项，预算管理专项经费2项。\n实现目标：\n1、聚焦本年全民健身重点工作，结合巡视问题整改统筹安排。一是健身场地设施填空白补短板，配建适老适小健身器材。二是聚焦打造省级全民健身赛事品牌，创新举办云南省建设南亚东南亚辐射中心体育交流大赛和民族团结杯气排球联赛，积极申请作为第二届全国全民健身大赛（西南区）牵头省份，承办西南区开闭幕式及相关项目比赛。三是加大全民健身科研与宣传力度。深化体医融合建设成果，开展“运动促进健康”体育为民、惠民服务项目；对接下步体育强国指标体系，推动常态化国民体质监测及国家体育锻炼标准达标测验工作。\n2、不断提高青少年体育训练质量和效益，推动竞技体育后备人才培养工作科学高效开展，为建设体育强国、健康中国注入新的生机与活力。资金安排以支持省体育局各训练单位、各承办省级青少年项目锦标赛比赛、支持承接我省组队参加全国青少年运动会参赛和参加“奔跑吧少年”全国青少年阳光体育大会组团参赛、建设体育后备人才基地为重点，为青少年学生提供健康的运动、娱乐和环境。\n3、进一步推动云南省体育产业高质量发展，激发体育消费潜力。一是积极培育体育领域优质项目，着力培育体育旅游精品项目、体育文化优秀项目，丰富体育产业业态。二是积极支持户外运动产业发展，大力推广户外运动线路，满足群众多样化体育需求。三是大力发展体育相关产业。大力发展体育竞赛表演产业，充分发挥其带动作用，进一步促进体育消费。四是积极培育体育用品制造业，完善体育产业链条。五是大力宣传推广云南体育，借助南博会、体博会等展会平台，提升云南体育的知名度和影响力。\n4、在上一年度的基础上，利用媒体自身集成优势，整合媒体资源对云南体育工作进行宣传报道。重点开展全民健身宣传、《云南体育》宣传专栏、舆情应对与引导、云南体育品牌推广、云南省系列马拉松整体品牌策划等利用央媒、省内知名媒体平台进行全方面、多角度宣传，进一步提升云南体育形象宣传,增强社会关注度、参与度。","产出指标","数量指标","九大高原湖泊山水赛线上活动场次",">=","7","次","定量指标","反映云南省九大高原湖泊山水联赛活动开展情况。"]
["省体育局（省本级）体彩公益金专项经费","省本级体彩公益金项目组织实施备战全运会经费2项，大型体育赛事活动专项经费5项、青少年体育竞赛专项经费1项、体育产业发展项目12项，体育领域意识形态专项经费3项，体育事业统计专项经费1项、体育专业人才培养专项经费1项，预算管理专项经费2项。\n实现目标：\n1、聚焦本年全民健身重点工作，结合巡视问题整改统筹安排。一是健身场地设施填空白补短板，配建适老适小健身器材。二是聚焦打造省级全民健身赛事品牌，创新举办云南省建设南亚东南亚辐射中心体育交流大赛和民族团结杯气排球联赛，积极申请作为第二届全国全民健身大赛（西南区）牵头省份，承办西南区开闭幕式及相关项目比赛。三是加大全民健身科研与宣传力度。深化体医融合建设成果，开展“运动促进健康”体育为民、惠民服务项目；对接下步体育强国指标体系，推动常态化国民体质监测及国家体育锻炼标准达标测验工作。\n2、不断提高青少年体育训练质量和效益，推动竞技体育后备人才培养工作科学高效开展，为建设体育强国、健康中国注入新的生机与活力。资金安排以支持省体育局各训练单位、各承办省级青少年项目锦标赛比赛、支持承接我省组队参加全国青少年运动会参赛和参加“奔跑吧少年”全国青少年阳光体育大会组团参赛、建设体育后备人才基地为重点，为青少年学生提供健康的运动、娱乐和环境。\n3、进一步推动云南省体育产业高质量发展，激发体育消费潜力。一是积极培育体育领域优质项目，着力培育体育旅游精品项目、体育文化优秀项目，丰富体育产业业态。二是积极支持户外运动产业发展，大力推广户外运动线路，满足群众多样化体育需求。三是大力发展体育相关产业。大力发展体育竞赛表演产业，充分发挥其带动作用，进一步促进体育消费。四是积极培育体育用品制造业，完善体育产业链条。五是大力宣传推广云南体育，借助南博会、体博会等展会平台，提升云南体育的知名度和影响力。\n4、在上一年度的基础上，利用媒体自身集成优势，整合媒体资源对云南体育工作进行宣传报道。重点开展全民健身宣传、《云南体育》宣传专栏、舆情应对与引导、云南体育品牌推广、云南省系列马拉松整体品牌策划等利用央媒、省内知名媒体平台进行全方面、多角度宣传，进一步提升云南体育形象宣传,增强社会关注度、参与度。","产出指标","数量指标","参与九大高原湖泊赛线上活动人数",">=","100000","人","定量指标","反映云南省九大高原湖泊山水联赛活动开展情况。"]
["省体育局（省本级）体彩公益金专项经费","省本级体彩公益金项目组织实施备战全运会经费2项，大型体育赛事活动专项经费5项、青少年体育竞赛专项经费1项、体育产业发展项目12项，体育领域意识形态专项经费3项，体育事业统计专项经费1项、体育专业人才培养专项经费1项，预算管理专项经费2项。\n实现目标：\n1、聚焦本年全民健身重点工作，结合巡视问题整改统筹安排。一是健身场地设施填空白补短板，配建适老适小健身器材。二是聚焦打造省级全民健身赛事品牌，创新举办云南省建设南亚东南亚辐射中心体育交流大赛和民族团结杯气排球联赛，积极申请作为第二届全国全民健身大赛（西南区）牵头省份，承办西南区开闭幕式及相关项目比赛。三是加大全民健身科研与宣传力度。深化体医融合建设成果，开展“运动促进健康”体育为民、惠民服务项目；对接下步体育强国指标体系，推动常态化国民体质监测及国家体育锻炼标准达标测验工作。\n2、不断提高青少年体育训练质量和效益，推动竞技体育后备人才培养工作科学高效开展，为建设体育强国、健康中国注入新的生机与活力。资金安排以支持省体育局各训练单位、各承办省级青少年项目锦标赛比赛、支持承接我省组队参加全国青少年运动会参赛和参加“奔跑吧少年”全国青少年阳光体育大会组团参赛、建设体育后备人才基地为重点，为青少年学生提供健康的运动、娱乐和环境。\n3、进一步推动云南省体育产业高质量发展，激发体育消费潜力。一是积极培育体育领域优质项目，着力培育体育旅游精品项目、体育文化优秀项目，丰富体育产业业态。二是积极支持户外运动产业发展，大力推广户外运动线路，满足群众多样化体育需求。三是大力发展体育相关产业。大力发展体育竞赛表演产业，充分发挥其带动作用，进一步促进体育消费。四是积极培育体育用品制造业，完善体育产业链条。五是大力宣传推广云南体育，借助南博会、体博会等展会平台，提升云南体育的知名度和影响力。\n4、在上一年度的基础上，利用媒体自身集成优势，整合媒体资源对云南体育工作进行宣传报道。重点开展全民健身宣传、《云南体育》宣传专栏、舆情应对与引导、云南体育品牌推广、云南省系列马拉松整体品牌策划等利用央媒、省内知名媒体平台进行全方面、多角度宣传，进一步提升云南体育形象宣传,增强社会关注度、参与度。","产出指标","数量指标","竞赛奖牌购置数量",">=","15000","枚","定量指标","反映2026年云南省青少年体育竞赛采购专用材料情况"]
["省体育局（省本级）体彩公益金专项经费","省本级体彩公益金项目组织实施备战全运会经费2项，大型体育赛事活动专项经费5项、青少年体育竞赛专项经费1项、体育产业发展项目12项，体育领域意识形态专项经费3项，体育事业统计专项经费1项、体育专业人才培养专项经费1项，预算管理专项经费2项。\n实现目标：\n1、聚焦本年全民健身重点工作，结合巡视问题整改统筹安排。一是健身场地设施填空白补短板，配建适老适小健身器材。二是聚焦打造省级全民健身赛事品牌，创新举办云南省建设南亚东南亚辐射中心体育交流大赛和民族团结杯气排球联赛，积极申请作为第二届全国全民健身大赛（西南区）牵头省份，承办西南区开闭幕式及相关项目比赛。三是加大全民健身科研与宣传力度。深化体医融合建设成果，开展“运动促进健康”体育为民、惠民服务项目；对接下步体育强国指标体系，推动常态化国民体质监测及国家体育锻炼标准达标测验工作。\n2、不断提高青少年体育训练质量和效益，推动竞技体育后备人才培养工作科学高效开展，为建设体育强国、健康中国注入新的生机与活力。资金安排以支持省体育局各训练单位、各承办省级青少年项目锦标赛比赛、支持承接我省组队参加全国青少年运动会参赛和参加“奔跑吧少年”全国青少年阳光体育大会组团参赛、建设体育后备人才基地为重点，为青少年学生提供健康的运动、娱乐和环境。\n3、进一步推动云南省体育产业高质量发展，激发体育消费潜力。一是积极培育体育领域优质项目，着力培育体育旅游精品项目、体育文化优秀项目，丰富体育产业业态。二是积极支持户外运动产业发展，大力推广户外运动线路，满足群众多样化体育需求。三是大力发展体育相关产业。大力发展体育竞赛表演产业，充分发挥其带动作用，进一步促进体育消费。四是积极培育体育用品制造业，完善体育产业链条。五是大力宣传推广云南体育，借助南博会、体博会等展会平台，提升云南体育的知名度和影响力。\n4、在上一年度的基础上，利用媒体自身集成优势，整合媒体资源对云南体育工作进行宣传报道。重点开展全民健身宣传、《云南体育》宣传专栏、舆情应对与引导、云南体育品牌推广、云南省系列马拉松整体品牌策划等利用央媒、省内知名媒体平台进行全方面、多角度宣传，进一步提升云南体育形象宣传,增强社会关注度、参与度。","产出指标","数量指标","竞赛证书购置数量",">=","50000","册","定量指标","反映2026年云南省青少年体育竞赛采购专用材料情况。\n"]
["省体育局（省本级）体彩公益金专项经费","省本级体彩公益金项目组织实施备战全运会经费2项，大型体育赛事活动专项经费5项、青少年体育竞赛专项经费1项、体育产业发展项目12项，体育领域意识形态专项经费3项，体育事业统计专项经费1项、体育专业人才培养专项经费1项，预算管理专项经费2项。\n实现目标：\n1、聚焦本年全民健身重点工作，结合巡视问题整改统筹安排。一是健身场地设施填空白补短板，配建适老适小健身器材。二是聚焦打造省级全民健身赛事品牌，创新举办云南省建设南亚东南亚辐射中心体育交流大赛和民族团结杯气排球联赛，积极申请作为第二届全国全民健身大赛（西南区）牵头省份，承办西南区开闭幕式及相关项目比赛。三是加大全民健身科研与宣传力度。深化体医融合建设成果，开展“运动促进健康”体育为民、惠民服务项目；对接下步体育强国指标体系，推动常态化国民体质监测及国家体育锻炼标准达标测验工作。\n2、不断提高青少年体育训练质量和效益，推动竞技体育后备人才培养工作科学高效开展，为建设体育强国、健康中国注入新的生机与活力。资金安排以支持省体育局各训练单位、各承办省级青少年项目锦标赛比赛、支持承接我省组队参加全国青少年运动会参赛和参加“奔跑吧少年”全国青少年阳光体育大会组团参赛、建设体育后备人才基地为重点，为青少年学生提供健康的运动、娱乐和环境。\n3、进一步推动云南省体育产业高质量发展，激发体育消费潜力。一是积极培育体育领域优质项目，着力培育体育旅游精品项目、体育文化优秀项目，丰富体育产业业态。二是积极支持户外运动产业发展，大力推广户外运动线路，满足群众多样化体育需求。三是大力发展体育相关产业。大力发展体育竞赛表演产业，充分发挥其带动作用，进一步促进体育消费。四是积极培育体育用品制造业，完善体育产业链条。五是大力宣传推广云南体育，借助南博会、体博会等展会平台，提升云南体育的知名度和影响力。\n4、在上一年度的基础上，利用媒体自身集成优势，整合媒体资源对云南体育工作进行宣传报道。重点开展全民健身宣传、《云南体育》宣传专栏、舆情应对与引导、云南体育品牌推广、云南省系列马拉松整体品牌策划等利用央媒、省内知名媒体平台进行全方面、多角度宣传，进一步提升云南体育形象宣传,增强社会关注度、参与度。","产出指标","质量指标","发布稿件（短视频）原创率",">=","95","%","定量指标","发布稿件（短视频）原创率=发布或推送的原创稿件（短视频）数量/发布或推送的稿件（短视频）总数量*100%\n适用于有原创要求的稿件或短视频，如购买信息、转载等没有自创要求的不适用该指标。"]
["省体育局（省本级）体彩公益金专项经费","省本级体彩公益金项目组织实施备战全运会经费2项，大型体育赛事活动专项经费5项、青少年体育竞赛专项经费1项、体育产业发展项目12项，体育领域意识形态专项经费3项，体育事业统计专项经费1项、体育专业人才培养专项经费1项，预算管理专项经费2项。\n实现目标：\n1、聚焦本年全民健身重点工作，结合巡视问题整改统筹安排。一是健身场地设施填空白补短板，配建适老适小健身器材。二是聚焦打造省级全民健身赛事品牌，创新举办云南省建设南亚东南亚辐射中心体育交流大赛和民族团结杯气排球联赛，积极申请作为第二届全国全民健身大赛（西南区）牵头省份，承办西南区开闭幕式及相关项目比赛。三是加大全民健身科研与宣传力度。深化体医融合建设成果，开展“运动促进健康”体育为民、惠民服务项目；对接下步体育强国指标体系，推动常态化国民体质监测及国家体育锻炼标准达标测验工作。\n2、不断提高青少年体育训练质量和效益，推动竞技体育后备人才培养工作科学高效开展，为建设体育强国、健康中国注入新的生机与活力。资金安排以支持省体育局各训练单位、各承办省级青少年项目锦标赛比赛、支持承接我省组队参加全国青少年运动会参赛和参加“奔跑吧少年”全国青少年阳光体育大会组团参赛、建设体育后备人才基地为重点，为青少年学生提供健康的运动、娱乐和环境。\n3、进一步推动云南省体育产业高质量发展，激发体育消费潜力。一是积极培育体育领域优质项目，着力培育体育旅游精品项目、体育文化优秀项目，丰富体育产业业态。二是积极支持户外运动产业发展，大力推广户外运动线路，满足群众多样化体育需求。三是大力发展体育相关产业。大力发展体育竞赛表演产业，充分发挥其带动作用，进一步促进体育消费。四是积极培育体育用品制造业，完善体育产业链条。五是大力宣传推广云南体育，借助南博会、体博会等展会平台，提升云南体育的知名度和影响力。\n4、在上一年度的基础上，利用媒体自身集成优势，整合媒体资源对云南体育工作进行宣传报道。重点开展全民健身宣传、《云南体育》宣传专栏、舆情应对与引导、云南体育品牌推广、云南省系列马拉松整体品牌策划等利用央媒、省内知名媒体平台进行全方面、多角度宣传，进一步提升云南体育形象宣传,增强社会关注度、参与度。","产出指标","质量指标","体育产业平台信息数据安全","=","100","%","定量指标","反映信息系统相关数据安全的保障情况"]
["省体育局（省本级）体彩公益金专项经费","省本级体彩公益金项目组织实施备战全运会经费2项，大型体育赛事活动专项经费5项、青少年体育竞赛专项经费1项、体育产业发展项目12项，体育领域意识形态专项经费3项，体育事业统计专项经费1项、体育专业人才培养专项经费1项，预算管理专项经费2项。\n实现目标：\n1、聚焦本年全民健身重点工作，结合巡视问题整改统筹安排。一是健身场地设施填空白补短板，配建适老适小健身器材。二是聚焦打造省级全民健身赛事品牌，创新举办云南省建设南亚东南亚辐射中心体育交流大赛和民族团结杯气排球联赛，积极申请作为第二届全国全民健身大赛（西南区）牵头省份，承办西南区开闭幕式及相关项目比赛。三是加大全民健身科研与宣传力度。深化体医融合建设成果，开展“运动促进健康”体育为民、惠民服务项目；对接下步体育强国指标体系，推动常态化国民体质监测及国家体育锻炼标准达标测验工作。\n2、不断提高青少年体育训练质量和效益，推动竞技体育后备人才培养工作科学高效开展，为建设体育强国、健康中国注入新的生机与活力。资金安排以支持省体育局各训练单位、各承办省级青少年项目锦标赛比赛、支持承接我省组队参加全国青少年运动会参赛和参加“奔跑吧少年”全国青少年阳光体育大会组团参赛、建设体育后备人才基地为重点，为青少年学生提供健康的运动、娱乐和环境。\n3、进一步推动云南省体育产业高质量发展，激发体育消费潜力。一是积极培育体育领域优质项目，着力培育体育旅游精品项目、体育文化优秀项目，丰富体育产业业态。二是积极支持户外运动产业发展，大力推广户外运动线路，满足群众多样化体育需求。三是大力发展体育相关产业。大力发展体育竞赛表演产业，充分发挥其带动作用，进一步促进体育消费。四是积极培育体育用品制造业，完善体育产业链条。五是大力宣传推广云南体育，借助南博会、体博会等展会平台，提升云南体育的知名度和影响力。\n4、在上一年度的基础上，利用媒体自身集成优势，整合媒体资源对云南体育工作进行宣传报道。重点开展全民健身宣传、《云南体育》宣传专栏、舆情应对与引导、云南体育品牌推广、云南省系列马拉松整体品牌策划等利用央媒、省内知名媒体平台进行全方面、多角度宣传，进一步提升云南体育形象宣传,增强社会关注度、参与度。","产出指标","质量指标","外训外赛任务完成率","=","100","%","定量指标","反映足球备战项目完成外训外赛任务情况。"]
["省体育局（省本级）体彩公益金专项经费","省本级体彩公益金项目组织实施备战全运会经费2项，大型体育赛事活动专项经费5项、青少年体育竞赛专项经费1项、体育产业发展项目12项，体育领域意识形态专项经费3项，体育事业统计专项经费1项、体育专业人才培养专项经费1项，预算管理专项经费2项。\n实现目标：\n1、聚焦本年全民健身重点工作，结合巡视问题整改统筹安排。一是健身场地设施填空白补短板，配建适老适小健身器材。二是聚焦打造省级全民健身赛事品牌，创新举办云南省建设南亚东南亚辐射中心体育交流大赛和民族团结杯气排球联赛，积极申请作为第二届全国全民健身大赛（西南区）牵头省份，承办西南区开闭幕式及相关项目比赛。三是加大全民健身科研与宣传力度。深化体医融合建设成果，开展“运动促进健康”体育为民、惠民服务项目；对接下步体育强国指标体系，推动常态化国民体质监测及国家体育锻炼标准达标测验工作。\n2、不断提高青少年体育训练质量和效益，推动竞技体育后备人才培养工作科学高效开展，为建设体育强国、健康中国注入新的生机与活力。资金安排以支持省体育局各训练单位、各承办省级青少年项目锦标赛比赛、支持承接我省组队参加全国青少年运动会参赛和参加“奔跑吧少年”全国青少年阳光体育大会组团参赛、建设体育后备人才基地为重点，为青少年学生提供健康的运动、娱乐和环境。\n3、进一步推动云南省体育产业高质量发展，激发体育消费潜力。一是积极培育体育领域优质项目，着力培育体育旅游精品项目、体育文化优秀项目，丰富体育产业业态。二是积极支持户外运动产业发展，大力推广户外运动线路，满足群众多样化体育需求。三是大力发展体育相关产业。大力发展体育竞赛表演产业，充分发挥其带动作用，进一步促进体育消费。四是积极培育体育用品制造业，完善体育产业链条。五是大力宣传推广云南体育，借助南博会、体博会等展会平台，提升云南体育的知名度和影响力。\n4、在上一年度的基础上，利用媒体自身集成优势，整合媒体资源对云南体育工作进行宣传报道。重点开展全民健身宣传、《云南体育》宣传专栏、舆情应对与引导、云南体育品牌推广、云南省系列马拉松整体品牌策划等利用央媒、省内知名媒体平台进行全方面、多角度宣传，进一步提升云南体育形象宣传,增强社会关注度、参与度。","产出指标","质量指标","足球备战运动员日均训练时长",">=","5","小时","定量指标","反映足球备战项目完成外训外赛任务情况。"]
["省体育局（省本级）体彩公益金专项经费","省本级体彩公益金项目组织实施备战全运会经费2项，大型体育赛事活动专项经费5项、青少年体育竞赛专项经费1项、体育产业发展项目12项，体育领域意识形态专项经费3项，体育事业统计专项经费1项、体育专业人才培养专项经费1项，预算管理专项经费2项。\n实现目标：\n1、聚焦本年全民健身重点工作，结合巡视问题整改统筹安排。一是健身场地设施填空白补短板，配建适老适小健身器材。二是聚焦打造省级全民健身赛事品牌，创新举办云南省建设南亚东南亚辐射中心体育交流大赛和民族团结杯气排球联赛，积极申请作为第二届全国全民健身大赛（西南区）牵头省份，承办西南区开闭幕式及相关项目比赛。三是加大全民健身科研与宣传力度。深化体医融合建设成果，开展“运动促进健康”体育为民、惠民服务项目；对接下步体育强国指标体系，推动常态化国民体质监测及国家体育锻炼标准达标测验工作。\n2、不断提高青少年体育训练质量和效益，推动竞技体育后备人才培养工作科学高效开展，为建设体育强国、健康中国注入新的生机与活力。资金安排以支持省体育局各训练单位、各承办省级青少年项目锦标赛比赛、支持承接我省组队参加全国青少年运动会参赛和参加“奔跑吧少年”全国青少年阳光体育大会组团参赛、建设体育后备人才基地为重点，为青少年学生提供健康的运动、娱乐和环境。\n3、进一步推动云南省体育产业高质量发展，激发体育消费潜力。一是积极培育体育领域优质项目，着力培育体育旅游精品项目、体育文化优秀项目，丰富体育产业业态。二是积极支持户外运动产业发展，大力推广户外运动线路，满足群众多样化体育需求。三是大力发展体育相关产业。大力发展体育竞赛表演产业，充分发挥其带动作用，进一步促进体育消费。四是积极培育体育用品制造业，完善体育产业链条。五是大力宣传推广云南体育，借助南博会、体博会等展会平台，提升云南体育的知名度和影响力。\n4、在上一年度的基础上，利用媒体自身集成优势，整合媒体资源对云南体育工作进行宣传报道。重点开展全民健身宣传、《云南体育》宣传专栏、舆情应对与引导、云南体育品牌推广、云南省系列马拉松整体品牌策划等利用央媒、省内知名媒体平台进行全方面、多角度宣传，进一步提升云南体育形象宣传,增强社会关注度、参与度。","产出指标","质量指标","赛事活动安全事故发生次数","=","0","次","定量指标","反映开展“体总杯”城市篮球联赛等赛事活动安全生产情况。"]
["省体育局（省本级）体彩公益金专项经费","省本级体彩公益金项目组织实施备战全运会经费2项，大型体育赛事活动专项经费5项、青少年体育竞赛专项经费1项、体育产业发展项目12项，体育领域意识形态专项经费3项，体育事业统计专项经费1项、体育专业人才培养专项经费1项，预算管理专项经费2项。\n实现目标：\n1、聚焦本年全民健身重点工作，结合巡视问题整改统筹安排。一是健身场地设施填空白补短板，配建适老适小健身器材。二是聚焦打造省级全民健身赛事品牌，创新举办云南省建设南亚东南亚辐射中心体育交流大赛和民族团结杯气排球联赛，积极申请作为第二届全国全民健身大赛（西南区）牵头省份，承办西南区开闭幕式及相关项目比赛。三是加大全民健身科研与宣传力度。深化体医融合建设成果，开展“运动促进健康”体育为民、惠民服务项目；对接下步体育强国指标体系，推动常态化国民体质监测及国家体育锻炼标准达标测验工作。\n2、不断提高青少年体育训练质量和效益，推动竞技体育后备人才培养工作科学高效开展，为建设体育强国、健康中国注入新的生机与活力。资金安排以支持省体育局各训练单位、各承办省级青少年项目锦标赛比赛、支持承接我省组队参加全国青少年运动会参赛和参加“奔跑吧少年”全国青少年阳光体育大会组团参赛、建设体育后备人才基地为重点，为青少年学生提供健康的运动、娱乐和环境。\n3、进一步推动云南省体育产业高质量发展，激发体育消费潜力。一是积极培育体育领域优质项目，着力培育体育旅游精品项目、体育文化优秀项目，丰富体育产业业态。二是积极支持户外运动产业发展，大力推广户外运动线路，满足群众多样化体育需求。三是大力发展体育相关产业。大力发展体育竞赛表演产业，充分发挥其带动作用，进一步促进体育消费。四是积极培育体育用品制造业，完善体育产业链条。五是大力宣传推广云南体育，借助南博会、体博会等展会平台，提升云南体育的知名度和影响力。\n4、在上一年度的基础上，利用媒体自身集成优势，整合媒体资源对云南体育工作进行宣传报道。重点开展全民健身宣传、《云南体育》宣传专栏、舆情应对与引导、云南体育品牌推广、云南省系列马拉松整体品牌策划等利用央媒、省内知名媒体平台进行全方面、多角度宣传，进一步提升云南体育形象宣传,增强社会关注度、参与度。","产出指标","质量指标","入选国家级体育精品项目率",">=","3","%","定量指标","反映我省体育旅游、体育文化工作开展情况。"]
["省体育局（省本级）体彩公益金专项经费","省本级体彩公益金项目组织实施备战全运会经费2项，大型体育赛事活动专项经费5项、青少年体育竞赛专项经费1项、体育产业发展项目12项，体育领域意识形态专项经费3项，体育事业统计专项经费1项、体育专业人才培养专项经费1项，预算管理专项经费2项。\n实现目标：\n1、聚焦本年全民健身重点工作，结合巡视问题整改统筹安排。一是健身场地设施填空白补短板，配建适老适小健身器材。二是聚焦打造省级全民健身赛事品牌，创新举办云南省建设南亚东南亚辐射中心体育交流大赛和民族团结杯气排球联赛，积极申请作为第二届全国全民健身大赛（西南区）牵头省份，承办西南区开闭幕式及相关项目比赛。三是加大全民健身科研与宣传力度。深化体医融合建设成果，开展“运动促进健康”体育为民、惠民服务项目；对接下步体育强国指标体系，推动常态化国民体质监测及国家体育锻炼标准达标测验工作。\n2、不断提高青少年体育训练质量和效益，推动竞技体育后备人才培养工作科学高效开展，为建设体育强国、健康中国注入新的生机与活力。资金安排以支持省体育局各训练单位、各承办省级青少年项目锦标赛比赛、支持承接我省组队参加全国青少年运动会参赛和参加“奔跑吧少年”全国青少年阳光体育大会组团参赛、建设体育后备人才基地为重点，为青少年学生提供健康的运动、娱乐和环境。\n3、进一步推动云南省体育产业高质量发展，激发体育消费潜力。一是积极培育体育领域优质项目，着力培育体育旅游精品项目、体育文化优秀项目，丰富体育产业业态。二是积极支持户外运动产业发展，大力推广户外运动线路，满足群众多样化体育需求。三是大力发展体育相关产业。大力发展体育竞赛表演产业，充分发挥其带动作用，进一步促进体育消费。四是积极培育体育用品制造业，完善体育产业链条。五是大力宣传推广云南体育，借助南博会、体博会等展会平台，提升云南体育的知名度和影响力。\n4、在上一年度的基础上，利用媒体自身集成优势，整合媒体资源对云南体育工作进行宣传报道。重点开展全民健身宣传、《云南体育》宣传专栏、舆情应对与引导、云南体育品牌推广、云南省系列马拉松整体品牌策划等利用央媒、省内知名媒体平台进行全方面、多角度宣传，进一步提升云南体育形象宣传,增强社会关注度、参与度。","产出指标","质量指标","大额资金项目预算审核报告完成率","=","100","%","定量指标","反映2026年“大额资金”支出项目预算审核报告完成情况。"]
["省体育局（省本级）体彩公益金专项经费","省本级体彩公益金项目组织实施备战全运会经费2项，大型体育赛事活动专项经费5项、青少年体育竞赛专项经费1项、体育产业发展项目12项，体育领域意识形态专项经费3项，体育事业统计专项经费1项、体育专业人才培养专项经费1项，预算管理专项经费2项。\n实现目标：\n1、聚焦本年全民健身重点工作，结合巡视问题整改统筹安排。一是健身场地设施填空白补短板，配建适老适小健身器材。二是聚焦打造省级全民健身赛事品牌，创新举办云南省建设南亚东南亚辐射中心体育交流大赛和民族团结杯气排球联赛，积极申请作为第二届全国全民健身大赛（西南区）牵头省份，承办西南区开闭幕式及相关项目比赛。三是加大全民健身科研与宣传力度。深化体医融合建设成果，开展“运动促进健康”体育为民、惠民服务项目；对接下步体育强国指标体系，推动常态化国民体质监测及国家体育锻炼标准达标测验工作。\n2、不断提高青少年体育训练质量和效益，推动竞技体育后备人才培养工作科学高效开展，为建设体育强国、健康中国注入新的生机与活力。资金安排以支持省体育局各训练单位、各承办省级青少年项目锦标赛比赛、支持承接我省组队参加全国青少年运动会参赛和参加“奔跑吧少年”全国青少年阳光体育大会组团参赛、建设体育后备人才基地为重点，为青少年学生提供健康的运动、娱乐和环境。\n3、进一步推动云南省体育产业高质量发展，激发体育消费潜力。一是积极培育体育领域优质项目，着力培育体育旅游精品项目、体育文化优秀项目，丰富体育产业业态。二是积极支持户外运动产业发展，大力推广户外运动线路，满足群众多样化体育需求。三是大力发展体育相关产业。大力发展体育竞赛表演产业，充分发挥其带动作用，进一步促进体育消费。四是积极培育体育用品制造业，完善体育产业链条。五是大力宣传推广云南体育，借助南博会、体博会等展会平台，提升云南体育的知名度和影响力。\n4、在上一年度的基础上，利用媒体自身集成优势，整合媒体资源对云南体育工作进行宣传报道。重点开展全民健身宣传、《云南体育》宣传专栏、舆情应对与引导、云南体育品牌推广、云南省系列马拉松整体品牌策划等利用央媒、省内知名媒体平台进行全方面、多角度宣传，进一步提升云南体育形象宣传,增强社会关注度、参与度。","产出指标","质量指标","项目绩效评价报告完成率","=","100","%","定量指标","反映开展体彩公益金资助项目绩效评价成果情况。"]
["省体育局（省本级）体彩公益金专项经费","省本级体彩公益金项目组织实施备战全运会经费2项，大型体育赛事活动专项经费5项、青少年体育竞赛专项经费1项、体育产业发展项目12项，体育领域意识形态专项经费3项，体育事业统计专项经费1项、体育专业人才培养专项经费1项，预算管理专项经费2项。\n实现目标：\n1、聚焦本年全民健身重点工作，结合巡视问题整改统筹安排。一是健身场地设施填空白补短板，配建适老适小健身器材。二是聚焦打造省级全民健身赛事品牌，创新举办云南省建设南亚东南亚辐射中心体育交流大赛和民族团结杯气排球联赛，积极申请作为第二届全国全民健身大赛（西南区）牵头省份，承办西南区开闭幕式及相关项目比赛。三是加大全民健身科研与宣传力度。深化体医融合建设成果，开展“运动促进健康”体育为民、惠民服务项目；对接下步体育强国指标体系，推动常态化国民体质监测及国家体育锻炼标准达标测验工作。\n2、不断提高青少年体育训练质量和效益，推动竞技体育后备人才培养工作科学高效开展，为建设体育强国、健康中国注入新的生机与活力。资金安排以支持省体育局各训练单位、各承办省级青少年项目锦标赛比赛、支持承接我省组队参加全国青少年运动会参赛和参加“奔跑吧少年”全国青少年阳光体育大会组团参赛、建设体育后备人才基地为重点，为青少年学生提供健康的运动、娱乐和环境。\n3、进一步推动云南省体育产业高质量发展，激发体育消费潜力。一是积极培育体育领域优质项目，着力培育体育旅游精品项目、体育文化优秀项目，丰富体育产业业态。二是积极支持户外运动产业发展，大力推广户外运动线路，满足群众多样化体育需求。三是大力发展体育相关产业。大力发展体育竞赛表演产业，充分发挥其带动作用，进一步促进体育消费。四是积极培育体育用品制造业，完善体育产业链条。五是大力宣传推广云南体育，借助南博会、体博会等展会平台，提升云南体育的知名度和影响力。\n4、在上一年度的基础上，利用媒体自身集成优势，整合媒体资源对云南体育工作进行宣传报道。重点开展全民健身宣传、《云南体育》宣传专栏、舆情应对与引导、云南体育品牌推广、云南省系列马拉松整体品牌策划等利用央媒、省内知名媒体平台进行全方面、多角度宣传，进一步提升云南体育形象宣传,增强社会关注度、参与度。","产出指标","时效指标","项目完成及时率","=","100","%","定量指标","反映项目完成时间节点要求。"]
["省体育局（省本级）体彩公益金专项经费","省本级体彩公益金项目组织实施备战全运会经费2项，大型体育赛事活动专项经费5项、青少年体育竞赛专项经费1项、体育产业发展项目12项，体育领域意识形态专项经费3项，体育事业统计专项经费1项、体育专业人才培养专项经费1项，预算管理专项经费2项。\n实现目标：\n1、聚焦本年全民健身重点工作，结合巡视问题整改统筹安排。一是健身场地设施填空白补短板，配建适老适小健身器材。二是聚焦打造省级全民健身赛事品牌，创新举办云南省建设南亚东南亚辐射中心体育交流大赛和民族团结杯气排球联赛，积极申请作为第二届全国全民健身大赛（西南区）牵头省份，承办西南区开闭幕式及相关项目比赛。三是加大全民健身科研与宣传力度。深化体医融合建设成果，开展“运动促进健康”体育为民、惠民服务项目；对接下步体育强国指标体系，推动常态化国民体质监测及国家体育锻炼标准达标测验工作。\n2、不断提高青少年体育训练质量和效益，推动竞技体育后备人才培养工作科学高效开展，为建设体育强国、健康中国注入新的生机与活力。资金安排以支持省体育局各训练单位、各承办省级青少年项目锦标赛比赛、支持承接我省组队参加全国青少年运动会参赛和参加“奔跑吧少年”全国青少年阳光体育大会组团参赛、建设体育后备人才基地为重点，为青少年学生提供健康的运动、娱乐和环境。\n3、进一步推动云南省体育产业高质量发展，激发体育消费潜力。一是积极培育体育领域优质项目，着力培育体育旅游精品项目、体育文化优秀项目，丰富体育产业业态。二是积极支持户外运动产业发展，大力推广户外运动线路，满足群众多样化体育需求。三是大力发展体育相关产业。大力发展体育竞赛表演产业，充分发挥其带动作用，进一步促进体育消费。四是积极培育体育用品制造业，完善体育产业链条。五是大力宣传推广云南体育，借助南博会、体博会等展会平台，提升云南体育的知名度和影响力。\n4、在上一年度的基础上，利用媒体自身集成优势，整合媒体资源对云南体育工作进行宣传报道。重点开展全民健身宣传、《云南体育》宣传专栏、舆情应对与引导、云南体育品牌推广、云南省系列马拉松整体品牌策划等利用央媒、省内知名媒体平台进行全方面、多角度宣传，进一步提升云南体育形象宣传,增强社会关注度、参与度。","产出指标","时效指标","备战任务完成及时率","=","100","%","定量指标","反映足球备战项目开展情况。"]
["省体育局（省本级）体彩公益金专项经费","省本级体彩公益金项目组织实施备战全运会经费2项，大型体育赛事活动专项经费5项、青少年体育竞赛专项经费1项、体育产业发展项目12项，体育领域意识形态专项经费3项，体育事业统计专项经费1项、体育专业人才培养专项经费1项，预算管理专项经费2项。\n实现目标：\n1、聚焦本年全民健身重点工作，结合巡视问题整改统筹安排。一是健身场地设施填空白补短板，配建适老适小健身器材。二是聚焦打造省级全民健身赛事品牌，创新举办云南省建设南亚东南亚辐射中心体育交流大赛和民族团结杯气排球联赛，积极申请作为第二届全国全民健身大赛（西南区）牵头省份，承办西南区开闭幕式及相关项目比赛。三是加大全民健身科研与宣传力度。深化体医融合建设成果，开展“运动促进健康”体育为民、惠民服务项目；对接下步体育强国指标体系，推动常态化国民体质监测及国家体育锻炼标准达标测验工作。\n2、不断提高青少年体育训练质量和效益，推动竞技体育后备人才培养工作科学高效开展，为建设体育强国、健康中国注入新的生机与活力。资金安排以支持省体育局各训练单位、各承办省级青少年项目锦标赛比赛、支持承接我省组队参加全国青少年运动会参赛和参加“奔跑吧少年”全国青少年阳光体育大会组团参赛、建设体育后备人才基地为重点，为青少年学生提供健康的运动、娱乐和环境。\n3、进一步推动云南省体育产业高质量发展，激发体育消费潜力。一是积极培育体育领域优质项目，着力培育体育旅游精品项目、体育文化优秀项目，丰富体育产业业态。二是积极支持户外运动产业发展，大力推广户外运动线路，满足群众多样化体育需求。三是大力发展体育相关产业。大力发展体育竞赛表演产业，充分发挥其带动作用，进一步促进体育消费。四是积极培育体育用品制造业，完善体育产业链条。五是大力宣传推广云南体育，借助南博会、体博会等展会平台，提升云南体育的知名度和影响力。\n4、在上一年度的基础上，利用媒体自身集成优势，整合媒体资源对云南体育工作进行宣传报道。重点开展全民健身宣传、《云南体育》宣传专栏、舆情应对与引导、云南体育品牌推广、云南省系列马拉松整体品牌策划等利用央媒、省内知名媒体平台进行全方面、多角度宣传，进一步提升云南体育形象宣传,增强社会关注度、参与度。","产出指标","时效指标","培养运动员数量计划完成率","=","100","%","定量指标","反映攀岩青年队合作项目开展情况。"]
["省体育局（省本级）体彩公益金专项经费","省本级体彩公益金项目组织实施备战全运会经费2项，大型体育赛事活动专项经费5项、青少年体育竞赛专项经费1项、体育产业发展项目12项，体育领域意识形态专项经费3项，体育事业统计专项经费1项、体育专业人才培养专项经费1项，预算管理专项经费2项。\n实现目标：\n1、聚焦本年全民健身重点工作，结合巡视问题整改统筹安排。一是健身场地设施填空白补短板，配建适老适小健身器材。二是聚焦打造省级全民健身赛事品牌，创新举办云南省建设南亚东南亚辐射中心体育交流大赛和民族团结杯气排球联赛，积极申请作为第二届全国全民健身大赛（西南区）牵头省份，承办西南区开闭幕式及相关项目比赛。三是加大全民健身科研与宣传力度。深化体医融合建设成果，开展“运动促进健康”体育为民、惠民服务项目；对接下步体育强国指标体系，推动常态化国民体质监测及国家体育锻炼标准达标测验工作。\n2、不断提高青少年体育训练质量和效益，推动竞技体育后备人才培养工作科学高效开展，为建设体育强国、健康中国注入新的生机与活力。资金安排以支持省体育局各训练单位、各承办省级青少年项目锦标赛比赛、支持承接我省组队参加全国青少年运动会参赛和参加“奔跑吧少年”全国青少年阳光体育大会组团参赛、建设体育后备人才基地为重点，为青少年学生提供健康的运动、娱乐和环境。\n3、进一步推动云南省体育产业高质量发展，激发体育消费潜力。一是积极培育体育领域优质项目，着力培育体育旅游精品项目、体育文化优秀项目，丰富体育产业业态。二是积极支持户外运动产业发展，大力推广户外运动线路，满足群众多样化体育需求。三是大力发展体育相关产业。大力发展体育竞赛表演产业，充分发挥其带动作用，进一步促进体育消费。四是积极培育体育用品制造业，完善体育产业链条。五是大力宣传推广云南体育，借助南博会、体博会等展会平台，提升云南体育的知名度和影响力。\n4、在上一年度的基础上，利用媒体自身集成优势，整合媒体资源对云南体育工作进行宣传报道。重点开展全民健身宣传、《云南体育》宣传专栏、舆情应对与引导、云南体育品牌推广、云南省系列马拉松整体品牌策划等利用央媒、省内知名媒体平台进行全方面、多角度宣传，进一步提升云南体育形象宣传,增强社会关注度、参与度。","产出指标","时效指标","网络舆情应对与引导及时率","=","100","%","定量指标","反映事实发生与作为宣传事实发生之间的时间差距情况。"]
["省体育局（省本级）体彩公益金专项经费","省本级体彩公益金项目组织实施备战全运会经费2项，大型体育赛事活动专项经费5项、青少年体育竞赛专项经费1项、体育产业发展项目12项，体育领域意识形态专项经费3项，体育事业统计专项经费1项、体育专业人才培养专项经费1项，预算管理专项经费2项。\n实现目标：\n1、聚焦本年全民健身重点工作，结合巡视问题整改统筹安排。一是健身场地设施填空白补短板，配建适老适小健身器材。二是聚焦打造省级全民健身赛事品牌，创新举办云南省建设南亚东南亚辐射中心体育交流大赛和民族团结杯气排球联赛，积极申请作为第二届全国全民健身大赛（西南区）牵头省份，承办西南区开闭幕式及相关项目比赛。三是加大全民健身科研与宣传力度。深化体医融合建设成果，开展“运动促进健康”体育为民、惠民服务项目；对接下步体育强国指标体系，推动常态化国民体质监测及国家体育锻炼标准达标测验工作。\n2、不断提高青少年体育训练质量和效益，推动竞技体育后备人才培养工作科学高效开展，为建设体育强国、健康中国注入新的生机与活力。资金安排以支持省体育局各训练单位、各承办省级青少年项目锦标赛比赛、支持承接我省组队参加全国青少年运动会参赛和参加“奔跑吧少年”全国青少年阳光体育大会组团参赛、建设体育后备人才基地为重点，为青少年学生提供健康的运动、娱乐和环境。\n3、进一步推动云南省体育产业高质量发展，激发体育消费潜力。一是积极培育体育领域优质项目，着力培育体育旅游精品项目、体育文化优秀项目，丰富体育产业业态。二是积极支持户外运动产业发展，大力推广户外运动线路，满足群众多样化体育需求。三是大力发展体育相关产业。大力发展体育竞赛表演产业，充分发挥其带动作用，进一步促进体育消费。四是积极培育体育用品制造业，完善体育产业链条。五是大力宣传推广云南体育，借助南博会、体博会等展会平台，提升云南体育的知名度和影响力。\n4、在上一年度的基础上，利用媒体自身集成优势，整合媒体资源对云南体育工作进行宣传报道。重点开展全民健身宣传、《云南体育》宣传专栏、舆情应对与引导、云南体育品牌推广、云南省系列马拉松整体品牌策划等利用央媒、省内知名媒体平台进行全方面、多角度宣传，进一步提升云南体育形象宣传,增强社会关注度、参与度。","产出指标","时效指标","赛事活动计划完成及时率",">=","90","%","定量指标","反映年度体育赛事活动是否及时完成。"]
["省体育局（省本级）体彩公益金专项经费","省本级体彩公益金项目组织实施备战全运会经费2项，大型体育赛事活动专项经费5项、青少年体育竞赛专项经费1项、体育产业发展项目12项，体育领域意识形态专项经费3项，体育事业统计专项经费1项、体育专业人才培养专项经费1项，预算管理专项经费2项。\n实现目标：\n1、聚焦本年全民健身重点工作，结合巡视问题整改统筹安排。一是健身场地设施填空白补短板，配建适老适小健身器材。二是聚焦打造省级全民健身赛事品牌，创新举办云南省建设南亚东南亚辐射中心体育交流大赛和民族团结杯气排球联赛，积极申请作为第二届全国全民健身大赛（西南区）牵头省份，承办西南区开闭幕式及相关项目比赛。三是加大全民健身科研与宣传力度。深化体医融合建设成果，开展“运动促进健康”体育为民、惠民服务项目；对接下步体育强国指标体系，推动常态化国民体质监测及国家体育锻炼标准达标测验工作。\n2、不断提高青少年体育训练质量和效益，推动竞技体育后备人才培养工作科学高效开展，为建设体育强国、健康中国注入新的生机与活力。资金安排以支持省体育局各训练单位、各承办省级青少年项目锦标赛比赛、支持承接我省组队参加全国青少年运动会参赛和参加“奔跑吧少年”全国青少年阳光体育大会组团参赛、建设体育后备人才基地为重点，为青少年学生提供健康的运动、娱乐和环境。\n3、进一步推动云南省体育产业高质量发展，激发体育消费潜力。一是积极培育体育领域优质项目，着力培育体育旅游精品项目、体育文化优秀项目，丰富体育产业业态。二是积极支持户外运动产业发展，大力推广户外运动线路，满足群众多样化体育需求。三是大力发展体育相关产业。大力发展体育竞赛表演产业，充分发挥其带动作用，进一步促进体育消费。四是积极培育体育用品制造业，完善体育产业链条。五是大力宣传推广云南体育，借助南博会、体博会等展会平台，提升云南体育的知名度和影响力。\n4、在上一年度的基础上，利用媒体自身集成优势，整合媒体资源对云南体育工作进行宣传报道。重点开展全民健身宣传、《云南体育》宣传专栏、舆情应对与引导、云南体育品牌推广、云南省系列马拉松整体品牌策划等利用央媒、省内知名媒体平台进行全方面、多角度宣传，进一步提升云南体育形象宣传,增强社会关注度、参与度。","产出指标","时效指标","青少年竞赛用品采购完成及时率","=","100","%","定量指标","反映2026年云南省青少年体育竞赛用品采购计划完成情况。"]
["省体育局（省本级）体彩公益金专项经费","省本级体彩公益金项目组织实施备战全运会经费2项，大型体育赛事活动专项经费5项、青少年体育竞赛专项经费1项、体育产业发展项目12项，体育领域意识形态专项经费3项，体育事业统计专项经费1项、体育专业人才培养专项经费1项，预算管理专项经费2项。\n实现目标：\n1、聚焦本年全民健身重点工作，结合巡视问题整改统筹安排。一是健身场地设施填空白补短板，配建适老适小健身器材。二是聚焦打造省级全民健身赛事品牌，创新举办云南省建设南亚东南亚辐射中心体育交流大赛和民族团结杯气排球联赛，积极申请作为第二届全国全民健身大赛（西南区）牵头省份，承办西南区开闭幕式及相关项目比赛。三是加大全民健身科研与宣传力度。深化体医融合建设成果，开展“运动促进健康”体育为民、惠民服务项目；对接下步体育强国指标体系，推动常态化国民体质监测及国家体育锻炼标准达标测验工作。\n2、不断提高青少年体育训练质量和效益，推动竞技体育后备人才培养工作科学高效开展，为建设体育强国、健康中国注入新的生机与活力。资金安排以支持省体育局各训练单位、各承办省级青少年项目锦标赛比赛、支持承接我省组队参加全国青少年运动会参赛和参加“奔跑吧少年”全国青少年阳光体育大会组团参赛、建设体育后备人才基地为重点，为青少年学生提供健康的运动、娱乐和环境。\n3、进一步推动云南省体育产业高质量发展，激发体育消费潜力。一是积极培育体育领域优质项目，着力培育体育旅游精品项目、体育文化优秀项目，丰富体育产业业态。二是积极支持户外运动产业发展，大力推广户外运动线路，满足群众多样化体育需求。三是大力发展体育相关产业。大力发展体育竞赛表演产业，充分发挥其带动作用，进一步促进体育消费。四是积极培育体育用品制造业，完善体育产业链条。五是大力宣传推广云南体育，借助南博会、体博会等展会平台，提升云南体育的知名度和影响力。\n4、在上一年度的基础上，利用媒体自身集成优势，整合媒体资源对云南体育工作进行宣传报道。重点开展全民健身宣传、《云南体育》宣传专栏、舆情应对与引导、云南体育品牌推广、云南省系列马拉松整体品牌策划等利用央媒、省内知名媒体平台进行全方面、多角度宣传，进一步提升云南体育形象宣传,增强社会关注度、参与度。","效益指标","社会效益","赛事活动参与数量计划完成率","=","100","%","定量指标","反映城市篮球联赛等体育赛事活动社会影响情况。"]
["省体育局（省本级）体彩公益金专项经费","省本级体彩公益金项目组织实施备战全运会经费2项，大型体育赛事活动专项经费5项、青少年体育竞赛专项经费1项、体育产业发展项目12项，体育领域意识形态专项经费3项，体育事业统计专项经费1项、体育专业人才培养专项经费1项，预算管理专项经费2项。\n实现目标：\n1、聚焦本年全民健身重点工作，结合巡视问题整改统筹安排。一是健身场地设施填空白补短板，配建适老适小健身器材。二是聚焦打造省级全民健身赛事品牌，创新举办云南省建设南亚东南亚辐射中心体育交流大赛和民族团结杯气排球联赛，积极申请作为第二届全国全民健身大赛（西南区）牵头省份，承办西南区开闭幕式及相关项目比赛。三是加大全民健身科研与宣传力度。深化体医融合建设成果，开展“运动促进健康”体育为民、惠民服务项目；对接下步体育强国指标体系，推动常态化国民体质监测及国家体育锻炼标准达标测验工作。\n2、不断提高青少年体育训练质量和效益，推动竞技体育后备人才培养工作科学高效开展，为建设体育强国、健康中国注入新的生机与活力。资金安排以支持省体育局各训练单位、各承办省级青少年项目锦标赛比赛、支持承接我省组队参加全国青少年运动会参赛和参加“奔跑吧少年”全国青少年阳光体育大会组团参赛、建设体育后备人才基地为重点，为青少年学生提供健康的运动、娱乐和环境。\n3、进一步推动云南省体育产业高质量发展，激发体育消费潜力。一是积极培育体育领域优质项目，着力培育体育旅游精品项目、体育文化优秀项目，丰富体育产业业态。二是积极支持户外运动产业发展，大力推广户外运动线路，满足群众多样化体育需求。三是大力发展体育相关产业。大力发展体育竞赛表演产业，充分发挥其带动作用，进一步促进体育消费。四是积极培育体育用品制造业，完善体育产业链条。五是大力宣传推广云南体育，借助南博会、体博会等展会平台，提升云南体育的知名度和影响力。\n4、在上一年度的基础上，利用媒体自身集成优势，整合媒体资源对云南体育工作进行宣传报道。重点开展全民健身宣传、《云南体育》宣传专栏、舆情应对与引导、云南体育品牌推广、云南省系列马拉松整体品牌策划等利用央媒、省内知名媒体平台进行全方面、多角度宣传，进一步提升云南体育形象宣传,增强社会关注度、参与度。","效益指标","社会效益","绩效评价结果运用率",">=","90","%","定量指标","反映开展体彩公益金资助项目绩效评价结果运用情况。"]
["省体育局（省本级）体彩公益金专项经费","省本级体彩公益金项目组织实施备战全运会经费2项，大型体育赛事活动专项经费5项、青少年体育竞赛专项经费1项、体育产业发展项目12项，体育领域意识形态专项经费3项，体育事业统计专项经费1项、体育专业人才培养专项经费1项，预算管理专项经费2项。\n实现目标：\n1、聚焦本年全民健身重点工作，结合巡视问题整改统筹安排。一是健身场地设施填空白补短板，配建适老适小健身器材。二是聚焦打造省级全民健身赛事品牌，创新举办云南省建设南亚东南亚辐射中心体育交流大赛和民族团结杯气排球联赛，积极申请作为第二届全国全民健身大赛（西南区）牵头省份，承办西南区开闭幕式及相关项目比赛。三是加大全民健身科研与宣传力度。深化体医融合建设成果，开展“运动促进健康”体育为民、惠民服务项目；对接下步体育强国指标体系，推动常态化国民体质监测及国家体育锻炼标准达标测验工作。\n2、不断提高青少年体育训练质量和效益，推动竞技体育后备人才培养工作科学高效开展，为建设体育强国、健康中国注入新的生机与活力。资金安排以支持省体育局各训练单位、各承办省级青少年项目锦标赛比赛、支持承接我省组队参加全国青少年运动会参赛和参加“奔跑吧少年”全国青少年阳光体育大会组团参赛、建设体育后备人才基地为重点，为青少年学生提供健康的运动、娱乐和环境。\n3、进一步推动云南省体育产业高质量发展，激发体育消费潜力。一是积极培育体育领域优质项目，着力培育体育旅游精品项目、体育文化优秀项目，丰富体育产业业态。二是积极支持户外运动产业发展，大力推广户外运动线路，满足群众多样化体育需求。三是大力发展体育相关产业。大力发展体育竞赛表演产业，充分发挥其带动作用，进一步促进体育消费。四是积极培育体育用品制造业，完善体育产业链条。五是大力宣传推广云南体育，借助南博会、体博会等展会平台，提升云南体育的知名度和影响力。\n4、在上一年度的基础上，利用媒体自身集成优势，整合媒体资源对云南体育工作进行宣传报道。重点开展全民健身宣传、《云南体育》宣传专栏、舆情应对与引导、云南体育品牌推广、云南省系列马拉松整体品牌策划等利用央媒、省内知名媒体平台进行全方面、多角度宣传，进一步提升云南体育形象宣传,增强社会关注度、参与度。","满意度指标","服务对象满意度","参训人员满意度",">=","90","%","定量指标","反映竞技运动员、后备运动员外训外赛保障情况。"]
["省体育局（省本级）体彩公益金专项经费","省本级体彩公益金项目组织实施备战全运会经费2项，大型体育赛事活动专项经费5项、青少年体育竞赛专项经费1项、体育产业发展项目12项，体育领域意识形态专项经费3项，体育事业统计专项经费1项、体育专业人才培养专项经费1项，预算管理专项经费2项。\n实现目标：\n1、聚焦本年全民健身重点工作，结合巡视问题整改统筹安排。一是健身场地设施填空白补短板，配建适老适小健身器材。二是聚焦打造省级全民健身赛事品牌，创新举办云南省建设南亚东南亚辐射中心体育交流大赛和民族团结杯气排球联赛，积极申请作为第二届全国全民健身大赛（西南区）牵头省份，承办西南区开闭幕式及相关项目比赛。三是加大全民健身科研与宣传力度。深化体医融合建设成果，开展“运动促进健康”体育为民、惠民服务项目；对接下步体育强国指标体系，推动常态化国民体质监测及国家体育锻炼标准达标测验工作。\n2、不断提高青少年体育训练质量和效益，推动竞技体育后备人才培养工作科学高效开展，为建设体育强国、健康中国注入新的生机与活力。资金安排以支持省体育局各训练单位、各承办省级青少年项目锦标赛比赛、支持承接我省组队参加全国青少年运动会参赛和参加“奔跑吧少年”全国青少年阳光体育大会组团参赛、建设体育后备人才基地为重点，为青少年学生提供健康的运动、娱乐和环境。\n3、进一步推动云南省体育产业高质量发展，激发体育消费潜力。一是积极培育体育领域优质项目，着力培育体育旅游精品项目、体育文化优秀项目，丰富体育产业业态。二是积极支持户外运动产业发展，大力推广户外运动线路，满足群众多样化体育需求。三是大力发展体育相关产业。大力发展体育竞赛表演产业，充分发挥其带动作用，进一步促进体育消费。四是积极培育体育用品制造业，完善体育产业链条。五是大力宣传推广云南体育，借助南博会、体博会等展会平台，提升云南体育的知名度和影响力。\n4、在上一年度的基础上，利用媒体自身集成优势，整合媒体资源对云南体育工作进行宣传报道。重点开展全民健身宣传、《云南体育》宣传专栏、舆情应对与引导、云南体育品牌推广、云南省系列马拉松整体品牌策划等利用央媒、省内知名媒体平台进行全方面、多角度宣传，进一步提升云南体育形象宣传,增强社会关注度、参与度。","满意度指标","服务对象满意度","参加赛事活动人员满意度",">=","90","%","定量指标","反映组织开展体育赛事活动开展效果。"]
["省体育局（省本级）体彩公益金专项经费","省本级体彩公益金项目组织实施备战全运会经费2项，大型体育赛事活动专项经费5项、青少年体育竞赛专项经费1项、体育产业发展项目12项，体育领域意识形态专项经费3项，体育事业统计专项经费1项、体育专业人才培养专项经费1项，预算管理专项经费2项。\n实现目标：\n1、聚焦本年全民健身重点工作，结合巡视问题整改统筹安排。一是健身场地设施填空白补短板，配建适老适小健身器材。二是聚焦打造省级全民健身赛事品牌，创新举办云南省建设南亚东南亚辐射中心体育交流大赛和民族团结杯气排球联赛，积极申请作为第二届全国全民健身大赛（西南区）牵头省份，承办西南区开闭幕式及相关项目比赛。三是加大全民健身科研与宣传力度。深化体医融合建设成果，开展“运动促进健康”体育为民、惠民服务项目；对接下步体育强国指标体系，推动常态化国民体质监测及国家体育锻炼标准达标测验工作。\n2、不断提高青少年体育训练质量和效益，推动竞技体育后备人才培养工作科学高效开展，为建设体育强国、健康中国注入新的生机与活力。资金安排以支持省体育局各训练单位、各承办省级青少年项目锦标赛比赛、支持承接我省组队参加全国青少年运动会参赛和参加“奔跑吧少年”全国青少年阳光体育大会组团参赛、建设体育后备人才基地为重点，为青少年学生提供健康的运动、娱乐和环境。\n3、进一步推动云南省体育产业高质量发展，激发体育消费潜力。一是积极培育体育领域优质项目，着力培育体育旅游精品项目、体育文化优秀项目，丰富体育产业业态。二是积极支持户外运动产业发展，大力推广户外运动线路，满足群众多样化体育需求。三是大力发展体育相关产业。大力发展体育竞赛表演产业，充分发挥其带动作用，进一步促进体育消费。四是积极培育体育用品制造业，完善体育产业链条。五是大力宣传推广云南体育，借助南博会、体博会等展会平台，提升云南体育的知名度和影响力。\n4、在上一年度的基础上，利用媒体自身集成优势，整合媒体资源对云南体育工作进行宣传报道。重点开展全民健身宣传、《云南体育》宣传专栏、舆情应对与引导、云南体育品牌推广、云南省系列马拉松整体品牌策划等利用央媒、省内知名媒体平台进行全方面、多角度宣传，进一步提升云南体育形象宣传,增强社会关注度、参与度。","满意度指标","服务对象满意度","获得竞赛奖牌、证书人员满意度",">=","95","%","定量指标","反映2026年云南省青少年体育竞赛奖牌、证书使用情况。"]
["因公出国（境）专项经费","按照2026年批复计划积极开展对外工作，服从、服务于中央对外工作和省委、省政府中心工作。","产出指标","数量指标","出访团组批次",">=","2","次","定量指标","反映年度组织出访批次和团组的数量情况。"]
["因公出国（境）专项经费","按照2026年批复计划积极开展对外工作，服从、服务于中央对外工作和省委省政府中心工作。","产出指标","数量指标","出访人数",">=","6","人","定量指标","反映年度组织出访人员总数情况。"]
["因公出国（境）专项经费","按照2026年批复计划积极开展对外工作，服从、服务于中央对外工作和省委省政府中心工作。","产出指标","数量指标","出访形成报告数",">=","2","份","定量指标","反映出访成效，即组团出访形成的报告数量情况。"]
["因公出国（境）专项经费","按照2026年批复计划积极开展对外工作，服从、服务于中央对外工作和省委省政府中心工作。","产出指标","质量指标","出访任务完成率",">=","80","%","定量指标","反映出访计划完成的情况。\n出访任务完成率=出访任务完成数/出访计划任务数*100%"]
["因公出国（境）专项经费","按照2026年批复计划积极开展对外工作，服从、服务于中央对外工作和省委省政府中心工作。","产出指标","质量指标","经费规范核销率","=","100","%","定量指标","反映出访出国经费规范核销情况。                   经费规范核销率=经费规范核销的团组数/出访总团组数*100%"]
["因公出国（境）专项经费","按照2026年批复计划积极开展对外工作，服从、服务于中央对外工作和省委省政府中心工作。","效益指标","社会效益","上级采纳出访成果报告篇数",">=","2","篇","定量指标","反映出访报告完成质量及出访成果运用。"]
["因公出国（境）专项经费","按照2026年批复计划积极开展对外工作，服从、服务于中央对外工作和省委省政府中心工作。","满意度指标","服务对象满意度","出访人员满意度",">=","90","%","定量指标","对出访人员进行问卷调查。"]
["单位预算机动经费","做好本单位2026年公用经费保障，确保年度单位正常履职。","产出指标","数量指标","保障大型赛事、活动次数",">=","2","次","定量指标","反映公用经费保障单位（单位）正常运转的情况。主要指培训、差旅、印刷费等公用经费中服务保障支出。"]
["部门预算机动经费","做好本部门2026年公用经费保障，确保年度部门正常履职。","产出指标","质量指标","预算执行偏差率","<=","10","%","定量指标","反映预算执行情况，确保财政资金用好用足。"]
["部门预算机动经费","做好本部门2026年公用经费保障，确保年度部门正常履职。","效益指标","社会效益","单位运转","=","正常运转",null,"定性指标","反映单位（单位）正常运转情况。"]
["部门预算机动经费","做好本部门2026年公用经费保障，确保年度部门正常履职。","满意度指标","服务对象满意度","社会公众满意度",">=","90","%","定量指标","反映社会公众对单位（单位）履职情况的满意程度。"]
["部门预算机动经费","做好本部门2026年公用经费保障，确保年度部门正常履职。","满意度指标","服务对象满意度","单位人员满意度",">=","90","%","定量指标","反映单位（单位）人员对公用经费保障的满意程度。"]
["省委组织部公务员工作专项经费","1.2026年计划在全省招录1700名左右的选调生。通过做好省外知名高校暑期实践活动和选调生政策宣讲，吸引更多省外知名高校优秀毕业生报考云南省选调生，通过报名、资格审查、笔试、面试、考察、体检、公示等程序，完成2026年选调生招录任务。\n2.2026年计划从清华大学、北京大学、中国人民大学等知名高校中定向招录1400名左右选调生，其中硕士及以上学历（省本级）100名。","产出指标","数量指标","招录人数",">=","2","人","定量指标","公务员：反映选调生考录工作选调效果。"]
["省委组织部公务员工作专项经费","1.2026年计划在全省招录1700名左右的选调生。通过做好省外知名高校暑期实践活动和选调生政策宣讲，吸引更多省外知名高校优秀毕业生报考云南省选调生，通过报名、资格审查、笔试、面试、考察、体检、公示等程序，完成2026年选调生招录任务。\n2.2026年计划从清华大学、北京大学、中国人民大学等知名高校中定向招录1400名左右选调生，其中硕士及以上学历（省本级）100名。","产出指标","数量指标","硕士发放人数",">=","2","人","定量指标","规划办：反映2024年招录硕士定向选调生补贴发放情况"]
["省委组织部公务员工作专项经费","1.2026年计划在全省招录1700名左右的选调生。通过做好省外知名高校暑期实践活动和选调生政策宣讲，吸引更多省外知名高校优秀毕业生报考云南省选调生，通过报名、资格审查、笔试、面试、考察、体检、公示等程序，完成2026年选调生招录任务。\n2.2026年计划从清华大学、北京大学、中国人民大学等知名高校中定向招录1400名左右选调生，其中硕士及以上学历（省本级）100名。","产出指标","质量指标","任务完成率",">=","95","%","定量指标","公务员：反映对照实施方案时间表，看报名、宣讲、笔试、面试等工作任务是否如期完成，反映工作任务完成时效性情况。"]
["省委组织部公务员工作专项经费","1.2026年计划在全省招录1700名左右的选调生。通过做好省外知名高校暑期实践活动和选调生政策宣讲，吸引更多省外知名高校优秀毕业生报考云南省选调生，通过报名、资格审查、笔试、面试、考察、体检、公示等程序，完成2026年选调生招录任务。\n2.2026年计划从清华大学、北京大学、中国人民大学等知名高校中定向招录1400名左右选调生，其中硕士及以上学历（省本级）100名。","产出指标","质量指标","预算执行率",">=","95","%","定量指标","公务员：反映预算执行进度情况。"]
["省委组织部公务员工作专项经费","1.2026年计划在全省招录1700名左右的选调生。通过做好省外知名高校暑期实践活动和选调生政策宣讲，吸引更多省外知名高校优秀毕业生报考云南省选调生，通过报名、资格审查、笔试、面试、考察、体检、公示等程序，完成2026年选调生招录任务。\n2.2026年计划从清华大学、北京大学、中国人民大学等知名高校中定向招录1400名左右选调生，其中硕士及以上学历（省本级）100名。","产出指标","时效指标","任务完成及时性","=","按时完成",null,"定性指标","规划办：反映工作任务完成情况。"]
["省委组织部公务员工作专项经费","1.2026年计划在全省招录1700名左右的选调生。通过做好省外知名高校暑期实践活动和选调生政策宣讲，吸引更多省外知名高校优秀毕业生报考云南省选调生，通过报名、资格审查、笔试、面试、考察、体检、公示等程序，完成2026年选调生招录任务。\n2.2026年计划从清华大学、北京大学、中国人民大学等知名高校中定向招录1400名左右选调生，其中硕士及以上学历（省本级）100名。","效益指标","社会效益","办理公务员录用手续准确率","=","100","%","定量指标","公务员：办理录用手续准确率达100%。"]
["省委组织部公务员工作专项经费","1.2026年计划在全省招录1700名左右的选调生。通过做好省外知名高校暑期实践活动和选调生政策宣讲，吸引更多省外知名高校优秀毕业生报考云南省选调生，通过报名、资格审查、笔试、面试、考察、体检、公示等程序，完成2026年选调生招录任务。\n2.2026年计划从清华大学、北京大学、中国人民大学等知名高校中定向招录1400名左右选调生，其中硕士及以上学历（省本级）100名。","效益指标","社会效益","公务员招录有效性","=","人岗匹配",null,"定性指标","公务员：反映公务员招录有效性。"]
["省委组织部公务员工作专项经费","1.2026年计划在全省招录1700名左右的选调生。通过做好省外知名高校暑期实践活动和选调生政策宣讲，吸引更多省外知名高校优秀毕业生报考云南省选调生，通过报名、资格审查、笔试、面试、考察、体检、公示等程序，完成2026年选调生招录任务。\n2.2026年计划从清华大学、北京大学、中国人民大学等知名高校中定向招录1400名左右选调生，其中硕士及以上学历（省本级）100名。","满意度指标","服务对象满意度","考生满意度",">=","90","%","定量指标","公务员：考生满意度达到90%以上。"]
["省委组织部公务员工作专项经费","1.2026年计划在全省招录1700名左右的选调生。通过做好省外知名高校暑期实践活动和选调生政策宣讲，吸引更多省外知名高校优秀毕业生报考云南省选调生，通过报名、资格审查、笔试、面试、考察、体检、公示等程序，完成2026年选调生招录任务。\n2.2026年计划从清华大学、北京大学、中国人民大学等知名高校中定向招录1400名左右选调生，其中硕士及以上学历（省本级）100名。","满意度指标","服务对象满意度","补贴发放满意度",">=","95","%","定量指标","规划办：反映满意度调查率情况。"]
["省委组织部公务员工作专项经费","1.2026年计划在全省招录1700名左右的选调生。通过做好省外知名高校暑期实践活动和选调生政策宣讲，吸引更多省外知名高校优秀毕业生报考云南省选调生，通过报名、资格审查、笔试、面试、考察、体检、公示等程序，完成2026年选调生招录任务。\n2.2026年计划从清华大学、北京大学、中国人民大学等知名高校中定向招录1400名左右选调生，其中硕士及以上学历（省本级）100名。","成本指标","经济成本指标","项目资金节约","=","不超预算",null,"定性指标","规划办：反映项目总成本控制情况。"]

{"sheet":"部门政府性基金预算表06","index":9,"n_rows":10,"n_cols":6,"rows_kept":10,"merged":[[1,0,1,5],[3,0,4,0],[3,1,4,1],[3,2,4,2],[3,3,3,5],[9,0,9,2]]}
[{"$nulls":5},"预算06表"]
["2026年政府性基金预算支出预算表"]
[{"$f":"\"单位名称：\"&\"云南省体育局\"","v":"单位名称：云南省体育局"},{"$nulls":4},"单位:元"]
["单位名称","科目编码","科目名称","政府性基金预算支出"]
[{"$nulls":3},"合计","基本支出","项目支出"]
[1,2,3,4,5,6]
["云南省体育局","229","其他支出",{"v":61573702.98,"d":"61,573,702.98"},null,{"v":61573702.98,"d":"61,573,702.98"}]
["云南省体育局","22960","彩票公益金安排的支出",{"v":61573702.98,"d":"61,573,702.98"},null,{"v":61573702.98,"d":"61,573,702.98"}]
["云南省体育局","2296003","用于体育事业的彩票公益金支出",{"v":61573702.98,"d":"61,573,702.98"},null,{"v":61573702.98,"d":"61,573,702.98"}]
["合  计",null,"合  计",{"v":61573702.98,"d":"61,573,702.98"},null,{"v":61573702.98,"d":"61,573,702.98"}]

{"sheet":"部门政府采购预算表07","index":10,"n_rows":37,"n_cols":17,"rows_kept":37,"merged":[[1,0,1,16],[2,0,2,5],[3,0,5,0],[3,1,5,1],[3,2,5,2],[3,3,5,3],[3,4,5,4],[3,5,5,5],[3,6,3,16],[4,6,5,6],[4,7,5,7],[4,8,5,8],[4,9,5,9],[4,10,5,10],[4,11,4,16],[36,0,36,4]]}
[{"$nulls":16},"预算07表"]
["2026年单位政府采购预算表"]
[{"$f":"\"单位名称：\"&\"云南省体育局\"","v":"单位名称：云南省体育局"},{"$nulls":15},"单位：元"]
["预算项目","采购项目","采购品目","计量\n单位","数量","面向中小企业预留资金","资金来源"]
[{"$nulls":6},"合计","一般公共预算","政府性\n基金","国有资本经营收益","财政专户管理的收入","单位自筹"]
[{"$nulls":7},"小计",{"$nulls":3},"小计","事业收入","事业单位\n经营收入","上级补助收入","附属单位上缴收入","其他收入"]
[1,2,3,4,5,6,7,8,9,10,11,12,13,14,15,16,17]
["云南省体育局",{"$nulls":4},{"v":32289680,"d":"32,289,680.00"},{"v":44716680,"d":"44,716,680.00"},{"v":91800,"d":"91,800.00"},{"v":44528000,"d":"44,528,000.00"},null,null,{"v":96880,"d":"96,880.00"},{"$nulls":4},{"v":96880,"d":"96,880.00"}]
["公车购置及运维费","公务用车加油费","C23120302 车辆加油、添加燃料服务","元",1,null,{"v":30000,"d":"30,000.00"},{"v":30000,"d":"30,000.00"}]
["公车购置及运维费","公务用车维修保养费","C23120301 车辆维修和保养服务","元",1,{"v":60000,"d":"60,000.00"},{"v":20000,"d":"20,000.00"},{"v":20000,"d":"20,000.00"}]
["公车购置及运维费","公务用车保险费","C1804010201 机动车保险服务","元",1,null,{"v":7000,"d":"7,000.00"},{"v":7000,"d":"7,000.00"}]
["一般公用经费","彩色打印机","A02021002 A3彩色打印机","台",1,{"v":4000,"d":"4,000.00"},{"v":4000,"d":"4,000.00"},{"$nulls":4},{"v":4000,"d":"4,000.00"},{"$nulls":4},{"v":4000,"d":"4,000.00"}]
["一般公用经费","笔记本电脑","A02010108 便携式计算机","台",1,{"v":8000,"d":"8,000.00"},{"v":8000,"d":"8,000.00"},{"$nulls":4},{"v":8000,"d":"8,000.00"},{"$nulls":4},{"v":8000,"d":"8,000.00"}]
["一般公用经费","彩色复印机","A02020100 复印机","台",1,{"v":40000,"d":"40,000.00"},{"v":40000,"d":"40,000.00"},{"$nulls":4},{"v":40000,"d":"40,000.00"},{"$nulls":4},{"v":40000,"d":"40,000.00"}]
["一般公用经费","A3复印纸","A05040101 复印纸","包",100,{"v":5800,"d":"5,800.00"},{"v":5800,"d":"5,800.00"},{"v":5800,"d":"5,800.00"}]
["一般公用经费","A4复印纸","A05040101 复印纸","包",{"v":1000,"d":"1,000"},{"v":29000,"d":"29,000.00"},{"v":29000,"d":"29,000.00"},{"v":29000,"d":"29,000.00"}]
["一般公用经费","版式软件","A08060301 基础软件","套",1,{"v":490,"d":"490.00"},{"v":490,"d":"490.00"},{"$nulls":4},{"v":490,"d":"490.00"},{"$nulls":4},{"v":490,"d":"490.00"}]
["一般公用经费","办公软件","A08060301 基础软件","套",1,{"v":790,"d":"790.00"},{"v":790,"d":"790.00"},{"$nulls":4},{"v":790,"d":"790.00"},{"$nulls":4},{"v":790,"d":"790.00"}]
["一般公用经费","办公软件","A08060301 基础软件","套",7,{"v":6650,"d":"6,650.00"},{"v":6650,"d":"6,650.00"},{"$nulls":4},{"v":6650,"d":"6,650.00"},{"$nulls":4},{"v":6650,"d":"6,650.00"}]
["一般公用经费","操作系统","A08060301 基础软件","套",1,{"v":560,"d":"560.00"},{"v":560,"d":"560.00"},{"$nulls":4},{"v":560,"d":"560.00"},{"$nulls":4},{"v":560,"d":"560.00"}]
["一般公用经费","便携式打印机","A02021099 其他打印机","台",1,{"v":3000,"d":"3,000.00"},{"v":3000,"d":"3,000.00"},{"$nulls":4},{"v":3000,"d":"3,000.00"},{"$nulls":4},{"v":3000,"d":"3,000.00"}]
["一般公用经费","台式电脑","A02010105 台式计算机","台",6,{"v":30000,"d":"30,000.00"},{"v":30000,"d":"30,000.00"},{"$nulls":4},{"v":30000,"d":"30,000.00"},{"$nulls":4},{"v":30000,"d":"30,000.00"}]
["一般公用经费","安全保密套件管理系统","A0806039901 信息安全软件","套",1,{"v":1980,"d":"1,980.00"},{"v":1980,"d":"1,980.00"},{"$nulls":4},{"v":1980,"d":"1,980.00"},{"$nulls":4},{"v":1980,"d":"1,980.00"}]
["一般公用经费","打印刻录安全监控与审计系统","A0806039901 信息安全软件","套",1,{"v":780,"d":"780.00"},{"v":780,"d":"780.00"},{"$nulls":4},{"v":780,"d":"780.00"},{"$nulls":4},{"v":780,"d":"780.00"}]
["一般公用经费","防病毒软件","A0806039901 信息安全软件","套",1,{"v":280,"d":"280.00"},{"v":280,"d":"280.00"},{"$nulls":4},{"v":280,"d":"280.00"},{"$nulls":4},{"v":280,"d":"280.00"}]
["一般公用经费","杀毒软件","A0806039901 信息安全软件","套",7,{"v":350,"d":"350.00"},{"v":350,"d":"350.00"},{"$nulls":4},{"v":350,"d":"350.00"},{"$nulls":4},{"v":350,"d":"350.00"}]
["省体育局（省本级）体彩公益金专项经费","2026年云南体育品牌推广项目","C23070200 公共公益宣传服务","元",1,null,{"v":600000,"d":"600,000.00"},null,{"v":600000,"d":"600,000.00"}]
["省体育局（省本级）体彩公益金专项经费","“一马游云南”云南省系列马拉松宣传项目","C23070200 公共公益宣传服务","元",1,null,{"v":800000,"d":"800,000.00"},null,{"v":800000,"d":"800,000.00"}]
["省体育局（省本级）体彩公益金专项经费","《云南体育》宣传专栏——融媒体项目","C23070200 公共公益宣传服务","元",1,null,{"v":980000,"d":"980,000.00"},null,{"v":980000,"d":"980,000.00"}]
["省体育局（省本级）体彩公益金专项经费","《云南体育》宣传专栏——运维项目","C23070200 公共公益宣传服务","元",1,null,{"v":550000,"d":"550,000.00"},null,{"v":550000,"d":"550,000.00"}]
["省体育局（省本级）体彩公益金专项经费","云南体育旅居新业态融合传播项目","C23070200 公共公益宣传服务","元",1,null,{"v":1000000,"d":"1,000,000.00"},null,{"v":1000000,"d":"1,000,000.00"}]
["省体育局（省本级）体彩公益金专项经费","“环云南”国际公路自行车赛暨UCI格兰芬多世界系列赛项目","C06040100 体育组织服务","元",1,{"v":16000000,"d":"16,000,000.00"},{"v":16000000,"d":"16,000,000.00"},null,{"v":16000000,"d":"16,000,000.00"}]
["省体育局（省本级）体彩公益金专项经费","云南省城市篮球联赛项目","C06040100 体育组织服务","元",1,{"v":4500000,"d":"4,500,000.00"},{"v":4500000,"d":"4,500,000.00"},null,{"v":4500000,"d":"4,500,000.00"}]
["省体育局（省本级）体彩公益金专项经费","云南省九大高原湖泊山水联赛项目","C06040100 体育组织服务","元",1,{"v":10000000,"d":"10,000,000.00"},{"v":10000000,"d":"10,000,000.00"},null,{"v":10000000,"d":"10,000,000.00"}]
["省体育局（省本级）体彩公益金专项经费","足球项目备战第十六届全运会项目","C06040100 体育组织服务","元",1,null,{"v":8500000,"d":"8,500,000.00"},null,{"v":8500000,"d":"8,500,000.00"}]
["省体育局（省本级）体彩公益金专项经费","体彩公益金资助项目绩效评价项目","C20030800 预算绩效评价咨询服务","元",1,{"v":1598000,"d":"1,598,000.00"},{"v":1598000,"d":"1,598,000.00"},null,{"v":1598000,"d":"1,598,000.00"}]
["合  计",{"$nulls":4},{"v":32289680,"d":"32,289,680.00"},{"v":44716680,"d":"44,716,680.00"},{"v":91800,"d":"91,800.00"},{"v":44528000,"d":"44,528,000.00"},null,null,{"v":96880,"d":"96,880.00"},{"$nulls":4},{"v":96880,"d":"96,880.00"}]

{"sheet":"部门政府购买服务预算表08","index":11,"n_rows":20,"n_cols":14,"rows_kept":20,"merged":[[1,0,1,13],[2,0,2,2],[3,0,5,0],[3,1,5,1],[3,2,5,2],[3,3,3,13],[4,3,5,3],[4,4,5,4],[4,5,5,5],[4,6,5,6],[4,7,5,7],[4,8,4,13],[19,0,19,2]]}
[{"$nulls":13},"预算08表"]
["2026年单位政府购买服务预算表"]
[{"$f":"\"单位名称：\"&\"云南省体育局\"","v":"单位名称：云南省体育局"},{"$nulls":12},"单位：元"]
["预算项目","政府购买服务项目","政府购买服务目录","资金来源"]
[{"$nulls":3},"合计","一般公共预算","政府性\n基金","国有资本经营收益","财政专户管理的收入","单位自筹"]
[{"$nulls":8},"小计","事业收入","事业单位\n经营收入","上级补助收入","附属单位上缴收入","其他收入"]
[1,2,3,4,5,6,7,8,9,10,11,12,13,14]
["云南省体育局",null,null,{"v":44548000,"d":"44,548,000.00"},{"v":20000,"d":"20,000.00"},{"v":44528000,"d":"44,528,000.00"}]
["公车购置及运维费","公务用车维修服务","B1101 维修保养服务",{"v":20000,"d":"20,000.00"},{"v":20000,"d":"20,000.00"}]
["省体育局（省本级）体彩公益金专项经费","“环云南”国际公路自行车赛暨UCI格兰芬多世界系列赛项目","A0901 体育组织服务",{"v":16000000,"d":"16,000,000.00"},null,{"v":16000000,"d":"16,000,000.00"}]
["省体育局（省本级）体彩公益金专项经费","云南省城市篮球联赛项目","A0901 体育组织服务",{"v":4500000,"d":"4,500,000.00"},null,{"v":4500000,"d":"4,500,000.00"}]
["省体育局（省本级）体彩公益金专项经费","云南省九大高原湖泊山水联赛项目","A0901 体育组织服务",{"v":10000000,"d":"10,000,000.00"},null,{"v":10000000,"d":"10,000,000.00"}]
["省体育局（省本级）体彩公益金专项经费","足球项目备战第十六届全运会项目","A0901 体育组织服务",{"v":8500000,"d":"8,500,000.00"},null,{"v":8500000,"d":"8,500,000.00"}]
["省体育局（省本级）体彩公益金专项经费","2026年云南体育品牌推广项目","A1502 公共公益宣传服务",{"v":600000,"d":"600,000.00"},null,{"v":600000,"d":"600,000.00"}]
["省体育局（省本级）体彩公益金专项经费","“一马游云南”云南省系列马拉松宣传项目","A1502 公共公益宣传服务",{"v":800000,"d":"800,000.00"},null,{"v":800000,"d":"800,000.00"}]
["省体育局（省本级）体彩公益金专项经费","《云南体育》宣传专栏——融媒体项目","A1502 公共公益宣传服务",{"v":980000,"d":"980,000.00"},null,{"v":980000,"d":"980,000.00"}]
["省体育局（省本级）体彩公益金专项经费","《云南体育》宣传专栏——运维项目","A1502 公共公益宣传服务",{"v":550000,"d":"550,000.00"},null,{"v":550000,"d":"550,000.00"}]
["省体育局（省本级）体彩公益金专项经费","云南体育旅居新业态融合传播项目","A1502 公共公益宣传服务",{"v":1000000,"d":"1,000,000.00"},null,{"v":1000000,"d":"1,000,000.00"}]
["省体育局（省本级）体彩公益金专项经费","体彩公益金资助项目绩效评价项目","B0702 评估和评价服务",{"v":1598000,"d":"1,598,000.00"},null,{"v":1598000,"d":"1,598,000.00"}]
["合  计",null,null,{"v":44548000,"d":"44,548,000.00"},{"v":20000,"d":"20,000.00"},{"v":44528000,"d":"44,528,000.00"}]

{"sheet":"省对下转移支付预算表09-1","index":12,"n_rows":8,"n_cols":24,"rows_kept":8,"merged":[[1,0,1,23],[2,0,2,8],[3,0,4,0],[3,1,3,3],[3,4,3,23]]}
[{"$nulls":23},"预算09-1表"]
["2026年省对下转移支付预算表"]
[{"$f":"\"单位名称：\"&\"云南省体育局\"","v":"单位名称：云南省体育局"},{"$nulls":22},"单位：元"]
["单位名称（项目）","资金来源",null,null,"地区"]
[null,"合计","一般公共预算","政府性基金","昆明","昭通","曲靖","玉溪","红河","文山","普洱","西双版纳","楚雄","大理","保山","德宏","丽江","怒江","迪庆","临沧","宣威","腾冲","镇雄","未分配到地区数"]
[1,2,3,4,5,6,7,8,9,10,11,12,13,14,15,16,17,18,19,20,21,22,23,24]
["云南省体育局",{"v":127300000,"d":"127,300,000.00"},null,{"v":127300000,"d":"127,300,000.00"},{"v":57900000,"d":"57,900,000.00"},{"v":4400000,"d":"4,400,000.00"},{"v":2000000,"d":"2,000,000.00"},{"v":9000000,"d":"9,000,000.00"},{"v":8100000,"d":"8,100,000.00"},{"v":1400000,"d":"1,400,000.00"},{"v":1500000,"d":"1,500,000.00"},{"v":2400000,"d":"2,400,000.00"},{"v":3800000,"d":"3,800,000.00"},{"v":6200000,"d":"6,200,000.00"},{"v":1100000,"d":"1,100,000.00"},{"v":8400000,"d":"8,400,000.00"},{"v":8400000,"d":"8,400,000.00"},{"v":6100000,"d":"6,100,000.00"},{"v":5100000,"d":"5,100,000.00"},{"v":600000,"d":"600,000.00"},null,{"v":900000,"d":"900,000.00"}]
["省体育局（省对下）体彩公益金专项经费",{"v":127300000,"d":"127,300,000.00"},null,{"v":127300000,"d":"127,300,000.00"},{"v":57900000,"d":"57,900,000.00"},{"v":4400000,"d":"4,400,000.00"},{"v":2000000,"d":"2,000,000.00"},{"v":9000000,"d":"9,000,000.00"},{"v":8100000,"d":"8,100,000.00"},{"v":1400000,"d":"1,400,000.00"},{"v":1500000,"d":"1,500,000.00"},{"v":2400000,"d":"2,400,000.00"},{"v":3800000,"d":"3,800,000.00"},{"v":6200000,"d":"6,200,000.00"},{"v":1100000,"d":"1,100,000.00"},{"v":8400000,"d":"8,400,000.00"},{"v":8400000,"d":"8,400,000.00"},{"v":6100000,"d":"6,100,000.00"},{"v":5100000,"d":"5,100,000.00"},{"v":600000,"d":"600,000.00"},null,{"v":900000,"d":"900,000.00"}]

{"sheet":"省对下转移支付绩效目标表09-2","index":13,"n_rows":34,"n_cols":10,"rows_kept":34,"merged":[[1,0,1,9],[2,0,2,7],[6,0,33,0],[6,1,33,1]]}
[{"$nulls":9},"预算09-2表"]
["2026年省对下转移支付绩效目标表"]
[{"$f":"\"单位名称：\"&\"云南省体育局\"","v":"单位名称：云南省体育局"}]
["单位名称、项目名称","项目年度绩效目标","一级指标","二级指标","三级指标","指标性质","指标值","度量单位","指标属性","指标内容"]
[1,2,3,4,5,6,7,8,9,10]
["云南省体育局"]
["省体育局（省对下）体彩公益金专项经费","省对下体彩公益金项目组织实施七彩云南全民健身基础设施工程项目3项，大型体育赛事项目28项，七彩云南全民健身活动示范工程项目9项，七彩云南全民健身科研与宣传项目1项，青少年体育组织建设项目2项，青少年体育活动项目1项，青少年体育竞赛项目1项，全省体育设施改善条件1项，省级预备队建设项目1项，体育产业发展项目1项，通过资助各州市体彩公益金项目，满足广大市民的运动、健身需求，加快建设体育强省，使人民健康水平明显提升。\n具体目标：\n1、聚焦2026年全民健身重点工作，结合巡视问题整改统筹安排。一是健身场地设施填空白补短板，配建适老适小健身器材。二是聚焦打造全民健身特色品牌赛事。支持丽江、临沧、版纳、昭通四个州市举办省级民族体育赛事。创新举办云南省建设南亚东南亚辐射中心体育交流大赛和民族团结杯气排球联赛，提质升级格兰芬多自行车节。三是加大全民健身科研与宣传力度，开展“运动促进健康”体育为民、惠民服务项目；推动常态化国民体质监测及国家体育锻炼标准达标测验工作。\n2、不断提高青少年体育训练质量和效益，推动竞技体育后备人才培养工作科学高效开展，为建设体育强国、健康中国注入新的生机与活力。支持承接我省组队参加全国青少年运动会参赛和参加“奔跑吧少年”全国青少年阳光体育大会组团参赛、建设体育后备人才基地为重点，为青少年学生提供健康的运动、娱乐和环境。\n3、根据省体育局2026年重点工程项目推进情况，重点保障省级运动队备战训练，改善运动队训练、生活条件。支持基层老年人体育场地设施建设，对基层体育场馆设施建设及维修给予适当补助。\n4、进一步推动云南省体育产业高质量发展，激发体育消费潜力。一是积极培育体育领域优质项目，着力培育体育旅游精品项目、体育文化优秀项目，丰富体育产业业态。二是积极支持户外运动产业发展，大力推广户外运动线路，满足群众多样化体育需求。三是大力发展体育相关产业。大力发展体育竞赛表演产业，充分发挥其带动作用，进一步促进体育消费。四是积极培育体育用品制造业，完善体育产业链条。\n5、重点围绕云南“十四五”体育发展收官、云南省体育事业高质量发展三年行动计划以及年度重点工作等，结合实际情况开展云南体育宣传工作。围绕“十五五”规划编制开展工作，按照群众体育、竞技体育、体育产业、体育文化和对外交流各板块，聚焦重点政策、措施、项目开展调研和规划编制。","产出指标","数量指标","参加上合昆明国际马拉松赛人数",">=","20000","人","定量指标","反映参加上合昆明国际马拉松赛人数的情况"]
["省体育局（省对下）体彩公益金专项经费","省对下体彩公益金项目组织实施七彩云南全民健身基础设施工程项目3项，大型体育赛事项目28项，七彩云南全民健身活动示范工程项目9项，七彩云南全民健身科研与宣传项目1项，青少年体育组织建设项目2项，青少年体育活动项目1项，青少年体育竞赛项目1项，全省体育设施改善条件1项，省级预备队建设项目1项，体育产业发展项目1项，通过资助各州市体彩公益金项目，满足广大市民的运动、健身需求，加快建设体育强省，使人民健康水平明显提升。\n具体目标：\n1、聚焦2026年全民健身重点工作，结合巡视问题整改统筹安排。一是健身场地设施填空白补短板，配建适老适小健身器材。二是聚焦打造全民健身特色品牌赛事。支持丽江、临沧、版纳、昭通四个州市举办省级民族体育赛事。创新举办云南省建设南亚东南亚辐射中心体育交流大赛和民族团结杯气排球联赛，提质升级格兰芬多自行车节。三是加大全民健身科研与宣传力度，开展“运动促进健康”体育为民、惠民服务项目；推动常态化国民体质监测及国家体育锻炼标准达标测验工作。\n2、不断提高青少年体育训练质量和效益，推动竞技体育后备人才培养工作科学高效开展，为建设体育强国、健康中国注入新的生机与活力。支持承接我省组队参加全国青少年运动会参赛和参加“奔跑吧少年”全国青少年阳光体育大会组团参赛、建设体育后备人才基地为重点，为青少年学生提供健康的运动、娱乐和环境。\n3、根据省体育局2026年重点工程项目推进情况，重点保障省级运动队备战训练，改善运动队训练、生活条件。支持基层老年人体育场地设施建设，对基层体育场馆设施建设及维修给予适当补助。\n4、进一步推动云南省体育产业高质量发展，激发体育消费潜力。一是积极培育体育领域优质项目，着力培育体育旅游精品项目、体育文化优秀项目，丰富体育产业业态。二是积极支持户外运动产业发展，大力推广户外运动线路，满足群众多样化体育需求。三是大力发展体育相关产业。大力发展体育竞赛表演产业，充分发挥其带动作用，进一步促进体育消费。四是积极四是积极培育体育用品制造业，完善体育产业链条。\n4、重点围绕云南“十四五”体育发展收官、云南省体育事业高质量发展三年行动计划以及年度重点工作等，结合实际情况开展云南体育宣传工作。围绕“十五五”规划编制开展工作，按照群众体育、竞技体育、体育产业、体育文化和对外交流各板块，聚焦重点政策、措施、项目开展调研和规划编制。","产出指标","数量指标","支持州市县举办马拉松赛","=","11","项","定量指标","反映支持州市县举办马拉松赛的情况"]
["省体育局（省对下）体彩公益金专项经费","省对下体彩公益金项目组织实施七彩云南全民健身基础设施工程项目3项，大型体育赛事项目28项，七彩云南全民健身活动示范工程项目9项，七彩云南全民健身科研与宣传项目1项，青少年体育组织建设项目2项，青少年体育活动项目1项，青少年体育竞赛项目1项，全省体育设施改善条件1项，省级预备队建设项目1项，体育产业发展项目1项，通过资助各州市体彩公益金项目，满足广大市民的运动、健身需求，加快建设体育强省，使人民健康水平明显提升。\n具体目标：\n1、聚焦2026年全民健身重点工作，结合巡视问题整改统筹安排。一是健身场地设施填空白补短板，配建适老适小健身器材。二是聚焦打造全民健身特色品牌赛事。支持丽江、临沧、版纳、昭通四个州市举办省级民族体育赛事。创新举办云南省建设南亚东南亚辐射中心体育交流大赛和民族团结杯气排球联赛，提质升级格兰芬多自行车节。三是加大全民健身科研与宣传力度，开展“运动促进健康”体育为民、惠民服务项目；推动常态化国民体质监测及国家体育锻炼标准达标测验工作。\n2、不断提高青少年体育训练质量和效益，推动竞技体育后备人才培养工作科学高效开展，为建设体育强国、健康中国注入新的生机与活力。支持承接我省组队参加全国青少年运动会参赛和参加“奔跑吧少年”全国青少年阳光体育大会组团参赛、建设体育后备人才基地为重点，为青少年学生提供健康的运动、娱乐和环境。\n3、根据省体育局2026年重点工程项目推进情况，重点保障省级运动队备战训练，改善运动队训练、生活条件。支持基层老年人体育场地设施建设，对基层体育场馆设施建设及维修给予适当补助。\n4、进一步推动云南省体育产业高质量发展，激发体育消费潜力。一是积极培育体育领域优质项目，着力培育体育旅游精品项目、体育文化优秀项目，丰富体育产业业态。二是积极支持户外运动产业发展，大力推广户外运动线路，满足群众多样化体育需求。三是大力发展体育相关产业。大力发展体育竞赛表演产业，充分发挥其带动作用，进一步促进体育消费。四是积极四是积极培育体育用品制造业，完善体育产业链条。\n4、重点围绕云南“十四五”体育发展收官、云南省体育事业高质量发展三年行动计划以及年度重点工作等，结合实际情况开展云南体育宣传工作。围绕“十五五”规划编制开展工作，按照群众体育、竞技体育、体育产业、体育文化和对外交流各板块，聚焦重点政策、措施、项目开展调研和规划编制。","产出指标","数量指标","州市县马拉松赛参加人数",">=","78000","人","定量指标","反映州市县马拉松赛参加人数的情况"]
["省体育局（省对下）体彩公益金专项经费","省对下体彩公益金项目组织实施七彩云南全民健身基础设施工程项目3项，大型体育赛事项目28项，七彩云南全民健身活动示范工程项目9项，七彩云南全民健身科研与宣传项目1项，青少年体育组织建设项目2项，青少年体育活动项目1项，青少年体育竞赛项目1项，全省体育设施改善条件1项，省级预备队建设项目1项，体育产业发展项目1项，通过资助各州市体彩公益金项目，满足广大市民的运动、健身需求，加快建设体育强省，使人民健康水平明显提升。\n具体目标：\n1、聚焦2026年全民健身重点工作，结合巡视问题整改统筹安排。一是健身场地设施填空白补短板，配建适老适小健身器材。二是聚焦打造全民健身特色品牌赛事。支持丽江、临沧、版纳、昭通四个州市举办省级民族体育赛事。创新举办云南省建设南亚东南亚辐射中心体育交流大赛和民族团结杯气排球联赛，提质升级格兰芬多自行车节。三是加大全民健身科研与宣传力度，开展“运动促进健康”体育为民、惠民服务项目；推动常态化国民体质监测及国家体育锻炼标准达标测验工作。\n2、不断提高青少年体育训练质量和效益，推动竞技体育后备人才培养工作科学高效开展，为建设体育强国、健康中国注入新的生机与活力。支持承接我省组队参加全国青少年运动会参赛和参加“奔跑吧少年”全国青少年阳光体育大会组团参赛、建设体育后备人才基地为重点，为青少年学生提供健康的运动、娱乐和环境。\n3、根据省体育局2026年重点工程项目推进情况，重点保障省级运动队备战训练，改善运动队训练、生活条件。支持基层老年人体育场地设施建设，对基层体育场馆设施建设及维修给予适当补助。\n4、进一步推动云南省体育产业高质量发展，激发体育消费潜力。一是积极培育体育领域优质项目，着力培育体育旅游精品项目、体育文化优秀项目，丰富体育产业业态。二是积极支持户外运动产业发展，大力推广户外运动线路，满足群众多样化体育需求。三是大力发展体育相关产业。大力发展体育竞赛表演产业，充分发挥其带动作用，进一步促进体育消费。四是积极四是积极培育体育用品制造业，完善体育产业链条。\n4、重点围绕云南“十四五”体育发展收官、云南省体育事业高质量发展三年行动计划以及年度重点工作等，结合实际情况开展云南体育宣传工作。围绕“十五五”规划编制开展工作，按照群众体育、竞技体育、体育产业、体育文化和对外交流各板块，聚焦重点政策、措施、项目开展调研和规划编制。","产出指标","数量指标","参加怒江皮划艇野水公开赛人数",">=","25","人","定量指标","反映参加中国怒江皮划艇野水国际公开赛人数的情况"]
["省体育局（省对下）体彩公益金专项经费","省对下体彩公益金项目组织实施七彩云南全民健身基础设施工程项目3项，大型体育赛事项目28项，七彩云南全民健身活动示范工程项目9项，七彩云南全民健身科研与宣传项目1项，青少年体育组织建设项目2项，青少年体育活动项目1项，青少年体育竞赛项目1项，全省体育设施改善条件1项，省级预备队建设项目1项，体育产业发展项目1项，通过资助各州市体彩公益金项目，满足广大市民的运动、健身需求，加快建设体育强省，使人民健康水平明显提升。\n具体目标：\n1、聚焦2026年全民健身重点工作，结合巡视问题整改统筹安排。一是健身场地设施填空白补短板，配建适老适小健身器材。二是聚焦打造全民健身特色品牌赛事。支持丽江、临沧、版纳、昭通四个州市举办省级民族体育赛事。创新举办云南省建设南亚东南亚辐射中心体育交流大赛和民族团结杯气排球联赛，提质升级格兰芬多自行车节。三是加大全民健身科研与宣传力度，开展“运动促进健康”体育为民、惠民服务项目；推动常态化国民体质监测及国家体育锻炼标准达标测验工作。\n2、不断提高青少年体育训练质量和效益，推动竞技体育后备人才培养工作科学高效开展，为建设体育强国、健康中国注入新的生机与活力。支持承接我省组队参加全国青少年运动会参赛和参加“奔跑吧少年”全国青少年阳光体育大会组团参赛、建设体育后备人才基地为重点，为青少年学生提供健康的运动、娱乐和环境。\n3、根据省体育局2026年重点工程项目推进情况，重点保障省级运动队备战训练，改善运动队训练、生活条件。支持基层老年人体育场地设施建设，对基层体育场馆设施建设及维修给予适当补助。\n4、进一步推动云南省体育产业高质量发展，激发体育消费潜力。一是积极培育体育领域优质项目，着力培育体育旅游精品项目、体育文化优秀项目，丰富体育产业业态。二是积极支持户外运动产业发展，大力推广户外运动线路，满足群众多样化体育需求。三是大力发展体育相关产业。大力发展体育竞赛表演产业，充分发挥其带动作用，进一步促进体育消费。四是积极四是积极培育体育用品制造业，完善体育产业链条。\n4、重点围绕云南“十四五”体育发展收官、云南省体育事业高质量发展三年行动计划以及年度重点工作等，结合实际情况开展云南体育宣传工作。围绕“十五五”规划编制开展工作，按照群众体育、竞技体育、体育产业、体育文化和对外交流各板块，聚焦重点政策、措施、项目开展调研和规划编制。","产出指标","数量指标","参加昆明网球公开赛人数",">=","100","人","定量指标","反映参加昆明网球公开赛人数的情况"]
["省体育局（省对下）体彩公益金专项经费","省对下体彩公益金项目组织实施七彩云南全民健身基础设施工程项目3项，大型体育赛事项目28项，七彩云南全民健身活动示范工程项目9项，七彩云南全民健身科研与宣传项目1项，青少年体育组织建设项目2项，青少年体育活动项目1项，青少年体育竞赛项目1项，全省体育设施改善条件1项，省级预备队建设项目1项，体育产业发展项目1项，通过资助各州市体彩公益金项目，满足广大市民的运动、健身需求，加快建设体育强省，使人民健康水平明显提升。\n具体目标：\n1、聚焦2026年全民健身重点工作，结合巡视问题整改统筹安排。一是健身场地设施填空白补短板，配建适老适小健身器材。二是聚焦打造全民健身特色品牌赛事。支持丽江、临沧、版纳、昭通四个州市举办省级民族体育赛事。创新举办云南省建设南亚东南亚辐射中心体育交流大赛和民族团结杯气排球联赛，提质升级格兰芬多自行车节。三是加大全民健身科研与宣传力度，开展“运动促进健康”体育为民、惠民服务项目；推动常态化国民体质监测及国家体育锻炼标准达标测验工作。\n2、不断提高青少年体育训练质量和效益，推动竞技体育后备人才培养工作科学高效开展，为建设体育强国、健康中国注入新的生机与活力。支持承接我省组队参加全国青少年运动会参赛和参加“奔跑吧少年”全国青少年阳光体育大会组团参赛、建设体育后备人才基地为重点，为青少年学生提供健康的运动、娱乐和环境。\n3、根据省体育局2026年重点工程项目推进情况，重点保障省级运动队备战训练，改善运动队训练、生活条件。支持基层老年人体育场地设施建设，对基层体育场馆设施建设及维修给予适当补助。\n4、进一步推动云南省体育产业高质量发展，激发体育消费潜力。一是积极培育体育领域优质项目，着力培育体育旅游精品项目、体育文化优秀项目，丰富体育产业业态。二是积极支持户外运动产业发展，大力推广户外运动线路，满足群众多样化体育需求。三是大力发展体育相关产业。大力发展体育竞赛表演产业，充分发挥其带动作用，进一步促进体育消费。四是积极四是积极培育体育用品制造业，完善体育产业链条。\n4、重点围绕云南“十四五”体育发展收官、云南省体育事业高质量发展三年行动计划以及年度重点工作等，结合实际情况开展云南体育宣传工作。围绕“十五五”规划编制开展工作，按照群众体育、竞技体育、体育产业、体育文化和对外交流各板块，聚焦重点政策、措施、项目开展调研和规划编制。","产出指标","数量指标","参加中越两国国际自行车联赛人数",">=","30","人","定量指标","反映参加中越两国国际自行车联赛人数的情况"]
["省体育局（省对下）体彩公益金专项经费","省对下体彩公益金项目组织实施七彩云南全民健身基础设施工程项目3项，大型体育赛事项目28项，七彩云南全民健身活动示范工程项目9项，七彩云南全民健身科研与宣传项目1项，青少年体育组织建设项目2项，青少年体育活动项目1项，青少年体育竞赛项目1项，全省体育设施改善条件1项，省级预备队建设项目1项，体育产业发展项目1项，通过资助各州市体彩公益金项目，满足广大市民的运动、健身需求，加快建设体育强省，使人民健康水平明显提升。\n具体目标：\n1、聚焦2026年全民健身重点工作，结合巡视问题整改统筹安排。一是健身场地设施填空白补短板，配建适老适小健身器材。二是聚焦打造全民健身特色品牌赛事。支持丽江、临沧、版纳、昭通四个州市举办省级民族体育赛事。创新举办云南省建设南亚东南亚辐射中心体育交流大赛和民族团结杯气排球联赛，提质升级格兰芬多自行车节。三是加大全民健身科研与宣传力度，开展“运动促进健康”体育为民、惠民服务项目；推动常态化国民体质监测及国家体育锻炼标准达标测验工作。\n2、不断提高青少年体育训练质量和效益，推动竞技体育后备人才培养工作科学高效开展，为建设体育强国、健康中国注入新的生机与活力。支持承接我省组队参加全国青少年运动会参赛和参加“奔跑吧少年”全国青少年阳光体育大会组团参赛、建设体育后备人才基地为重点，为青少年学生提供健康的运动、娱乐和环境。\n3、根据省体育局2026年重点工程项目推进情况，重点保障省级运动队备战训练，改善运动队训练、生活条件。支持基层老年人体育场地设施建设，对基层体育场馆设施建设及维修给予适当补助。\n4、进一步推动云南省体育产业高质量发展，激发体育消费潜力。一是积极培育体育领域优质项目，着力培育体育旅游精品项目、体育文化优秀项目，丰富体育产业业态。二是积极支持户外运动产业发展，大力推广户外运动线路，满足群众多样化体育需求。三是大力发展体育相关产业。大力发展体育竞赛表演产业，充分发挥其带动作用，进一步促进体育消费。四是积极四是积极培育体育用品制造业，完善体育产业链条。\n4、重点围绕云南“十四五”体育发展收官、云南省体育事业高质量发展三年行动计划以及年度重点工作等，结合实际情况开展云南体育宣传工作。围绕“十五五”规划编制开展工作，按照群众体育、竞技体育、体育产业、体育文化和对外交流各板块，聚焦重点政策、措施、项目开展调研和规划编制。","产出指标","数量指标","参加全国青少年阳光体育大会人数",">=","50","人","定量指标","反映组队参加全国青少年阳光体育大会人数的情况"]
["省体育局（省对下）体彩公益金专项经费","省对下体彩公益金项目组织实施七彩云南全民健身基础设施工程项目3项，大型体育赛事项目28项，七彩云南全民健身活动示范工程项目9项，七彩云南全民健身科研与宣传项目1项，青少年体育组织建设项目2项，青少年体育活动项目1项，青少年体育竞赛项目1项，全省体育设施改善条件1项，省级预备队建设项目1项，体育产业发展项目1项，通过资助各州市体彩公益金项目，满足广大市民的运动、健身需求，加快建设体育强省，使人民健康水平明显提升。\n具体目标：\n1、聚焦2026年全民健身重点工作，结合巡视问题整改统筹安排。一是健身场地设施填空白补短板，配建适老适小健身器材。二是聚焦打造全民健身特色品牌赛事。支持丽江、临沧、版纳、昭通四个州市举办省级民族体育赛事。创新举办云南省建设南亚东南亚辐射中心体育交流大赛和民族团结杯气排球联赛，提质升级格兰芬多自行车节。三是加大全民健身科研与宣传力度，开展“运动促进健康”体育为民、惠民服务项目；推动常态化国民体质监测及国家体育锻炼标准达标测验工作。\n2、不断提高青少年体育训练质量和效益，推动竞技体育后备人才培养工作科学高效开展，为建设体育强国、健康中国注入新的生机与活力。支持承接我省组队参加全国青少年运动会参赛和参加“奔跑吧少年”全国青少年阳光体育大会组团参赛、建设体育后备人才基地为重点，为青少年学生提供健康的运动、娱乐和环境。\n3、根据省体育局2026年重点工程项目推进情况，重点保障省级运动队备战训练，改善运动队训练、生活条件。支持基层老年人体育场地设施建设，对基层体育场馆设施建设及维修给予适当补助。\n4、进一步推动云南省体育产业高质量发展，激发体育消费潜力。一是积极培育体育领域优质项目，着力培育体育旅游精品项目、体育文化优秀项目，丰富体育产业业态。二是积极支持户外运动产业发展，大力推广户外运动线路，满足群众多样化体育需求。三是大力发展体育相关产业。大力发展体育竞赛表演产业，充分发挥其带动作用，进一步促进体育消费。四是积极四是积极培育体育用品制造业，完善体育产业链条。\n4、重点围绕云南“十四五”体育发展收官、云南省体育事业高质量发展三年行动计划以及年度重点工作等，结合实际情况开展云南体育宣传工作。围绕“十五五”规划编制开展工作，按照群众体育、竞技体育、体育产业、体育文化和对外交流各板块，聚焦重点政策、措施、项目开展调研和规划编制。","产出指标","数量指标","建设竞技体育后备人才中心数量",">=","35","个","定量指标","反映建设竞技体育后备人才中心数量的情况"]
["省体育局（省对下）体彩公益金专项经费","省对下体彩公益金项目组织实施七彩云南全民健身基础设施工程项目3项，大型体育赛事项目28项，七彩云南全民健身活动示范工程项目9项，七彩云南全民健身科研与宣传项目1项，青少年体育组织建设项目2项，青少年体育活动项目1项，青少年体育竞赛项目1项，全省体育设施改善条件1项，省级预备队建设项目1项，体育产业发展项目1项，通过资助各州市体彩公益金项目，满足广大市民的运动、健身需求，加快建设体育强省，使人民健康水平明显提升。\n具体目标：\n1、聚焦2026年全民健身重点工作，结合巡视问题整改统筹安排。一是健身场地设施填空白补短板，配建适老适小健身器材。二是聚焦打造全民健身特色品牌赛事。支持丽江、临沧、版纳、昭通四个州市举办省级民族体育赛事。创新举办云南省建设南亚东南亚辐射中心体育交流大赛和民族团结杯气排球联赛，提质升级格兰芬多自行车节。三是加大全民健身科研与宣传力度，开展“运动促进健康”体育为民、惠民服务项目；推动常态化国民体质监测及国家体育锻炼标准达标测验工作。\n2、不断提高青少年体育训练质量和效益，推动竞技体育后备人才培养工作科学高效开展，为建设体育强国、健康中国注入新的生机与活力。支持承接我省组队参加全国青少年运动会参赛和参加“奔跑吧少年”全国青少年阳光体育大会组团参赛、建设体育后备人才基地为重点，为青少年学生提供健康的运动、娱乐和环境。\n3、根据省体育局2026年重点工程项目推进情况，重点保障省级运动队备战训练，改善运动队训练、生活条件。支持基层老年人体育场地设施建设，对基层体育场馆设施建设及维修给予适当补助。\n4、进一步推动云南省体育产业高质量发展，激发体育消费潜力。一是积极培育体育领域优质项目，着力培育体育旅游精品项目、体育文化优秀项目，丰富体育产业业态。二是积极支持户外运动产业发展，大力推广户外运动线路，满足群众多样化体育需求。三是大力发展体育相关产业。大力发展体育竞赛表演产业，充分发挥其带动作用，进一步促进体育消费。四是积极四是积极培育体育用品制造业，完善体育产业链条。\n4、重点围绕云南“十四五”体育发展收官、云南省体育事业高质量发展三年行动计划以及年度重点工作等，结合实际情况开展云南体育宣传工作。围绕“十五五”规划编制开展工作，按照群众体育、竞技体育、体育产业、体育文化和对外交流各板块，聚焦重点政策、措施、项目开展调研和规划编制。","产出指标","数量指标","培养运动员参加全国比赛次数",">=","275","次","定量指标","反映培养运动员参加全国比赛次数的情况"]
["省体育局（省对下）体彩公益金专项经费","省对下体彩公益金项目组织实施七彩云南全民健身基础设施工程项目3项，大型体育赛事项目28项，七彩云南全民健身活动示范工程项目9项，七彩云南全民健身科研与宣传项目1项，青少年体育组织建设项目2项，青少年体育活动项目1项，青少年体育竞赛项目1项，全省体育设施改善条件1项，省级预备队建设项目1项，体育产业发展项目1项，通过资助各州市体彩公益金项目，满足广大市民的运动、健身需求，加快建设体育强省，使人民健康水平明显提升。\n具体目标：\n1、聚焦2026年全民健身重点工作，结合巡视问题整改统筹安排。一是健身场地设施填空白补短板，配建适老适小健身器材。二是聚焦打造全民健身特色品牌赛事。支持丽江、临沧、版纳、昭通四个州市举办省级民族体育赛事。创新举办云南省建设南亚东南亚辐射中心体育交流大赛和民族团结杯气排球联赛，提质升级格兰芬多自行车节。三是加大全民健身科研与宣传力度，开展“运动促进健康”体育为民、惠民服务项目；推动常态化国民体质监测及国家体育锻炼标准达标测验工作。\n2、不断提高青少年体育训练质量和效益，推动竞技体育后备人才培养工作科学高效开展，为建设体育强国、健康中国注入新的生机与活力。支持承接我省组队参加全国青少年运动会参赛和参加“奔跑吧少年”全国青少年阳光体育大会组团参赛、建设体育后备人才基地为重点，为青少年学生提供健康的运动、娱乐和环境。\n3、根据省体育局2026年重点工程项目推进情况，重点保障省级运动队备战训练，改善运动队训练、生活条件。支持基层老年人体育场地设施建设，对基层体育场馆设施建设及维修给予适当补助。\n4、进一步推动云南省体育产业高质量发展，激发体育消费潜力。一是积极培育体育领域优质项目，着力培育体育旅游精品项目、体育文化优秀项目，丰富体育产业业态。二是积极支持户外运动产业发展，大力推广户外运动线路，满足群众多样化体育需求。三是大力发展体育相关产业。大力发展体育竞赛表演产业，充分发挥其带动作用，进一步促进体育消费。四是积极四是积极培育体育用品制造业，完善体育产业链条。\n4、重点围绕云南“十四五”体育发展收官、云南省体育事业高质量发展三年行动计划以及年度重点工作等，结合实际情况开展云南体育宣传工作。围绕“十五五”规划编制开展工作，按照群众体育、竞技体育、体育产业、体育文化和对外交流各板块，聚焦重点政策、措施、项目开展调研和规划编制。","产出指标","数量指标","竞技体育后备人才培养数量",">=","730","人","定量指标","反映竞技体育后备人才培养数量的情况"]
["省体育局（省对下）体彩公益金专项经费","省对下体彩公益金项目组织实施七彩云南全民健身基础设施工程项目3项，大型体育赛事项目28项，七彩云南全民健身活动示范工程项目9项，七彩云南全民健身科研与宣传项目1项，青少年体育组织建设项目2项，青少年体育活动项目1项，青少年体育竞赛项目1项，全省体育设施改善条件1项，省级预备队建设项目1项，体育产业发展项目1项，通过资助各州市体彩公益金项目，满足广大市民的运动、健身需求，加快建设体育强省，使人民健康水平明显提升。\n具体目标：\n1、聚焦2026年全民健身重点工作，结合巡视问题整改统筹安排。一是健身场地设施填空白补短板，配建适老适小健身器材。二是聚焦打造全民健身特色品牌赛事。支持丽江、临沧、版纳、昭通四个州市举办省级民族体育赛事。创新举办云南省建设南亚东南亚辐射中心体育交流大赛和民族团结杯气排球联赛，提质升级格兰芬多自行车节。三是加大全民健身科研与宣传力度，开展“运动促进健康”体育为民、惠民服务项目；推动常态化国民体质监测及国家体育锻炼标准达标测验工作。\n2、不断提高青少年体育训练质量和效益，推动竞技体育后备人才培养工作科学高效开展，为建设体育强国、健康中国注入新的生机与活力。支持承接我省组队参加全国青少年运动会参赛和参加“奔跑吧少年”全国青少年阳光体育大会组团参赛、建设体育后备人才基地为重点，为青少年学生提供健康的运动、娱乐和环境。\n3、根据省体育局2026年重点工程项目推进情况，重点保障省级运动队备战训练，改善运动队训练、生活条件。支持基层老年人体育场地设施建设，对基层体育场馆设施建设及维修给予适当补助。\n4、进一步推动云南省体育产业高质量发展，激发体育消费潜力。一是积极培育体育领域优质项目，着力培育体育旅游精品项目、体育文化优秀项目，丰富体育产业业态。二是积极支持户外运动产业发展，大力推广户外运动线路，满足群众多样化体育需求。三是大力发展体育相关产业。大力发展体育竞赛表演产业，充分发挥其带动作用，进一步促进体育消费。四是积极四是积极培育体育用品制造业，完善体育产业链条。\n4、重点围绕云南“十四五”体育发展收官、云南省体育事业高质量发展三年行动计划以及年度重点工作等，结合实际情况开展云南体育宣传工作。围绕“十五五”规划编制开展工作，按照群众体育、竞技体育、体育产业、体育文化和对外交流各板块，聚焦重点政策、措施、项目开展调研和规划编制。","产出指标","数量指标","体育促进青少年身心健康试点人数",">=","2000","人","定量指标","反映体育促进青少年身心健康试点人数的情况"]
["省体育局（省对下）体彩公益金专项经费","省对下体彩公益金项目组织实施七彩云南全民健身基础设施工程项目3项，大型体育赛事项目28项，七彩云南全民健身活动示范工程项目9项，七彩云南全民健身科研与宣传项目1项，青少年体育组织建设项目2项，青少年体育活动项目1项，青少年体育竞赛项目1项，全省体育设施改善条件1项，省级预备队建设项目1项，体育产业发展项目1项，通过资助各州市体彩公益金项目，满足广大市民的运动、健身需求，加快建设体育强省，使人民健康水平明显提升。\n具体目标：\n1、聚焦2026年全民健身重点工作，结合巡视问题整改统筹安排。一是健身场地设施填空白补短板，配建适老适小健身器材。二是聚焦打造全民健身特色品牌赛事。支持丽江、临沧、版纳、昭通四个州市举办省级民族体育赛事。创新举办云南省建设南亚东南亚辐射中心体育交流大赛和民族团结杯气排球联赛，提质升级格兰芬多自行车节。三是加大全民健身科研与宣传力度，开展“运动促进健康”体育为民、惠民服务项目；推动常态化国民体质监测及国家体育锻炼标准达标测验工作。\n2、不断提高青少年体育训练质量和效益，推动竞技体育后备人才培养工作科学高效开展，为建设体育强国、健康中国注入新的生机与活力。支持承接我省组队参加全国青少年运动会参赛和参加“奔跑吧少年”全国青少年阳光体育大会组团参赛、建设体育后备人才基地为重点，为青少年学生提供健康的运动、娱乐和环境。\n3、根据省体育局2026年重点工程项目推进情况，重点保障省级运动队备战训练，改善运动队训练、生活条件。支持基层老年人体育场地设施建设，对基层体育场馆设施建设及维修给予适当补助。\n4、进一步推动云南省体育产业高质量发展，激发体育消费潜力。一是积极培育体育领域优质项目，着力培育体育旅游精品项目、体育文化优秀项目，丰富体育产业业态。二是积极支持户外运动产业发展，大力推广户外运动线路，满足群众多样化体育需求。三是大力发展体育相关产业。大力发展体育竞赛表演产业，充分发挥其带动作用，进一步促进体育消费。四是积极四是积极培育体育用品制造业，完善体育产业链条。\n4、重点围绕云南“十四五”体育发展收官、云南省体育事业高质量发展三年行动计划以及年度重点工作等，结合实际情况开展云南体育宣传工作。围绕“十五五”规划编制开展工作，按照群众体育、竞技体育、体育产业、体育文化和对外交流各板块，聚焦重点政策、措施、项目开展调研和规划编制。","产出指标","数量指标","举办云南省青少年体育竞赛场次",">=","30","次","定量指标","反映举办云南省青少年体育竞赛场次的情况"]
["省体育局（省对下）体彩公益金专项经费","省对下体彩公益金项目组织实施七彩云南全民健身基础设施工程项目3项，大型体育赛事项目28项，七彩云南全民健身活动示范工程项目9项，七彩云南全民健身科研与宣传项目1项，青少年体育组织建设项目2项，青少年体育活动项目1项，青少年体育竞赛项目1项，全省体育设施改善条件1项，省级预备队建设项目1项，体育产业发展项目1项，通过资助各州市体彩公益金项目，满足广大市民的运动、健身需求，加快建设体育强省，使人民健康水平明显提升。\n具体目标：\n1、聚焦2026年全民健身重点工作，结合巡视问题整改统筹安排。一是健身场地设施填空白补短板，配建适老适小健身器材。二是聚焦打造全民健身特色品牌赛事。支持丽江、临沧、版纳、昭通四个州市举办省级民族体育赛事。创新举办云南省建设南亚东南亚辐射中心体育交流大赛和民族团结杯气排球联赛，提质升级格兰芬多自行车节。三是加大全民健身科研与宣传力度，开展“运动促进健康”体育为民、惠民服务项目；推动常态化国民体质监测及国家体育锻炼标准达标测验工作。\n2、不断提高青少年体育训练质量和效益，推动竞技体育后备人才培养工作科学高效开展，为建设体育强国、健康中国注入新的生机与活力。支持承接我省组队参加全国青少年运动会参赛和参加“奔跑吧少年”全国青少年阳光体育大会组团参赛、建设体育后备人才基地为重点，为青少年学生提供健康的运动、娱乐和环境。\n3、根据省体育局2026年重点工程项目推进情况，重点保障省级运动队备战训练，改善运动队训练、生活条件。支持基层老年人体育场地设施建设，对基层体育场馆设施建设及维修给予适当补助。\n4、进一步推动云南省体育产业高质量发展，激发体育消费潜力。一是积极培育体育领域优质项目，着力培育体育旅游精品项目、体育文化优秀项目，丰富体育产业业态。二是积极支持户外运动产业发展，大力推广户外运动线路，满足群众多样化体育需求。三是大力发展体育相关产业。大力发展体育竞赛表演产业，充分发挥其带动作用，进一步促进体育消费。四是积极四是积极培育体育用品制造业，完善体育产业链条。\n4、重点围绕云南“十四五”体育发展收官、云南省体育事业高质量发展三年行动计划以及年度重点工作等，结合实际情况开展云南体育宣传工作。围绕“十五五”规划编制开展工作，按照群众体育、竞技体育、体育产业、体育文化和对外交流各板块，聚焦重点政策、措施、项目开展调研和规划编制。","产出指标","数量指标","参加云南省青少年体育竞赛人数",">=","8000","人","定量指标","参加云南省青少年体育竞赛人数"]
["省体育局（省对下）体彩公益金专项经费","省对下体彩公益金项目组织实施七彩云南全民健身基础设施工程项目3项，大型体育赛事项目28项，七彩云南全民健身活动示范工程项目9项，七彩云南全民健身科研与宣传项目1项，青少年体育组织建设项目2项，青少年体育活动项目1项，青少年体育竞赛项目1项，全省体育设施改善条件1项，省级预备队建设项目1项，体育产业发展项目1项，通过资助各州市体彩公益金项目，满足广大市民的运动、健身需求，加快建设体育强省，使人民健康水平明显提升。\n具体目标：\n1、聚焦2026年全民健身重点工作，结合巡视问题整改统筹安排。一是健身场地设施填空白补短板，配建适老适小健身器材。二是聚焦打造全民健身特色品牌赛事。支持丽江、临沧、版纳、昭通四个州市举办省级民族体育赛事。创新举办云南省建设南亚东南亚辐射中心体育交流大赛和民族团结杯气排球联赛，提质升级格兰芬多自行车节。三是加大全民健身科研与宣传力度，开展“运动促进健康”体育为民、惠民服务项目；推动常态化国民体质监测及国家体育锻炼标准达标测验工作。\n2、不断提高青少年体育训练质量和效益，推动竞技体育后备人才培养工作科学高效开展，为建设体育强国、健康中国注入新的生机与活力。支持承接我省组队参加全国青少年运动会参赛和参加“奔跑吧少年”全国青少年阳光体育大会组团参赛、建设体育后备人才基地为重点，为青少年学生提供健康的运动、娱乐和环境。\n3、根据省体育局2026年重点工程项目推进情况，重点保障省级运动队备战训练，改善运动队训练、生活条件。支持基层老年人体育场地设施建设，对基层体育场馆设施建设及维修给予适当补助。\n4、进一步推动云南省体育产业高质量发展，激发体育消费潜力。一是积极培育体育领域优质项目，着力培育体育旅游精品项目、体育文化优秀项目，丰富体育产业业态。二是积极支持户外运动产业发展，大力推广户外运动线路，满足群众多样化体育需求。三是大力发展体育相关产业。大力发展体育竞赛表演产业，充分发挥其带动作用，进一步促进体育消费。四是积极四是积极培育体育用品制造业，完善体育产业链条。\n4、重点围绕云南“十四五”体育发展收官、云南省体育事业高质量发展三年行动计划以及年度重点工作等，结合实际情况开展云南体育宣传工作。围绕“十五五”规划编制开展工作，按照群众体育、竞技体育、体育产业、体育文化和对外交流各板块，聚焦重点政策、措施、项目开展调研和规划编制。","产出指标","数量指标","支持全省体育设施改善条件项目","=","19","个","定量指标","反映支持全省体育设施改善条件项目个数的情况"]
["省体育局（省对下）体彩公益金专项经费","省对下体彩公益金项目组织实施七彩云南全民健身基础设施工程项目3项，大型体育赛事项目28项，七彩云南全民健身活动示范工程项目9项，七彩云南全民健身科研与宣传项目1项，青少年体育组织建设项目2项，青少年体育活动项目1项，青少年体育竞赛项目1项，全省体育设施改善条件1项，省级预备队建设项目1项，体育产业发展项目1项，通过资助各州市体彩公益金项目，满足广大市民的运动、健身需求，加快建设体育强省，使人民健康水平明显提升。\n具体目标：\n1、聚焦2026年全民健身重点工作，结合巡视问题整改统筹安排。一是健身场地设施填空白补短板，配建适老适小健身器材。二是聚焦打造全民健身特色品牌赛事。支持丽江、临沧、版纳、昭通四个州市举办省级民族体育赛事。创新举办云南省建设南亚东南亚辐射中心体育交流大赛和民族团结杯气排球联赛，提质升级格兰芬多自行车节。三是加大全民健身科研与宣传力度，开展“运动促进健康”体育为民、惠民服务项目；推动常态化国民体质监测及国家体育锻炼标准达标测验工作。\n2、不断提高青少年体育训练质量和效益，推动竞技体育后备人才培养工作科学高效开展，为建设体育强国、健康中国注入新的生机与活力。支持承接我省组队参加全国青少年运动会参赛和参加“奔跑吧少年”全国青少年阳光体育大会组团参赛、建设体育后备人才基地为重点，为青少年学生提供健康的运动、娱乐和环境。\n3、根据省体育局2026年重点工程项目推进情况，重点保障省级运动队备战训练，改善运动队训练、生活条件。支持基层老年人体育场地设施建设，对基层体育场馆设施建设及维修给予适当补助。\n4、进一步推动云南省体育产业高质量发展，激发体育消费潜力。一是积极培育体育领域优质项目，着力培育体育旅游精品项目、体育文化优秀项目，丰富体育产业业态。二是积极支持户外运动产业发展，大力推广户外运动线路，满足群众多样化体育需求。三是大力发展体育相关产业。大力发展体育竞赛表演产业，充分发挥其带动作用，进一步促进体育消费。四是积极四是积极培育体育用品制造业，完善体育产业链条。\n4、重点围绕云南“十四五”体育发展收官、云南省体育事业高质量发展三年行动计划以及年度重点工作等，结合实际情况开展云南体育宣传工作。围绕“十五五”规划编制开展工作，按照群众体育、竞技体育、体育产业、体育文化和对外交流各板块，聚焦重点政策、措施、项目开展调研和规划编制。","产出指标","数量指标","支持体育产业发展项目","=","82","个","定量指标","反映我省支持体育产业发展的情况"]
["省体育局（省对下）体彩公益金专项经费","省对下体彩公益金项目组织实施七彩云南全民健身基础设施工程项目3项，大型体育赛事项目28项，七彩云南全民健身活动示范工程项目9项，七彩云南全民健身科研与宣传项目1项，青少年体育组织建设项目2项，青少年体育活动项目1项，青少年体育竞赛项目1项，全省体育设施改善条件1项，省级预备队建设项目1项，体育产业发展项目1项，通过资助各州市体彩公益金项目，满足广大市民的运动、健身需求，加快建设体育强省，使人民健康水平明显提升。\n具体目标：\n1、聚焦2026年全民健身重点工作，结合巡视问题整改统筹安排。一是健身场地设施填空白补短板，配建适老适小健身器材。二是聚焦打造全民健身特色品牌赛事。支持丽江、临沧、版纳、昭通四个州市举办省级民族体育赛事。创新举办云南省建设南亚东南亚辐射中心体育交流大赛和民族团结杯气排球联赛，提质升级格兰芬多自行车节。三是加大全民健身科研与宣传力度，开展“运动促进健康”体育为民、惠民服务项目；推动常态化国民体质监测及国家体育锻炼标准达标测验工作。\n2、不断提高青少年体育训练质量和效益，推动竞技体育后备人才培养工作科学高效开展，为建设体育强国、健康中国注入新的生机与活力。支持承接我省组队参加全国青少年运动会参赛和参加“奔跑吧少年”全国青少年阳光体育大会组团参赛、建设体育后备人才基地为重点，为青少年学生提供健康的运动、娱乐和环境。\n3、根据省体育局2026年重点工程项目推进情况，重点保障省级运动队备战训练，改善运动队训练、生活条件。支持基层老年人体育场地设施建设，对基层体育场馆设施建设及维修给予适当补助。\n4、进一步推动云南省体育产业高质量发展，激发体育消费潜力。一是积极培育体育领域优质项目，着力培育体育旅游精品项目、体育文化优秀项目，丰富体育产业业态。二是积极支持户外运动产业发展，大力推广户外运动线路，满足群众多样化体育需求。三是大力发展体育相关产业。大力发展体育竞赛表演产业，充分发挥其带动作用，进一步促进体育消费。四是积极四是积极培育体育用品制造业，完善体育产业链条。\n4、重点围绕云南“十四五”体育发展收官、云南省体育事业高质量发展三年行动计划以及年度重点工作等，结合实际情况开展云南体育宣传工作。围绕“十五五”规划编制开展工作，按照群众体育、竞技体育、体育产业、体育文化和对外交流各板块，聚焦重点政策、措施、项目开展调研和规划编制。","产出指标","数量指标","资助基层老年人体育场地设施项目","=","4","个","定量指标","反映全年新建或改造适合老年人使用的体育场地设施的情况"]
["省体育局（省对下）体彩公益金专项经费","省对下体彩公益金项目组织实施七彩云南全民健身基础设施工程项目3项，大型体育赛事项目28项，七彩云南全民健身活动示范工程项目9项，七彩云南全民健身科研与宣传项目1项，青少年体育组织建设项目2项，青少年体育活动项目1项，青少年体育竞赛项目1项，全省体育设施改善条件1项，省级预备队建设项目1项，体育产业发展项目1项，通过资助各州市体彩公益金项目，满足广大市民的运动、健身需求，加快建设体育强省，使人民健康水平明显提升。\n具体目标：\n1、聚焦2026年全民健身重点工作，结合巡视问题整改统筹安排。一是健身场地设施填空白补短板，配建适老适小健身器材。二是聚焦打造全民健身特色品牌赛事。支持丽江、临沧、版纳、昭通四个州市举办省级民族体育赛事。创新举办云南省建设南亚东南亚辐射中心体育交流大赛和民族团结杯气排球联赛，提质升级格兰芬多自行车节。三是加大全民健身科研与宣传力度，开展“运动促进健康”体育为民、惠民服务项目；推动常态化国民体质监测及国家体育锻炼标准达标测验工作。\n2、不断提高青少年体育训练质量和效益，推动竞技体育后备人才培养工作科学高效开展，为建设体育强国、健康中国注入新的生机与活力。支持承接我省组队参加全国青少年运动会参赛和参加“奔跑吧少年”全国青少年阳光体育大会组团参赛、建设体育后备人才基地为重点，为青少年学生提供健康的运动、娱乐和环境。\n3、根据省体育局2026年重点工程项目推进情况，重点保障省级运动队备战训练，改善运动队训练、生活条件。支持基层老年人体育场地设施建设，对基层体育场馆设施建设及维修给予适当补助。\n4、进一步推动云南省体育产业高质量发展，激发体育消费潜力。一是积极培育体育领域优质项目，着力培育体育旅游精品项目、体育文化优秀项目，丰富体育产业业态。二是积极支持户外运动产业发展，大力推广户外运动线路，满足群众多样化体育需求。三是大力发展体育相关产业。大力发展体育竞赛表演产业，充分发挥其带动作用，进一步促进体育消费。四是积极四是积极培育体育用品制造业，完善体育产业链条。\n4、重点围绕云南“十四五”体育发展收官、云南省体育事业高质量发展三年行动计划以及年度重点工作等，结合实际情况开展云南体育宣传工作。围绕“十五五”规划编制开展工作，按照群众体育、竞技体育、体育产业、体育文化和对外交流各板块，聚焦重点政策、措施、项目开展调研和规划编制。","产出指标","数量指标","参加澜湄合作德宏藤球邀请赛人数",">=","60","人","定量指标","反映参加澜沧江-湄公河合作云南德宏藤球邀请赛人数的情况"]
["省体育局（省对下）体彩公益金专项经费","省对下体彩公益金项目组织实施七彩云南全民健身基础设施工程项目3项，大型体育赛事项目28项，七彩云南全民健身活动示范工程项目9项，七彩云南全民健身科研与宣传项目1项，青少年体育组织建设项目2项，青少年体育活动项目1项，青少年体育竞赛项目1项，全省体育设施改善条件1项，省级预备队建设项目1项，体育产业发展项目1项，通过资助各州市体彩公益金项目，满足广大市民的运动、健身需求，加快建设体育强省，使人民健康水平明显提升。\n具体目标：\n1、聚焦2026年全民健身重点工作，结合巡视问题整改统筹安排。一是健身场地设施填空白补短板，配建适老适小健身器材。二是聚焦打造全民健身特色品牌赛事。支持丽江、临沧、版纳、昭通四个州市举办省级民族体育赛事。创新举办云南省建设南亚东南亚辐射中心体育交流大赛和民族团结杯气排球联赛，提质升级格兰芬多自行车节。三是加大全民健身科研与宣传力度，开展“运动促进健康”体育为民、惠民服务项目；推动常态化国民体质监测及国家体育锻炼标准达标测验工作。\n2、不断提高青少年体育训练质量和效益，推动竞技体育后备人才培养工作科学高效开展，为建设体育强国、健康中国注入新的生机与活力。支持承接我省组队参加全国青少年运动会参赛和参加“奔跑吧少年”全国青少年阳光体育大会组团参赛、建设体育后备人才基地为重点，为青少年学生提供健康的运动、娱乐和环境。\n3、根据省体育局2026年重点工程项目推进情况，重点保障省级运动队备战训练，改善运动队训练、生活条件。支持基层老年人体育场地设施建设，对基层体育场馆设施建设及维修给予适当补助。\n4、进一步推动云南省体育产业高质量发展，激发体育消费潜力。一是积极培育体育领域优质项目，着力培育体育旅游精品项目、体育文化优秀项目，丰富体育产业业态。二是积极支持户外运动产业发展，大力推广户外运动线路，满足群众多样化体育需求。三是大力发展体育相关产业。大力发展体育竞赛表演产业，充分发挥其带动作用，进一步促进体育消费。四是积极四是积极培育体育用品制造业，完善体育产业链条。\n4、重点围绕云南“十四五”体育发展收官、云南省体育事业高质量发展三年行动计划以及年度重点工作等，结合实际情况开展云南体育宣传工作。围绕“十五五”规划编制开展工作，按照群众体育、竞技体育、体育产业、体育文化和对外交流各板块，聚焦重点政策、措施、项目开展调研和规划编制。","产出指标","数量指标","参加全国青少年阳光体育大会人数",">=","50","人","定量指标","反映组队参加全国青少年阳光体育大会人数的情况"]
["省体育局（省对下）体彩公益金专项经费","省对下体彩公益金项目组织实施七彩云南全民健身基础设施工程项目3项，大型体育赛事项目28项，七彩云南全民健身活动示范工程项目9项，七彩云南全民健身科研与宣传项目1项，青少年体育组织建设项目2项，青少年体育活动项目1项，青少年体育竞赛项目1项，全省体育设施改善条件1项，省级预备队建设项目1项，体育产业发展项目1项，通过资助各州市体彩公益金项目，满足广大市民的运动、健身需求，加快建设体育强省，使人民健康水平明显提升。\n具体目标：\n1、聚焦2026年全民健身重点工作，结合巡视问题整改统筹安排。一是健身场地设施填空白补短板，配建适老适小健身器材。二是聚焦打造全民健身特色品牌赛事。支持丽江、临沧、版纳、昭通四个州市举办省级民族体育赛事。创新举办云南省建设南亚东南亚辐射中心体育交流大赛和民族团结杯气排球联赛，提质升级格兰芬多自行车节。三是加大全民健身科研与宣传力度，开展“运动促进健康”体育为民、惠民服务项目；推动常态化国民体质监测及国家体育锻炼标准达标测验工作。\n2、不断提高青少年体育训练质量和效益，推动竞技体育后备人才培养工作科学高效开展，为建设体育强国、健康中国注入新的生机与活力。支持承接我省组队参加全国青少年运动会参赛和参加“奔跑吧少年”全国青少年阳光体育大会组团参赛、建设体育后备人才基地为重点，为青少年学生提供健康的运动、娱乐和环境。\n3、根据省体育局2026年重点工程项目推进情况，重点保障省级运动队备战训练，改善运动队训练、生活条件。支持基层老年人体育场地设施建设，对基层体育场馆设施建设及维修给予适当补助。\n4、进一步推动云南省体育产业高质量发展，激发体育消费潜力。一是积极培育体育领域优质项目，着力培育体育旅游精品项目、体育文化优秀项目，丰富体育产业业态。二是积极支持户外运动产业发展，大力推广户外运动线路，满足群众多样化体育需求。三是大力发展体育相关产业。大力发展体育竞赛表演产业，充分发挥其带动作用，进一步促进体育消费。四是积极四是积极培育体育用品制造业，完善体育产业链条。\n4、重点围绕云南“十四五”体育发展收官、云南省体育事业高质量发展三年行动计划以及年度重点工作等，结合实际情况开展云南体育宣传工作。围绕“十五五”规划编制开展工作，按照群众体育、竞技体育、体育产业、体育文化和对外交流各板块，聚焦重点政策、措施、项目开展调研和规划编制。","产出指标","数量指标","参加云南省第十七届运动会人数",">=","5000","人","定量指标","反映参加云南省第十七届运动会人数的情况"]
["省体育局（省对下）体彩公益金专项经费","省对下体彩公益金项目组织实施七彩云南全民健身基础设施工程项目3项，大型体育赛事项目28项，七彩云南全民健身活动示范工程项目9项，七彩云南全民健身科研与宣传项目1项，青少年体育组织建设项目2项，青少年体育活动项目1项，青少年体育竞赛项目1项，全省体育设施改善条件1项，省级预备队建设项目1项，体育产业发展项目1项，通过资助各州市体彩公益金项目，满足广大市民的运动、健身需求，加快建设体育强省，使人民健康水平明显提升。\n具体目标：\n1、聚焦2026年全民健身重点工作，结合巡视问题整改统筹安排。一是健身场地设施填空白补短板，配建适老适小健身器材。二是聚焦打造全民健身特色品牌赛事。支持丽江、临沧、版纳、昭通四个州市举办省级民族体育赛事。创新举办云南省建设南亚东南亚辐射中心体育交流大赛和民族团结杯气排球联赛，提质升级格兰芬多自行车节。三是加大全民健身科研与宣传力度，开展“运动促进健康”体育为民、惠民服务项目；推动常态化国民体质监测及国家体育锻炼标准达标测验工作。\n2、不断提高青少年体育训练质量和效益，推动竞技体育后备人才培养工作科学高效开展，为建设体育强国、健康中国注入新的生机与活力。支持承接我省组队参加全国青少年运动会参赛和参加“奔跑吧少年”全国青少年阳光体育大会组团参赛、建设体育后备人才基地为重点，为青少年学生提供健康的运动、娱乐和环境。\n3、根据省体育局2026年重点工程项目推进情况，重点保障省级运动队备战训练，改善运动队训练、生活条件。支持基层老年人体育场地设施建设，对基层体育场馆设施建设及维修给予适当补助。\n4、进一步推动云南省体育产业高质量发展，激发体育消费潜力。一是积极培育体育领域优质项目，着力培育体育旅游精品项目、体育文化优秀项目，丰富体育产业业态。二是积极支持户外运动产业发展，大力推广户外运动线路，满足群众多样化体育需求。三是大力发展体育相关产业。大力发展体育竞赛表演产业，充分发挥其带动作用，进一步促进体育消费。四是积极四是积极培育体育用品制造业，完善体育产业链条。\n4、重点围绕云南“十四五”体育发展收官、云南省体育事业高质量发展三年行动计划以及年度重点工作等，结合实际情况开展云南体育宣传工作。围绕“十五五”规划编制开展工作，按照群众体育、竞技体育、体育产业、体育文化和对外交流各板块，聚焦重点政策、措施、项目开展调研和规划编制。","产出指标","质量指标","场地设施验收合格率","=","100","%","定量指标","反映工程建设项目质量验收合格情况。"]
["省体育局（省对下）体彩公益金专项经费","省对下体彩公益金项目组织实施七彩云南全民健身基础设施工程项目3项，大型体育赛事项目28项，七彩云南全民健身活动示范工程项目9项，七彩云南全民健身科研与宣传项目1项，青少年体育组织建设项目2项，青少年体育活动项目1项，青少年体育竞赛项目1项，全省体育设施改善条件1项，省级预备队建设项目1项，体育产业发展项目1项，通过资助各州市体彩公益金项目，满足广大市民的运动、健身需求，加快建设体育强省，使人民健康水平明显提升。\n具体目标：\n1、聚焦2026年全民健身重点工作，结合巡视问题整改统筹安排。一是健身场地设施填空白补短板，配建适老适小健身器材。二是聚焦打造全民健身特色品牌赛事。支持丽江、临沧、版纳、昭通四个州市举办省级民族体育赛事。创新举办云南省建设南亚东南亚辐射中心体育交流大赛和民族团结杯气排球联赛，提质升级格兰芬多自行车节。三是加大全民健身科研与宣传力度，开展“运动促进健康”体育为民、惠民服务项目；推动常态化国民体质监测及国家体育锻炼标准达标测验工作。\n2、不断提高青少年体育训练质量和效益，推动竞技体育后备人才培养工作科学高效开展，为建设体育强国、健康中国注入新的生机与活力。支持承接我省组队参加全国青少年运动会参赛和参加“奔跑吧少年”全国青少年阳光体育大会组团参赛、建设体育后备人才基地为重点，为青少年学生提供健康的运动、娱乐和环境。\n3、根据省体育局2026年重点工程项目推进情况，重点保障省级运动队备战训练，改善运动队训练、生活条件。支持基层老年人体育场地设施建设，对基层体育场馆设施建设及维修给予适当补助。\n4、进一步推动云南省体育产业高质量发展，激发体育消费潜力。一是积极培育体育领域优质项目，着力培育体育旅游精品项目、体育文化优秀项目，丰富体育产业业态。二是积极支持户外运动产业发展，大力推广户外运动线路，满足群众多样化体育需求。三是大力发展体育相关产业。大力发展体育竞赛表演产业，充分发挥其带动作用，进一步促进体育消费。四是积极四是积极培育体育用品制造业，完善体育产业链条。\n4、重点围绕云南“十四五”体育发展收官、云南省体育事业高质量发展三年行动计划以及年度重点工作等，结合实际情况开展云南体育宣传工作。围绕“十五五”规划编制开展工作，按照群众体育、竞技体育、体育产业、体育文化和对外交流各板块，聚焦重点政策、措施、项目开展调研和规划编制。","产出指标","质量指标","赛事活动安全事故发生率","=","0","%","定量指标","反映赛事活动安全事故发生情况。"]
["省体育局（省对下）体彩公益金专项经费","省对下体彩公益金项目组织实施七彩云南全民健身基础设施工程项目3项，大型体育赛事项目28项，七彩云南全民健身活动示范工程项目9项，七彩云南全民健身科研与宣传项目1项，青少年体育组织建设项目2项，青少年体育活动项目1项，青少年体育竞赛项目1项，全省体育设施改善条件1项，省级预备队建设项目1项，体育产业发展项目1项，通过资助各州市体彩公益金项目，满足广大市民的运动、健身需求，加快建设体育强省，使人民健康水平明显提升。\n具体目标：\n1、聚焦2026年全民健身重点工作，结合巡视问题整改统筹安排。一是健身场地设施填空白补短板，配建适老适小健身器材。二是聚焦打造全民健身特色品牌赛事。支持丽江、临沧、版纳、昭通四个州市举办省级民族体育赛事。创新举办云南省建设南亚东南亚辐射中心体育交流大赛和民族团结杯气排球联赛，提质升级格兰芬多自行车节。三是加大全民健身科研与宣传力度，开展“运动促进健康”体育为民、惠民服务项目；推动常态化国民体质监测及国家体育锻炼标准达标测验工作。\n2、不断提高青少年体育训练质量和效益，推动竞技体育后备人才培养工作科学高效开展，为建设体育强国、健康中国注入新的生机与活力。支持承接我省组队参加全国青少年运动会参赛和参加“奔跑吧少年”全国青少年阳光体育大会组团参赛、建设体育后备人才基地为重点，为青少年学生提供健康的运动、娱乐和环境。\n3、根据省体育局2026年重点工程项目推进情况，重点保障省级运动队备战训练，改善运动队训练、生活条件。支持基层老年人体育场地设施建设，对基层体育场馆设施建设及维修给予适当补助。\n4、进一步推动云南省体育产业高质量发展，激发体育消费潜力。一是积极培育体育领域优质项目，着力培育体育旅游精品项目、体育文化优秀项目，丰富体育产业业态。二是积极支持户外运动产业发展，大力推广户外运动线路，满足群众多样化体育需求。三是大力发展体育相关产业。大力发展体育竞赛表演产业，充分发挥其带动作用，进一步促进体育消费。四是积极四是积极培育体育用品制造业，完善体育产业链条。\n4、重点围绕云南“十四五”体育发展收官、云南省体育事业高质量发展三年行动计划以及年度重点工作等，结合实际情况开展云南体育宣传工作。围绕“十五五”规划编制开展工作，按照群众体育、竞技体育、体育产业、体育文化和对外交流各板块，聚焦重点政策、措施、项目开展调研和规划编制。","产出指标","时效指标","场地设施建设计划执行及时率",">=","90","%","定量指标","反映体彩公益金资助项目场地设施建设计划执行及时情况"]
["省体育局（省对下）体彩公益金专项经费","省对下体彩公益金项目组织实施七彩云南全民健身基础设施工程项目3项，大型体育赛事项目28项，七彩云南全民健身活动示范工程项目9项，七彩云南全民健身科研与宣传项目1项，青少年体育组织建设项目2项，青少年体育活动项目1项，青少年体育竞赛项目1项，全省体育设施改善条件1项，省级预备队建设项目1项，体育产业发展项目1项，通过资助各州市体彩公益金项目，满足广大市民的运动、健身需求，加快建设体育强省，使人民健康水平明显提升。\n具体目标：\n1、聚焦2026年全民健身重点工作，结合巡视问题整改统筹安排。一是健身场地设施填空白补短板，配建适老适小健身器材。二是聚焦打造全民健身特色品牌赛事。支持丽江、临沧、版纳、昭通四个州市举办省级民族体育赛事。创新举办云南省建设南亚东南亚辐射中心体育交流大赛和民族团结杯气排球联赛，提质升级格兰芬多自行车节。三是加大全民健身科研与宣传力度，开展“运动促进健康”体育为民、惠民服务项目；推动常态化国民体质监测及国家体育锻炼标准达标测验工作。\n2、不断提高青少年体育训练质量和效益，推动竞技体育后备人才培养工作科学高效开展，为建设体育强国、健康中国注入新的生机与活力。支持承接我省组队参加全国青少年运动会参赛和参加“奔跑吧少年”全国青少年阳光体育大会组团参赛、建设体育后备人才基地为重点，为青少年学生提供健康的运动、娱乐和环境。\n3、根据省体育局2026年重点工程项目推进情况，重点保障省级运动队备战训练，改善运动队训练、生活条件。支持基层老年人体育场地设施建设，对基层体育场馆设施建设及维修给予适当补助。\n4、进一步推动云南省体育产业高质量发展，激发体育消费潜力。一是积极培育体育领域优质项目，着力培育体育旅游精品项目、体育文化优秀项目，丰富体育产业业态。二是积极支持户外运动产业发展，大力推广户外运动线路，满足群众多样化体育需求。三是大力发展体育相关产业。大力发展体育竞赛表演产业，充分发挥其带动作用，进一步促进体育消费。四是积极四是积极培育体育用品制造业，完善体育产业链条。\n4、重点围绕云南“十四五”体育发展收官、云南省体育事业高质量发展三年行动计划以及年度重点工作等，结合实际情况开展云南体育宣传工作。围绕“十五五”规划编制开展工作，按照群众体育、竞技体育、体育产业、体育文化和对外交流各板块，聚焦重点政策、措施、项目开展调研和规划编制。","产出指标","时效指标","赛事活动计划完成及时率",">=","90","%","定量指标","反映全省范围内赛事活动计划完成及时情况。"]
["省体育局（省对下）体彩公益金专项经费","省对下体彩公益金项目组织实施七彩云南全民健身基础设施工程项目3项，大型体育赛事项目28项，七彩云南全民健身活动示范工程项目9项，七彩云南全民健身科研与宣传项目1项，青少年体育组织建设项目2项，青少年体育活动项目1项，青少年体育竞赛项目1项，全省体育设施改善条件1项，省级预备队建设项目1项，体育产业发展项目1项，通过资助各州市体彩公益金项目，满足广大市民的运动、健身需求，加快建设体育强省，使人民健康水平明显提升。\n具体目标：\n1、聚焦2026年全民健身重点工作，结合巡视问题整改统筹安排。一是健身场地设施填空白补短板，配建适老适小健身器材。二是聚焦打造全民健身特色品牌赛事。支持丽江、临沧、版纳、昭通四个州市举办省级民族体育赛事。创新举办云南省建设南亚东南亚辐射中心体育交流大赛和民族团结杯气排球联赛，提质升级格兰芬多自行车节。三是加大全民健身科研与宣传力度，开展“运动促进健康”体育为民、惠民服务项目；推动常态化国民体质监测及国家体育锻炼标准达标测验工作。\n2、不断提高青少年体育训练质量和效益，推动竞技体育后备人才培养工作科学高效开展，为建设体育强国、健康中国注入新的生机与活力。支持承接我省组队参加全国青少年运动会参赛和参加“奔跑吧少年”全国青少年阳光体育大会组团参赛、建设体育后备人才基地为重点，为青少年学生提供健康的运动、娱乐和环境。\n3、根据省体育局2026年重点工程项目推进情况，重点保障省级运动队备战训练，改善运动队训练、生活条件。支持基层老年人体育场地设施建设，对基层体育场馆设施建设及维修给予适当补助。\n4、进一步推动云南省体育产业高质量发展，激发体育消费潜力。一是积极培育体育领域优质项目，着力培育体育旅游精品项目、体育文化优秀项目，丰富体育产业业态。二是积极支持户外运动产业发展，大力推广户外运动线路，满足群众多样化体育需求。三是大力发展体育相关产业。大力发展体育竞赛表演产业，充分发挥其带动作用，进一步促进体育消费。四是积极四是积极培育体育用品制造业，完善体育产业链条。\n4、重点围绕云南“十四五”体育发展收官、云南省体育事业高质量发展三年行动计划以及年度重点工作等，结合实际情况开展云南体育宣传工作。围绕“十五五”规划编制开展工作，按照群众体育、竞技体育、体育产业、体育文化和对外交流各板块，聚焦重点政策、措施、项目开展调研和规划编制。","产出指标","时效指标","人才培养计划完成及时率",">=","90","%","定量指标","反映人才培养计划完成及时率\n"]
["省体育局（省对下）体彩公益金专项经费","省对下体彩公益金项目组织实施七彩云南全民健身基础设施工程项目3项，大型体育赛事项目28项，七彩云南全民健身活动示范工程项目9项，七彩云南全民健身科研与宣传项目1项，青少年体育组织建设项目2项，青少年体育活动项目1项，青少年体育竞赛项目1项，全省体育设施改善条件1项，省级预备队建设项目1项，体育产业发展项目1项，通过资助各州市体彩公益金项目，满足广大市民的运动、健身需求，加快建设体育强省，使人民健康水平明显提升。\n具体目标：\n1、聚焦2026年全民健身重点工作，结合巡视问题整改统筹安排。一是健身场地设施填空白补短板，配建适老适小健身器材。二是聚焦打造全民健身特色品牌赛事。支持丽江、临沧、版纳、昭通四个州市举办省级民族体育赛事。创新举办云南省建设南亚东南亚辐射中心体育交流大赛和民族团结杯气排球联赛，提质升级格兰芬多自行车节。三是加大全民健身科研与宣传力度，开展“运动促进健康”体育为民、惠民服务项目；推动常态化国民体质监测及国家体育锻炼标准达标测验工作。\n2、不断提高青少年体育训练质量和效益，推动竞技体育后备人才培养工作科学高效开展，为建设体育强国、健康中国注入新的生机与活力。支持承接我省组队参加全国青少年运动会参赛和参加“奔跑吧少年”全国青少年阳光体育大会组团参赛、建设体育后备人才基地为重点，为青少年学生提供健康的运动、娱乐和环境。\n3、根据省体育局2026年重点工程项目推进情况，重点保障省级运动队备战训练，改善运动队训练、生活条件。支持基层老年人体育场地设施建设，对基层体育场馆设施建设及维修给予适当补助。\n4、进一步推动云南省体育产业高质量发展，激发体育消费潜力。一是积极培育体育领域优质项目，着力培育体育旅游精品项目、体育文化优秀项目，丰富体育产业业态。二是积极支持户外运动产业发展，大力推广户外运动线路，满足群众多样化体育需求。三是大力发展体育相关产业。大力发展体育竞赛表演产业，充分发挥其带动作用，进一步促进体育消费。四是积极四是积极培育体育用品制造业，完善体育产业链条。\n4、重点围绕云南“十四五”体育发展收官、云南省体育事业高质量发展三年行动计划以及年度重点工作等，结合实际情况开展云南体育宣传工作。围绕“十五五”规划编制开展工作，按照群众体育、竞技体育、体育产业、体育文化和对外交流各板块，聚焦重点政策、措施、项目开展调研和规划编制。","效益指标","社会效益","竞体人才中心运动员省赛前八次数",">=","360","人次","定量指标","反映竞技体育后备人才中心培养运动员获取全省比赛前八次数"]
["省体育局（省对下）体彩公益金专项经费","省对下体彩公益金项目组织实施七彩云南全民健身基础设施工程项目3项，大型体育赛事项目28项，七彩云南全民健身活动示范工程项目9项，七彩云南全民健身科研与宣传项目1项，青少年体育组织建设项目2项，青少年体育活动项目1项，青少年体育竞赛项目1项，全省体育设施改善条件1项，省级预备队建设项目1项，体育产业发展项目1项，通过资助各州市体彩公益金项目，满足广大市民的运动、健身需求，加快建设体育强省，使人民健康水平明显提升。\n具体目标：\n1、聚焦2026年全民健身重点工作，结合巡视问题整改统筹安排。一是健身场地设施填空白补短板，配建适老适小健身器材。二是聚焦打造全民健身特色品牌赛事。支持丽江、临沧、版纳、昭通四个州市举办省级民族体育赛事。创新举办云南省建设南亚东南亚辐射中心体育交流大赛和民族团结杯气排球联赛，提质升级格兰芬多自行车节。三是加大全民健身科研与宣传力度，开展“运动促进健康”体育为民、惠民服务项目；推动常态化国民体质监测及国家体育锻炼标准达标测验工作。\n2、不断提高青少年体育训练质量和效益，推动竞技体育后备人才培养工作科学高效开展，为建设体育强国、健康中国注入新的生机与活力。支持承接我省组队参加全国青少年运动会参赛和参加“奔跑吧少年”全国青少年阳光体育大会组团参赛、建设体育后备人才基地为重点，为青少年学生提供健康的运动、娱乐和环境。\n3、根据省体育局2026年重点工程项目推进情况，重点保障省级运动队备战训练，改善运动队训练、生活条件。支持基层老年人体育场地设施建设，对基层体育场馆设施建设及维修给予适当补助。\n4、进一步推动云南省体育产业高质量发展，激发体育消费潜力。一是积极培育体育领域优质项目，着力培育体育旅游精品项目、体育文化优秀项目，丰富体育产业业态。二是积极支持户外运动产业发展，大力推广户外运动线路，满足群众多样化体育需求。三是大力发展体育相关产业。大力发展体育竞赛表演产业，充分发挥其带动作用，进一步促进体育消费。四是积极四是积极培育体育用品制造业，完善体育产业链条。\n4、重点围绕云南“十四五”体育发展收官、云南省体育事业高质量发展三年行动计划以及年度重点工作等，结合实际情况开展云南体育宣传工作。围绕“十五五”规划编制开展工作，按照群众体育、竞技体育、体育产业、体育文化和对外交流各板块，聚焦重点政策、措施、项目开展调研和规划编制。","效益指标","社会效益","赛事活动计划完成率","=","100","%","定量指标","反映体育赛事活动计划完成情况。"]
["省体育局（省对下）体彩公益金专项经费","省对下体彩公益金项目组织实施七彩云南全民健身基础设施工程项目3项，大型体育赛事项目28项，七彩云南全民健身活动示范工程项目9项，七彩云南全民健身科研与宣传项目1项，青少年体育组织建设项目2项，青少年体育活动项目1项，青少年体育竞赛项目1项，全省体育设施改善条件1项，省级预备队建设项目1项，体育产业发展项目1项，通过资助各州市体彩公益金项目，满足广大市民的运动、健身需求，加快建设体育强省，使人民健康水平明显提升。\n具体目标：\n1、聚焦2026年全民健身重点工作，结合巡视问题整改统筹安排。一是健身场地设施填空白补短板，配建适老适小健身器材。二是聚焦打造全民健身特色品牌赛事。支持丽江、临沧、版纳、昭通四个州市举办省级民族体育赛事。创新举办云南省建设南亚东南亚辐射中心体育交流大赛和民族团结杯气排球联赛，提质升级格兰芬多自行车节。三是加大全民健身科研与宣传力度，开展“运动促进健康”体育为民、惠民服务项目；推动常态化国民体质监测及国家体育锻炼标准达标测验工作。\n2、不断提高青少年体育训练质量和效益，推动竞技体育后备人才培养工作科学高效开展，为建设体育强国、健康中国注入新的生机与活力。支持承接我省组队参加全国青少年运动会参赛和参加“奔跑吧少年”全国青少年阳光体育大会组团参赛、建设体育后备人才基地为重点，为青少年学生提供健康的运动、娱乐和环境。\n3、根据省体育局2026年重点工程项目推进情况，重点保障省级运动队备战训练，改善运动队训练、生活条件。支持基层老年人体育场地设施建设，对基层体育场馆设施建设及维修给予适当补助。\n4、进一步推动云南省体育产业高质量发展，激发体育消费潜力。一是积极培育体育领域优质项目，着力培育体育旅游精品项目、体育文化优秀项目，丰富体育产业业态。二是积极支持户外运动产业发展，大力推广户外运动线路，满足群众多样化体育需求。三是大力发展体育相关产业。大力发展体育竞赛表演产业，充分发挥其带动作用，进一步促进体育消费。四是积极四是积极培育体育用品制造业，完善体育产业链条。\n4、重点围绕云南“十四五”体育发展收官、云南省体育事业高质量发展三年行动计划以及年度重点工作等，结合实际情况开展云南体育宣传工作。围绕“十五五”规划编制开展工作，按照群众体育、竞技体育、体育产业、体育文化和对外交流各板块，聚焦重点政策、措施、项目开展调研和规划编制。","满意度指标","服务对象满意度","参加赛事活动人员满意度",">=","90","%","定量指标","反映参加特色体育赛事活动人员对赛事组织、体验的满意度"]
["省体育局（省对下）体彩公益金专项经费","省对下体彩公益金项目组织实施七彩云南全民健身基础设施工程项目3项，大型体育赛事项目28项，七彩云南全民健身活动示范工程项目9项，七彩云南全民健身科研与宣传项目1项，青少年体育组织建设项目2项，青少年体育活动项目1项，青少年体育竞赛项目1项，全省体育设施改善条件1项，省级预备队建设项目1项，体育产业发展项目1项，通过资助各州市体彩公益金项目，满足广大市民的运动、健身需求，加快建设体育强省，使人民健康水平明显提升。\n具体目标：\n1、聚焦2026年全民健身重点工作，结合巡视问题整改统筹安排。一是健身场地设施填空白补短板，配建适老适小健身器材。二是聚焦打造全民健身特色品牌赛事。支持丽江、临沧、版纳、昭通四个州市举办省级民族体育赛事。创新举办云南省建设南亚东南亚辐射中心体育交流大赛和民族团结杯气排球联赛，提质升级格兰芬多自行车节。三是加大全民健身科研与宣传力度，开展“运动促进健康”体育为民、惠民服务项目；推动常态化国民体质监测及国家体育锻炼标准达标测验工作。\n2、不断提高青少年体育训练质量和效益，推动竞技体育后备人才培养工作科学高效开展，为建设体育强国、健康中国注入新的生机与活力。支持承接我省组队参加全国青少年运动会参赛和参加“奔跑吧少年”全国青少年阳光体育大会组团参赛、建设体育后备人才基地为重点，为青少年学生提供健康的运动、娱乐和环境。\n3、根据省体育局2026年重点工程项目推进情况，重点保障省级运动队备战训练，改善运动队训练、生活条件。支持基层老年人体育场地设施建设，对基层体育场馆设施建设及维修给予适当补助。\n4、进一步推动云南省体育产业高质量发展，激发体育消费潜力。一是积极培育体育领域优质项目，着力培育体育旅游精品项目、体育文化优秀项目，丰富体育产业业态。二是积极支持户外运动产业发展，大力推广户外运动线路，满足群众多样化体育需求。三是大力发展体育相关产业。大力发展体育竞赛表演产业，充分发挥其带动作用，进一步促进体育消费。四是积极四是积极培育体育用品制造业，完善体育产业链条。\n4、重点围绕云南“十四五”体育发展收官、云南省体育事业高质量发展三年行动计划以及年度重点工作等，结合实际情况开展云南体育宣传工作。围绕“十五五”规划编制开展工作，按照群众体育、竞技体育、体育产业、体育文化和对外交流各板块，聚焦重点政策、措施、项目开展调研和规划编制。","满意度指标","服务对象满意度","参训运动员满意度",">=","90","%","定量指标","反映参加体彩公益金资助项目参训运动员满意度情况"]

{"sheet":"新增资产配置表10","index":14,"n_rows":25,"n_cols":8,"rows_kept":25,"merged":[[1,0,1,7],[3,0,4,0],[3,1,4,1],[3,2,4,2],[3,3,4,3],[3,4,4,4],[3,5,3,7],[23,0,23,4],[24,0,24,7]]}
[{"$nulls":7},"预算10表"]
["2026年新增资产配置表"]
[{"$f":"\"单位名称：\"&\"云南省体育局\"","v":"单位名称：云南省体育局"}]
["单位名称","资产类别","资产分类代码.名称","资产名称","计量单位","财政单位批复数（元）"]
[{"$nulls":5},"数量","单价","金额"]
["1","2","3","4","5","6","7","8"]
["云南省体育局","设备","A02010105 台式计算机","台式电脑","台",6,{"v":6000,"d":"6,000.00"},{"v":36000,"d":"36,000.00"}]
["云南省体育局","设备","A02010108 便携式计算机","笔记本电脑","台",1,{"v":9000,"d":"9,000.00"},{"v":9000,"d":"9,000.00"}]
["云南省体育局","设备","A02010309 计算机终端安全设备","单导设备","台",1,{"v":700,"d":"700.00"},{"v":700,"d":"700.00"}]
["云南省体育局","设备","A02010309 计算机终端安全设备","红盘","个",1,{"v":200,"d":"200.00"},{"v":200,"d":"200.00"}]
["云南省体育局","设备","A02010309 计算机终端安全设备","视频干扰仪","台",1,{"v":1160,"d":"1,160.00"},{"v":1160,"d":"1,160.00"}]
["云南省体育局","设备","A02020100 复印机","彩色复印机","台",1,{"v":40000,"d":"40,000.00"},{"v":40000,"d":"40,000.00"}]
["云南省体育局","设备","A02020600 执法记录仪","执法记录仪","台",1,{"v":3000,"d":"3,000.00"},{"v":3000,"d":"3,000.00"}]
["云南省体育局","设备","A02021004 A4彩色打印机","便携式打印机","台",1,{"v":3000,"d":"3,000.00"},{"v":3000,"d":"3,000.00"}]
["云南省体育局","设备","A02021004 A4彩色打印机","彩色打印机","台",1,{"v":4000,"d":"4,000.00"},{"v":4000,"d":"4,000.00"}]
["云南省体育局","设备","A02080799 其他电话通信设备","录音电话","台",1,{"v":500,"d":"500.00"},{"v":500,"d":"500.00"}]
["云南省体育局","设备","A02081001 文件(图文)传真机","传真机","台",1,{"v":1500,"d":"1,500.00"},{"v":1500,"d":"1,500.00"}]
["云南省体育局","无形资产","A08060301 基础软件","版式软件","套",1,{"v":490,"d":"490.00"},{"v":490,"d":"490.00"}]
["云南省体育局","无形资产","A08060301 基础软件","办公软件","套",1,{"v":790,"d":"790.00"},{"v":790,"d":"790.00"}]
["云南省体育局","无形资产","A08060301 基础软件","操作系统","套",1,{"v":560,"d":"560.00"},{"v":560,"d":"560.00"}]
["云南省体育局","无形资产","A08060301 基础软件","防病毒软件","套",1,{"v":280,"d":"280.00"},{"v":280,"d":"280.00"}]
["云南省体育局","无形资产","A08060399 其他计算机软件","安全保密套件管理系统V1.0","台",1,{"v":1980,"d":"1,980.00"},{"v":1980,"d":"1,980.00"}]
["云南省体育局","无形资产","A08060399 其他计算机软件","打印刻录安全监控与审计系统V2.0","套",1,{"v":780,"d":"780.00"},{"v":780,"d":"780.00"}]
["合计",{"$nulls":4},22,null,{"v":103940,"d":"103,940.00"}]
["注：涉及土地使用权、房屋、公务用车购置，按照现行相关管理制度规定报批，以职能单位审批意见为准。"]

{"sheet":"中央转移支付补助项目支出预算表11","index":15,"n_rows":10,"n_cols":11,"rows_kept":10,"merged":[[1,0,1,10],[2,0,2,6],[3,0,5,0],[3,1,5,1],[3,2,5,2],[3,3,5,3],[3,4,5,4],[3,5,5,5],[3,6,5,6],[3,7,5,7],[3,8,3,10],[4,8,5,8],[4,9,5,9],[4,10,5,10],[9,0,9,6]]}
[{"$nulls":10},"预算11表"]
["2026年中央转移支付补助项目支出预算表"]
[{"$f":"\"单位名称：\"&\"云南省体育局\"","v":"单位名称：云南省体育局"},{"$nulls":9},"单位：元"]
["项目分类","项目名称","项目单位","功能科目编码","功能科目名称","经济科目编码","经济科目名称","合计","上级补助"]
[{"$nulls":8},"一般公共预算","政府性基金预算","国有资本经营预算"]
[{"$nulls":8},"小计"]
[1,2,3,4,5,6,7,8,9,10,11]
[null,"“奔跑吧？少年”主题健身活动专项经费",{"$nulls":5},{"v":2220000,"d":"2,220,000.00"},null,{"v":2220000,"d":"2,220,000.00"}]
["事业发展类","“奔跑吧？少年”主题健身活动专项经费","云南省体育局","2296003","用于体育事业的彩票公益金支出","30227","委托业务费",{"v":2220000,"d":"2,220,000.00"},null,{"v":2220000,"d":"2,220,000.00"}]
["合  计",{"$nulls":6},{"v":2220000,"d":"2,220,000.00"},null,{"v":2220000,"d":"2,220,000.00"}]

{"sheet":"部门项目支出中期规划预算表12","index":16,"n_rows":12,"n_cols":7,"rows_kept":12,"merged":[[1,0,1,6],[2,0,2,3],[3,0,5,0],[3,1,5,1],[3,2,5,2],[3,3,5,3],[3,4,3,6],[4,4,5,4],[4,5,5,5],[4,6,5,6],[11,0,11,3]]}
[{"$nulls":6},"预算12表"]
["2026年单位项目支出中期规划预算表"]
[{"$f":"\"单位名称：\"&\"云南省体育局\"","v":"单位名称：云南省体育局"},{"$nulls":5},"单位：元"]
["项目单位","项目分类","项目名称","项目级次","一般公共预算"]
[{"$nulls":4},"2026年","2027年","2028年"]
[{"$nulls":5},"小计"]
[1,2,3,4,5,6,7]
["云南省体育局",{"$nulls":3},{"v":2451000,"d":"2,451,000.00"},{"v":2451000,"d":"2,451,000.00"},{"v":2451000,"d":"2,451,000.00"}]
[null,"212 因公出国（境）经费","因公出国（境）专项经费","本级",{"v":291000,"d":"291,000.00"},{"v":291000,"d":"291,000.00"},{"v":291000,"d":"291,000.00"}]
[null,"229 其他运转类","单位预算机动经费","本级",{"v":2100000,"d":"2,100,000.00"},{"v":2100000,"d":"2,100,000.00"},{"v":2100000,"d":"2,100,000.00"}]
[null,"311 专项业务类","省委组织部公务员工作专项经费","本级",{"v":60000,"d":"60,000.00"},{"v":60000,"d":"60,000.00"},{"v":60000,"d":"60,000.00"}]
["合计","",null,null,{"v":2451000,"d":"2,451,000.00"},{"v":2451000,"d":"2,451,000.00"},{"v":2451000,"d":"2,451,000.00"}]